{"text_format":"3","workbook":"xlsx","n_sheets":2,"sheets":["1","Sheet1"],"not_rendered":{"defined_names":3},"read":"whole","date_system":"1900"}

{"sheet":"1","index":0,"n_rows":472,"n_cols":23,"rows_kept":472,"merged":[[1,0,1,22],[2,0,3,0],[2,1,3,1],[2,2,3,2],[2,3,3,3],[2,4,3,4],[2,5,3,5],[2,6,3,6],[2,7,3,7],[2,8,3,8],[2,9,3,9],[2,10,3,10],[2,11,3,11],[2,12,3,12],[2,13,3,13],[2,14,3,14],[2,15,3,15],[2,16,3,16],[2,17,2,20],[2,21,3,21],[2,22,3,22],[8,0,9,0],[8,2,9,2],[8,8,9,8],[176,0,177,0],[176,8,177,8],[470,0,470,19],[471,0,471,19]]}
["附件"]
["岳阳县2025年巩固拓展脱贫攻坚成果和乡村振兴项目实施计划完成情况表"]
["序号","项目批准\n文号","项目名称","项目所属任务方向","主管单位","乡镇","实施单位","建设地点","项目类别","项目建设内容","项目金额","项目建设计划开始日期","项目建设计划完工日期","绩效目标","项目受益\n总户数和总人数","受益贫困总户数和总人数","群众参与和利益联结机制","资金来源及级次",{"$nulls":3},"支出规模","备注"]
[{"$nulls":17},"中央","省级","市级","县级"]
["合计",{"$nulls":9},{"$f":"R5+S5+T5+U5","v":16795.5},{"$nulls":6},{"$f":"SUM(R6:R470)","v":{"v":5610,"d":"5610.00"}},{"$f":"SUM(S6:S470)","v":{"v":6635,"d":"6635.00"}},{"$f":"SUM(T6:T470)","v":{"v":0,"d":"0.00"}},{"$f":"SUM(U6:U470)","v":{"v":4550.5,"d":"4550.50"}},{"$f":"K5","v":16795.5}]
[1,"岳县农组发〔2025〕1号，岳县农组发〔2025〕5号","金盆柚种植基地建设","巩固拓展脱贫攻坚成果和乡村振兴","县农业农村局","柏祥镇","中村村","中村村","产业发展","流转林地260亩建设金盆柚项目",15.88,20250620,20250801,"打造村集体经济名片，促进当地农业发展，促进农户生产增收。",152,15,"土地流转分红，就近务工增收",15.88,{"$nulls":3},{"$f":"K6","v":15.88}]
[2,"岳县农组发〔2025〕1号","金禾合作社育秧大棚建设项目","巩固拓展脱贫攻坚成果和乡村振兴","县农业农村局","柏祥镇","临港村","临港村","产业发展","资金投入临港金禾合作社育秧大棚建设，占地面积5千余平方，用于春耕生产育秧，享受合作社固定分红",11,20250520,20250628,"打造村集体经济名片，促进当地农业发展，促进农户生产增收。",195,12,"土地流转分红，就近务工增收",11,{"$nulls":3},{"$f":"K7","v":11}]
[3,"岳县农组发〔2025〕1号，岳县农函〔2025〕25号","桑园村桑椹种植","巩固拓展脱贫攻坚成果和乡村振兴","县农业农村局","柏祥镇","桑园村","桑园村","产业发展","结合桑园村有种植桑椹历史，因地制宜，种植面积200亩，销售桑椹果实。",27,20250731,20250824,"带动本镇脱贫户及一般农户发展产业，增加农户收入，促进乡村振兴",716,89,"带动本镇脱贫户及一般农户发展产业，增加农户收入，促进乡村振兴",22,5,null,null,27]
[4,"岳县农组发〔2025〕1号，岳县农组发〔2025〕5号","万庆村跃进组油茶种植基地（老区发展）","巩固拓展脱贫攻坚成果和乡村振兴","县农业农村局","柏祥镇","万庆村","万庆村","产业发展","万庆村万寿片跃进组，该项目总面积140亩土地复耕，种植油茶苗株。",18,20251001,20251110,"打造村集体经济名片，促进当地农业发展，促进农户生产增收。",197,55,"受益脱贫群众55人‘土地流转分红，就近务工增收",18,{"$nulls":3},18]
[null,"岳县农函〔2025〕25号",null,"革命老区发展","县民政局","柏祥镇","万庆村","万庆村",null,"万庆村万寿片跃进组，该项目总面积140亩土地复耕，种植油茶苗株。",{"$f":"R10+S10+T10+U10","v":3},"2025.10.1","2025.11.10","打造村集体经济名片，促进当地农业发展，促进农户生产增收。",197,55,"土地流转分红，就近务工增收",null,3,null,null,3]
[5,"岳县农组发〔2025〕1号，岳县农组发〔2025〕5号，岳县农函〔2025〕26号，岳县农联发〔2025〕8号","2025年产业奖补","巩固拓展脱贫攻坚成果和乡村振兴","县农业农村局","柏祥镇","柏祥镇","柏祥镇","产业发展","带动脱贫户、监测户产业发展，发放物资、资金或现金奖励",38.33,20250725,20250920,"促进脱贫人口产业发展",1168,1176,"发放鸡苗等物资促进增收",25.83,12.5,null,null,38.33]
[6,"岳县农组发〔2025〕5号","柏祥村港堤路及小型水利建设以工代赈项目(以工代赈）","以工代赈","县农业农村局","柏祥镇","柏祥村","柏祥村","乡村建设行动","生态护砌工程790米，港堤路硬化工程1995米，箱涵工程2处，长度共计8米，以及其他相关附属设施建设等",100,20250801,20251115,"改善水利条件，方便群众生产、水利灌溉促进发展农业生产增收。",456,45,"该项目建设完成后可以有效的改善储水蓄水灌溉，让周边50余亩水田可以正常灌溉。",100,{"$nulls":3},100]
[7,"岳县农组发〔2025〕5号","七一村文付片白水塘山塘维修（抗旱项目）","巩固拓展脱贫攻坚成果和乡村振兴","县农业农村局","柏祥镇","七一村","七一村","产业发展","七一村文付片白水塘清淤及硬化",5,20250901,20251010,"改善水利条件，方便群众生产、水利灌溉促进发展农业生产增收",236,26,"群众筹资筹劳参与水利基础设施建设，保障脱贫户增收稳定",5,{"$nulls":3},5]
[8,"岳县农组发〔2025〕2号","蚯蚓养殖项目（集体经济）","巩固拓展脱贫攻坚成果和乡村振兴","县农业农村局","柏祥镇","十步桥村","十步桥村","产业发展","结合“蚯蚓+八月瓜”套养，采用“林下经济”模式，在果树下养殖蚯蚓。拟与力农等其他公司深度合作、村委入股经营，项目12亩，总投资预计达50万元，涵盖土地流转、平整、技术研发、加工设施建设等。或采用“集体经济合作社+农户”模式，农户通过土地入股或参与养殖获得分成。每年经营性收入10万元以上",50,20250715,20250801,"每年经营性收入10万元以上",312,38,"农户通过土地入股或参与养殖获得分成",50,{"$nulls":3},50]
[9,"岳县农函〔2025〕26号","伏太村安利大塘清淤","巩固拓展脱贫攻坚成果和乡村振兴","县农业农村局","柏祥镇","伏太村","伏太村","产业发展","伏太片旁上组安利大塘清淤",8,20251010,20251024,"有利春耕生产、改善环境，有效提高农业生产，激活当地经济发展",196,25,"该项目建设完成后可以有效的改善储水蓄水灌溉，让周边100余亩水田可以正常灌溉。",null,8,null,null,8]
[10,"岳县农函〔2025〕26号","柏祥村赵李片恰水塘清污加固硬化工程","巩固拓展脱贫攻坚成果和乡村振兴","县农业农村局","柏祥镇","柏祥村","柏祥村","产业发展","恰水塘塘内全面清污，塘堤加固，塘周浆砌石护砌\n",12.5,20250930,20251026,"改善水利条件，方便群众生产、水利灌溉促进发展农业生产增收。",135,15,"该项目建设完成后可以有效的改善储水蓄水灌溉，让周边50余亩水田可以正常灌溉。",null,12.5,null,null,12.5]
[11,"岳县农函〔2025〕26号，岳县农联发〔2025〕8号","安山村农田水毁工程","巩固拓展脱贫攻坚成果和乡村振兴","县农业农村局","步仙镇","安山村","安山村","产业发展","安山片和胡兴片农田毁坏，田梗，机耕路，水沟维修。",8,"2025-07-01","2025-12-15","解决农户便利种田问题",1195,149,"解决安山村农田便利耕种问题",null,8,null,null,8]
[12,"岳县农组发〔2025〕1号，岳县农组发〔2025〕5号，岳县农联发〔2025〕8号","产业奖补","巩固拓展脱贫攻坚成果和乡村振兴","县农业农村局","步仙镇","步仙镇","步仙镇","产业发展","用于奖补全镇范围内脱贫户、监测户种养户，提供资金支持",57.27,"2025-07-01","2025-09-30","壮大村集体经济",3618,72,"带动脱贫户和周边零散劳动力就业80人。",44.27,13,null,null,57.27]
[13,"岳县农组发〔2025〕1号","肉鸽养殖","巩固拓展脱贫攻坚成果和乡村振兴","县农业农村局","步仙镇","步仙湖村","步仙湖村","产业发展","入股和成鸽业专业合作社，扩大养殖规模",10,"2025-09-01","2025-09-16","增加集体经济收入",3600,205,"为村民提供就业，增加收入",10,{"$nulls":3},10]
[14,"岳县农组发〔2025〕1号","岳坊水库生态养殖基地建设","巩固拓展脱贫攻坚成果和乡村振兴","县农业农村局","步仙镇","步仙湖村","步仙湖村","产业发展","拟在1140亩水面投放鱼苗5万斤",13,"2025-05-14","2025-12-12","增加集体经济收入",3600,205,"发展集体经济，带动脱贫、监测人口增收",13,{"$nulls":3},13]
[15,"岳县农函〔2025〕26号","东岳片谢家组路段硬化","巩固拓展脱贫攻坚成果和乡村振兴","县农业农村局","步仙镇","步仙湖村","步仙湖村","乡村建设行动","步仙湖村东岳片谢家至鱼形组通组公路",5,"2025-09-20","2025-10-08","方便300人出行",300,60,"解决全村村民的生产及出行安全",null,5,null,null,5]
[16,"岳县农函〔2025〕25号","石牛龙坑新建","巩固拓展脱贫攻坚成果和乡村振兴","县农业农村局","步仙镇","步仙湖村","步仙湖村","乡村建设行动","步仙湖村岳坊片陈相屋通组公路",5,"2025-09-20","2025-10-08","方便出行",400,20,"解决全村村民的生产及出行安全",null,5,null,null,5]
[17,"岳县农组发〔2025〕1号","油茶种植基地建设","巩固拓展脱贫攻坚成果和乡村振兴","县农业农村局","步仙镇","山美村","山美村","产业发展","400亩油茶种植基地建设",11,"2025-05-14","2025-12-15","增加集体经济收入",2000,20,"为村民提供就业，增加收入",11,{"$nulls":3},11]
[18,"岳县农组发〔2025〕2号","山美村王鸽养殖项目（集体经济）","巩固拓展脱贫攻坚成果和乡村振兴","县农业农村局","步仙镇","山美村","山美村","产业发展","入股和成鸽业专业合作社，扩大养殖规模",50,"2025-06-17","2025-09-30","增加集体经济收入",2000,20,"为村民提供就业，增加收入",50,{"$nulls":3},50]
[19,"岳县农函〔2025〕25号","柘山片山塘水沟维修","巩固拓展脱贫攻坚成果和乡村振兴","县农业农村局","步仙镇","山美村","山美村","产业发展","柘山片山塘维修，包括塘堤硬化，涵洞改造，迎水面硬化",5,"2025-10-14","2025-12-15","改善山塘蓄水能力",562,48,"改善生产条件，降低生产成本",null,5,null,null,5]
[20,"岳县农组发〔2025〕1号","黄精种植","巩固拓展脱贫攻坚成果和乡村振兴","县农业农村局","步仙镇","北斗岭村","北斗岭村","产业发展","入股黄精种植项目，规模 100 亩",12,"2025-05-14","2025-10-15","发展壮大产业项目，提高集体经济收入",3049,195,"为村民提供就业，增加收入",12,{"$nulls":3},12]
[21,"岳县农函〔2025〕25号","北斗岭村上屋组水利设施建设","巩固拓展脱贫攻坚成果和乡村振兴","县农业农村局","步仙镇","北斗岭村","北斗岭村","产业发展","山塘、水渠、水沟维修",10,"2025-05-14","2025-12-15","解决北斗岭村农田水利设施及农田灌溉。",3631,223,"解决30个组农田水利设施及农田灌溉。",null,10,null,null,10]
[22,"岳县农组发〔2025〕1号","缝纫车间","巩固拓展脱贫攻坚成果和乡村振兴","县农业农村局","步仙镇","仙桥村","仙桥村","就业项目","缝纫车间运营及扩建",5,"2025-05-14","2025-10-15","增加集体经济收入",96,33,"为村民提供就业，增加收入",5,{"$nulls":3},5]
[23,"岳县农组发〔2025〕1号","油茶种植","巩固拓展脱贫攻坚成果和乡村振兴","县农业农村局","步仙镇","仙桥村","仙桥村","产业发展","150亩油茶种植基地建设、维护",3,"2025-05-14","2025-12-15","发展集体经济，带动脱贫、监测人口增收",286,26,"发展集体经济，带动脱贫、监测人口增收",3,{"$nulls":3},3]
[24,"岳县农函〔2025〕26号","桥梁拆除重建工程","巩固拓展脱贫攻坚成果和乡村振兴","县农业农村局","步仙镇","仙桥村","仙桥村","乡村建设行动","岳阳县CS10辛淑二桥拆除、重建",5,"2025-05-14","2025-12-15","方便生产及出行",1865,137,"解决全村村民的生产及出行安全",null,5,null,null,5]
[25,"岳县农组发〔2025〕1号","金盆柚种植基地建设（二期）","巩固拓展脱贫攻坚成果和乡村振兴","县农业农村局","步仙镇","凤凰村","凤凰村","产业发展","入股金盆柚种植项\n目，规模 410 亩\n22\n项目\n建设\n内容\n变",22,"2025-05-14","2025-10-15","发展集体经济",350,31,"带动脱贫监测人口31人增收",22,{"$nulls":3},22]
[26,"岳县农组发〔2025〕5号","沙坳堰坝建设","巩固拓展脱贫攻坚成果和乡村振兴","县农业农村局","步仙镇","凤凰村","凤凰村","产业发展","沙坳堰坝修建，浆石护砌约60方，建设后将有效改善农田灌溉问题",5,"2025-07-08","2025-10-10","提升防洪抗旱能力",450,98,"改善水利条件",5,{"$nulls":3},5]
[27,"岳县农组发〔2025〕1号","水果基地建设（二期）","巩固拓展脱贫攻坚成果和乡村振兴","县农业农村局","步仙镇","松溪村","松溪村","产业发展","果园维护、道路及附属农业设施建设",23,"2025-05-14","2025-12-15","发展集体经济，带动脱贫、监测人口增收",3126,135,"发展集体经济，带动脱贫、监测人口增收",23,{"$nulls":3},23]
[28,"岳县农组发〔2025〕1号","水果基地建设（冷库项目）","巩固拓展脱贫攻坚成果和乡村振兴","县农业农村局","步仙镇","松溪村","松溪村","产业发展","800立方米冷藏保鲜冷库建设",20,"2025-05-14","2025-12-19","发展集体经济，带动脱贫、监测人口增收",3126,135,"发展集体经济，带动脱贫、监测人口增收",20,{"$nulls":3},20]
[29,"岳县农组发〔2025〕5号,岳县农联发〔2025〕8号","柏凤公路至新屋道路维修","巩固拓展脱贫攻坚成果和乡村振兴","县农业农村局","步仙镇","狮山社区","狮山社区","乡村建设行动","柏凤公路至新屋道路维修，硬化路面宽3.5米，长300米",8,"2025-10-08","2025-12-15","解决交通安全出行问题",410,22,"解决2个组400余人，脱贫户5户交通出行问题",6,2,null,null,8]
[30,"岳县农组发〔2025〕1号","西冲水库水产养殖项目","巩固拓展脱贫攻坚成果和乡村振兴","县农业农村局","筻口镇","西冲村","西冲村","产业发展","入股西冲水库水产养殖三年",10,"2025-10-08","2025-12-15","解决了西冲村产业发展提升农户经济收入",3016,94,"保障脱贫户、监测户稳定增收。",10,{"$nulls":3},10]
[31,"岳县农组发〔2025〕1号","双港片小型猪场产业路硬化项目","巩固拓展脱贫攻坚成果和乡村振兴","县农业农村局","筻口镇","西冲村","西冲村","乡村建设行动","双港片郭家组小型猪场产业路提质改造",5,"2025-10-08","2025-12-15","解决了西冲村产业发展提升农户经济收入",318,15,"保障脱贫户、监测户稳定增收。",5,{"$nulls":3},5]
[32,"岳县农函〔2025〕25号","西冲村S308至双港片二组危桥拆除重建建设","巩固拓展脱贫攻坚成果和乡村振兴","县农业农村局","筻口镇","西冲村","西冲村","乡村建设行动","西冲村S308至双港片二组危桥拆除重建长8米宽4.5米",5,"2025-10-08","2025-12-15","解决了西冲村产业发展提升农户经济收入",3016,100,"保障脱贫户、监测户稳定增收。",null,5,null,null,5]
[33,"岳县农组发〔2025〕1号","明星村桑葚种植","巩固拓展脱贫攻坚成果和乡村振兴","县农业农村局","筻口镇","明星村","明星村","产业发展","盘活空闲土地100亩，采用机械进行翻耕平整，引进适应本地气候及土壤特性的桑葚苗，该项目每年带动周边劳动力12余人，预计劳动力人均增收5千元以上，提高村民人均收入。挂果后预计为村集体每年创收2万元。",15,"2025-10-08","2025-12-15","带动周边劳动力12余人，预计劳动力人均增收5千元以上，提高村民人均收入。挂果后预计为村集体每年创收2万元。","298","42","保障脱贫户、监测户稳定增收。",15,{"$nulls":3},{"$f":"K39","v":15}]
[34,"岳县农组发〔2025〕1号","大柳片柳家大门塘清淤护砌","巩固拓展脱贫攻坚成果和乡村振兴","县农业农村局","筻口镇","老街社区","老街社区","产业发展","主要将塘岸安装围栏及护坡，塘底清淤、转运，建成后可有效改善大柳片居民的农田灌溉和出行安全问题。",8,"2025.4.7","2025.6.20","建成后有效改善居民的农田灌溉问题",512,23,"群众筹资筹劳参与水利基础设施建设，保障脱贫户、监测户稳定增收",8,{"$nulls":3},8]
[35,"岳县农组发〔2025〕1号","新华片产业路扩宽硬化","巩固拓展脱贫攻坚成果和乡村振兴","县农业农村局","筻口镇","筻口社区","筻口社区","乡村建设行动","新华片产业路500米道路拓宽硬化",5,2025.3,"2025.12","建成维修后有效改善107户363人农田耕种问题，经居支两委、联村领导、党员、群众代表讨论决议新华片产业路扩宽硬化。",363,10,"保障脱贫户、监测户稳定增收。",5,{"$nulls":3},5]
[36,"岳县农组发〔2025〕1号","油茶园入股经营项目","巩固拓展脱贫攻坚成果和乡村振兴","县农业农村局","筻口镇","大塘村","大塘村","产业发展","大塘村在岳阳县锹塘生态油茶专业合作社入股10万元。占百分之5的股份，入股期（2025年至2038年）",10,2025.5,"2025.12","建成后有效改善大塘村村民农田灌溉、交通安全、公益事业等问题，为998户农户，3350人（包含脱贫户、监测户71户，163人）增加60元每人的经济收入",3350,163,"保障脱贫户、监测户稳定增收。",10,{"$nulls":3},10]
[37,"岳县农组发〔2025〕5号","刘四屋至大塘老屋方连接路（道路拓宽硬化）","巩固拓展脱贫攻坚成果和乡村振兴","县农业农村局","筻口镇","大塘村","大塘村","乡村建设行动","对刘四屋至大塘老屋方400米道路进行拓宽、硬化，在原道路基层上拓宽1.5米，用挖机进行清除杂草和开挖，并在合适地方修建30米*0.5米*1米的驳岸，对原道路进行植筋处理，然后用C20标准混凝土进行硬化处理，厚度标准为0.2米。",5,2025.8,"2025.12","刘四屋至大塘老屋方连接路（道路拓宽），全长400米，拓宽1.5米，厚0.2米。建成后有效改善大塘片2.3.4.9组村民132户，431人（其中脱贫户、监测户11户，26人）出行及交通安全隐患，经村、支两委、联村领导、党员、群众代表讨论决议将该道路进行拓宽硬化处理。\n\n",431,26,"保障脱贫户、监测户稳定增收。",5,{"$nulls":3},5]
[38,"岳县农函〔2025〕25号","刘桂片村级道路硬化","巩固拓展脱贫攻坚成果和乡村振兴","县农业农村局","筻口镇","大塘村","大塘村","乡村建设行动","村级430米道路硬化",5,"2025.3.10","2025.12.18","刘桂片村级道路硬化，全长430米，宽5米，厚0.2米，建成后有效改善刘桂片1.2.3.4组村民65户，253人（其中脱贫户、监测户8户，23人）出行及交通安全隐患，经村、支两委、联村领导、党员、群众代表讨论决议将该道路进行硬化处理。",253,23,"保障脱贫户、监测户稳定增收。",null,5,null,null,5]
[39,"岳县农组发〔2025〕1号","沙南新村黄精瓜蒌基地","巩固拓展脱贫攻坚成果和乡村振兴","县农业农村局","筻口镇","沙南新村","沙南新村","产业发展","黄精瓜蒌续建及后期管护",5,"2025.4.7","2025.9.24","群众增收，壮大集体经济收入",156,12,"保障脱贫户、监测户稳定增收",5,{"$nulls":3},5]
[40,"岳县农组发〔2025〕1号","笔架山村醇香菜籽油品牌打造","巩固拓展脱贫攻坚成果和乡村振兴","县农业农村局","筻口镇","笔架山村","笔架山村","产业发展","改善菜籽油种植基地、菜籽油质量升级、扩大销售渠道、提高菜籽油品牌知名度",5,2025.06,2025.11,"带动农户、脱贫户、监测户巩固脱贫攻坚成果",4400,157,"保障脱贫户、监测户稳定增收。",5,{"$nulls":3},5]
[41,"岳县农组发〔2025〕1号，岳县农联发〔2025〕8号","潼溪村金盆柚基地种植项目","巩固拓展脱贫攻坚成果和乡村振兴","县农业农村局","筻口镇","潼溪村","潼溪村","产业发展","对2024年潼溪村金盆柚基地种植项目扩建30亩，并进行补苗、施肥、锄草等管护",32,2025.5,"2025.12","项目总受益689户2282人数，其中带动脱贫户12户21人受益，预期每年/每人/每户增收200元",2282,21,"保障脱贫户、监测户稳定增收。",25,7,null,null,32]
[42,"岳县农组发〔2025〕1号","界岭片三组产业路硬化及水渠现浇工程","巩固拓展脱贫攻坚成果和乡村振兴","县农业农村局","筻口镇","熊市村","熊市村","乡村建设行动","新修产业路并硬化，道路全长220米，宽3米，厚20公分，并将沟渠现浇180米。",8,2025.5,"2025.12","为界岭片三组及周边农户出行提供便利，方便农机作业，为农田灌溉提供有利条件。受益农户34户131人，其中脱贫户3户8人。",131,8,"保障脱贫户、监测户稳定增收。",8,{"$nulls":3},8]
[43,"岳县农函〔2025〕25号","界岭片一三五组渠道硬化","巩固拓展脱贫攻坚成果和乡村振兴","县农业农村局","筻口镇","熊市村","熊市村","产业发展","界岭片一组渠道长260米，三组300米，五组550米进行渠道硬化",5,"2025.2","2025.12","解决界岭片一、三、五组的农田水利灌溉条件。受益农户94户356人，受益农田600多亩。其中脱贫户7户13人。",356,13,"群众筹资筹劳参与水利基础设施建设，保障脱贫户、监测户稳定增收",null,5,null,null,5]
[44,"岳县农组发〔2025〕1号","牌头片朱仑咀产业路扩宽硬化","巩固拓展脱贫攻坚成果和乡村振兴","县农业农村局","筻口镇","朱仑村","朱仑村","乡村建设行动","牌头片朱仑咀产业路400米道路拓宽硬化",3,2025.5,"2025.12","建成后有效改善朱仑片朱仑咀农户的出行方便问题",100,10,"保障脱贫户、监测户稳定增收。",3,{"$nulls":3},3]
[45,"岳县农组发〔2025〕1号，岳县农组发〔2025〕5号，岳县农联发〔2025〕8号","两有对象产业奖补","巩固拓展脱贫攻坚成果和乡村振兴","县农业农村局","筻口镇","筻口镇\n镇政府","筻口镇\n镇政府","产业发展","大面脱贫户、监测户产业帮扶",72.24,2025.1,2025.12,"带动脱贫户监测户增收，巩固脱贫攻坚成果",957,223,"保障脱贫户、监测户稳定增收。",62.24,10,null,null,72.24]
[46,"岳县农组发〔2025〕1号","漆家埠萝卜种植种植基地","巩固拓展脱贫攻坚成果和乡村振兴","县农业农村局","筻口镇","漆市村","漆市村","产业发展","萝卜品牌升级，基地施工改造，品牌打造。",7,2025.08,2025.11,"对漆市村打造一个集萝卜种植、加工、销售为一体的现代化农业产业基地，通过科学种植管理和市场营销，实现萝卜的优质、高产、高效生产，提高市场竞争力，为漆市村农业经济发展做出贡献",565,31,"保障脱贫户、监测户稳定增收",7,{"$nulls":3},7]
[47,"岳县农组发〔2025〕5号","漆市村漆市片4组水渠硬化项目","巩固拓展脱贫攻坚成果和乡村振兴","县农业农村局","筻口镇","漆市村","漆市村","产业发展","对漆市片4组220米长、底宽0.6米、面宽0.8米水渠进行维修硬化",5,2025.8,"2025.12","解决了漆市村漆市片4组291人农田灌溉条件",291,10,"群众筹资筹劳参与水利基础设施建设，保障脱贫户、监测户稳定增收",5,{"$nulls":3},5]
[48,"岳县农函〔2025〕25号","漆市村漆市片2、3组水渠硬化项目","巩固拓展脱贫攻坚成果和乡村振兴","县农业农村局","筻口镇","漆市村","漆市村","产业发展","对漆市片2、.3组280米长、底宽0.4米、面宽0.6米水渠进行维修及硬化",5,2025.1,2025.12,"解决了漆市村漆市片2、3组376人农田灌溉条件",376,13,"群众筹资筹劳参与水利基础设施建设，保障脱贫户、监测户稳定增收",null,5,null,null,5]
[49,"岳县农函〔2025〕26号","漆市村漆市片6-9组下石桥水渠硬化项目","巩固拓展脱贫攻坚成果和乡村振兴","县农业农村局","筻口镇","漆市村","漆市村","产业发展","对漆市片6-9组296米长、底宽0.4米、面宽0.6米水渠进行维修及硬化",5,2025.1,2025.12,"解决了漆市村漆市片6-9组455人农田灌溉条件",455,24,"群众筹资筹劳参与水利基础设施建设，保障脱贫户、监测户稳定增收",null,5,null,null,5]
[50,"岳县农组发〔2025〕5号","游港村游港片优质稻基地配套水利建设2025","巩固拓展脱贫攻坚成果和乡村振兴","县农业农村局","筻口镇","游港村","游港村","产业发展","游港片水渠清淤硬化1100*0.6*0.8米",5,2025.8,"2025.12","解决游港村游港片469人农田水利",469,14,"群众筹资筹劳参与水利基础设施建设，保障脱贫户、监测户稳定增收",5,{"$nulls":3},5]
[51,"岳县农函〔2025〕25号","游港村游港片道路硬化项目","巩固拓展脱贫攻坚成果和乡村振兴","县农业农村局","筻口镇","游港村","游港村","乡村建设行动","对游港片四组150米长、7米宽道路进行硬化",5,"2025.3","2025.10","解决游港村游港片107人出行方便",107,4,"保障脱贫户、监测户稳定增收。",null,5,null,null,5]
[52,"岳县农组发〔2025〕2号","火龙果产业项目（集体经济）","巩固拓展脱贫攻坚成果和乡村振兴","县农业农村局","筻口镇","释迦寺村","释迦寺村","产业发展","入股本村大棚火龙果产业户发展火龙果产业项目，村集体占股49％，日常生产经营管理由产业户主导，按出资比例共负盈亏，村集体每年固定分红，建立火龙果种植基地50亩，通过“村集体经济合作社＋产业户”的运营模式。可给地方群众带来60个以上就业岗位，带动周边用工90余人，劳动力人均增收2万元以上，项目预计为村集体创收20万元",50,"2025.7.10","2028.7.10","项目带动21户村民受益，预期每年/每人增收500元",63,21,"保障脱贫户、监测户稳定增收",50,{"$nulls":3},50]
[53,"岳县农组发〔2025〕1号","养生稻种植","巩固拓展脱贫攻坚成果和乡村振兴","县农业农村局","公田镇","大塅村","大塅村","产业发展","培育，除草等日常管护",11,"2025.05.25","2025.07.15","壮大村集体经济",164,57,"受益群众52户其中贫户数及防止返贫监测对象户数24户，脱贫人口数及防止返贫监测对象人口数57人，通过以工代赈，增加收入巩固脱贫成果",11,{"$nulls":3},11]
[54,"岳县农组发〔2025〕1号","金盆柚种植","巩固拓展脱贫攻坚成果和乡村振兴","县农业农村局","公田镇","大塅村","大塅村","产业发展","种植面积50亩",5,"2025.06.05","2025.08.20","提高脱贫人口收入",50,18,"受益群众14户其中贫户数及防止返贫监测对象户数5户，脱贫人口数及防止返贫监测对象人口数18人，通过以工代赈，增加收入巩固脱贫成果",5,{"$nulls":3},5]
[55,"岳县农组发〔2025〕1号","金盆柚种植","巩固拓展脱贫攻坚成果和乡村振兴","县农业农村局","公田镇","东淇村","东淇村","产业发展","毛塅组种植金盆柚20亩；桥头组种植金盆柚10亩",10,"2025.10.20","2025.11.30","提高脱贫人口收入",102,16,"受益群众20户其中贫户数及防止返贫监测对象户数5户，脱贫人口数及防止返贫监测对象人口数16人，通过以工代赈，增加收入巩固脱贫成果",10,{"$nulls":3},10]
[56,"岳县农组发〔2025〕5号","东淇港港磡护砌","巩固拓展脱贫攻坚成果和乡村振兴","县农业农村局","公田镇","东淇村","东淇村","产业发展","东淇港沿港90米进行河道清淤，港磡护砌。",10,"2025.11.15","2025.12.01","壮大村集体经济",150,25,"受益群众50户其中贫户数及防止返贫监测对象户数9户，脱贫人口数及防止返贫监测对象人口数25人，通过以工代赈，增加收入巩固脱贫成果",10,{"$nulls":3},10]
[57,"岳县农函〔2025〕25号","狮型桥桥梁拓宽建\n设","巩固拓展脱贫攻坚成果和乡村振兴","县农业农村局","公田镇","东淇村","东淇村","产业发展","东淇村狮形桥拓宽\n1.5 米，跨度 20 米",10,"2025.10.06","2025.10.26","改善出行条件，提升村民的生活质量",480,70,"受益群众150户其中脱贫户数及防止返贫监测对象户数18户，脱贫人口数及防止返贫监测对象人口数70人，增加收入巩固脫贫成果",null,10,null,null,{"$f":"K63","v":10}]
[58,"岳县农组发〔2025〕1号","油茶基地","巩固拓展脱贫攻坚成果和乡村振兴","县农业农村局","公田镇","东新村","东新村","产业发展","油茶日常管护",9,"2025-07-17",20251219,"壮大村集体经济",214,31,"带动就业，增加农户收入",9,{"$nulls":3},9]
[59,"岳县农组发〔2025〕5号","梅树组道路维修","巩固拓展脱贫攻坚成果和乡村振兴","县农业农村局","公田镇","东新村","东新村","乡村建设行动","梅树组1000米道路维修",2,"2025-08-12",20251219,"壮大村集体经济",68,3,"受益群众30户其中贫户数及防止返贫监测对象户数2户，脱贫人口数及防止返贫监测对象人口数7人",2,{"$nulls":3},2]
[60,"岳县农组发〔2025〕1号","榨油作坊","巩固拓展脱贫攻坚成果和乡村振兴","县农业农村局","公田镇","飞云村","飞云村","产业发展","目前本村有种植油茶一千多亩，盘活利用原飞云村小学用来建村办厂房，利用空闲地块建作坊，并建立自己的销售直播间，在销售茶油的同时可以为当地村民销售农副产品，提高群众收入",10,20250812,20251219,"壮大村集体经济",2800,320,"带动就业，增加农户收入",10,{"$nulls":3},10]
[61,"岳县农组发〔2025〕5号","李山水库水利维修","巩固拓展脱贫攻坚成果和乡村振兴","县农业农村局","公田镇","飞云村","飞云村","产业发展","将李山水库堤坡进行整修，然后进行硬化，并且对水库内淤泥进行清除，增加库容。",10,"2025.09.15","2025.11.28","壮大村集体经济",88,12,"解决3个村民小组的农田灌溉问题，提高粮食产量。受益群众28户62人，脱贫户数13户30人",10,{"$nulls":3},10]
[62,"岳县农函〔2025〕25号","进出冷库道路拓宽硬化及门头更换工程","巩固拓展脱贫攻坚成果和乡村振兴","县农业农村局","公田镇","飞云村","飞云村","乡村建设行动","将进出冷库约长30米宽2米水沟进行低涵处理并与现有3米道路一并硬化；同时将现有4米门头改装成5米，并安装铁门便于管理。",10,"2025.10.14","2025.11.29","可冷藏保鲜各类蔬菜、水果、肉类",3050,380,"全村850户农户生产种植的农副产品都可得到有效的保藏或保鲜，同时也可等待时机和时价升值，从而创造更高价值与收入",null,10,null,null,10]
[63,"岳县农组发〔2025〕1号","甘田村大豆种植","巩固拓展脱贫攻坚成果和乡村振兴","县农业农村局","公田镇","甘田村","甘田村","产业发展","盘活空闲土地130亩，采用机械进行翻耕整合土地，施肥、锄草、日常维护",7,"2025.5.10","2025.6.28","壮大村集体经济",2705,155,"带动脱贫户和周边零散劳动力就业178人。",7,{"$nulls":3},7]
[64,"岳县农组发〔2025〕1号，岳县农组发〔2025〕5号","港口村三淼猪场入股分红","巩固拓展脱贫攻坚成果和乡村振兴","县农业农村局","公田镇","港口村","港口村","产业发展","三淼猪场入股分红",16,"2025.10.20","2025.12.12","壮大村集体经济",134,4,"改善周边农田灌溉45亩，群众增产增收",16,{"$nulls":3},16]
[65,"岳县农函〔2025〕25号","山塘清淤护砌（老区发展）","革命老区发展","县民政局","公田镇","港口村","港口村","产业发展","该项目为大干冲塘因低涵渗漏，无法蓄水，现对塘堤进行清淤护砌，长度约42米，高2.8米，厚0.1米，水域面积约为1.2亩清淤，塘堤整形及低涵维修，使其能够达到40余亩农田灌溉需求。",3,"2025.10.20","2025.10.30","改善农田水利建设，方便水田灌溉，确保农业水利种养殖业增产增收；带动产业发展。推进乡村振兴建设进程。",92,5,"受益脱贫群众22户92人，其中脱贫户数2户，脱贫5人增加收入巩固脱贫成果",null,3,null,null,3]
[66,"岳县农组发〔2025〕1号","猕猴桃基地后续管理","巩固拓展脱贫攻坚成果和乡村振兴","县农业农村局","公田镇","公田社区","公田社区","产业发展","培育，除草等日常管护",{"$f":"R72+S72+T72+U72","v":14},"2025.3.27",20251219,"壮大村集体经济",800,109,"受益群众21户其中脱贫户数及防止返贫监测对象户数13户，脱贫人口数及防止返贫监测对象人口数28人，通过以工代赈，增加收入巩固脱贫成果。",14,{"$nulls":3},14]
[67,"岳县农组发〔2025〕5号","铁山源养生稻种植（易地搬迁）","巩固拓展脱贫攻坚成果和乡村振兴","县发改局","公田镇","公田社区","公田社区","产业发展","养生稻种植",2,"2025.3.14","2025.11.24","壮大村集体经济",156,18,"受益群众156户其中脱贫户数及防止返贫监测对象户数8户，脱贫人口数及防止返贫监测对象人口数18人，通过以工代赈，增加收入巩固脱贫成果。",2,{"$nulls":3},2]
[68,"岳县农函〔2025〕25号","姜家冲路渠道新建","巩固拓展脱贫攻坚成果和乡村振兴","县农业农村局","公田镇","公田社区","公田社区","产业发展","新建渠道500米，渠道开挖回填，U型槽，24墙护砌。",5,"2025.10.20","2025.11.30","壮大村集体经济，改善农田灌溉，提升村民的生活质量。",850,55,"受益群众120户其中脱贫户数及防止返贫监测对象户数15户，脱贫人口数及防止返贫监测对象人口数55人，通过以工代赈，增加收入巩固脱贫成果。",null,5,null,null,5]
[69,"岳县农组发〔2025〕1号，岳县农组发〔2025〕5号，岳县农联发〔2025〕9号","产业奖补","巩固拓展脱贫攻坚成果和乡村振兴","县农业农村局","公田镇","公田镇","公田镇","产业发展","对全镇范围内脱贫户、监测户提供产业奖补",69.62,"2025.7.7","2025.9.15","壮大村集体经济",3618,72,"带动脱贫户和周边零散劳动力就业80人。",56.62,13,null,null,69.62]
[70,"岳县农组发〔2025〕1号","易地搬迁点资产维修、维护","巩固拓展脱贫攻坚成果和乡村振兴","县农业农村局","公田镇","公田镇","公田镇","乡村建设行动","对易地搬迁安置点现有资产进行维修与维护",24,"2025.6.26","2025.7.11","壮大村集体经济",1890,56,"带动就业，增加农户收入",24,{"$nulls":3},24]
[71,"岳县农组发〔2025〕1号","栀子花种植","巩固拓展脱贫攻坚成果和乡村振兴","县农业农村局","公田镇","横铺村","横铺村","产业发展","对20亩山地进行翻耕，种植栀子花，发展村集体产业。",5,"2025.10.11",20251219,"壮大村集体经济",199,3,"受益群众68户其中贫户数及防止返贫监测对象户数2户，脱贫人口数及防止返贫监测对象人口数3人，通过以工代赈，增加收入巩固脱贫成果",5,{"$nulls":3},5]
[72,"岳县农函〔2025〕25号","横铺村铺兴组花坟坡塘维修","巩固拓展脱贫攻坚成果和乡村振兴","县农业农村局","公田镇","横铺村","横铺村","产业发展","横铺村铺兴组花坟坡塘清淤扩容水面面积新增扩容1亩、低涵重新改造、溢洪道疏通、塘堤加固长35米、高2.7米。",5,"2025.10.15",20251219,"改善种植、塘新增恢复灌溉面积5亩，改善灌面积10亩，新增蓄水能力600（立方米抗旱保灌，产业帮扶。",320,15,"受益群众78户其中贫户数及防止返贫监测对象户数6户，脱贫人口数及防止返贫监测对象人口数15人，通过以工代赈，增加收入巩固脱贫成果",null,5,null,null,5]
[73,"岳县农组发〔2025〕1号","丁家茶叶基地后续管理","巩固拓展脱贫攻坚成果和乡村振兴","县农业农村局","公田镇","饶港村","饶港村","产业发展","159.7亩茶园补苗、锄草、施肥、剪枝、园区日常维护、排水沟建设",20,20250301,20251219,"壮大村集体经济",75,65,"带动脱贫户和周边零散劳动力就业140人。",20,{"$nulls":3},20]
[74,"岳县农组发〔2025〕5号","茶叶基地日常维护管理、培育（易地搬迁）","巩固拓展脱贫攻坚成果和乡村振兴","县发改局","公田镇","饶港村","饶港村","产业发展","茶叶基地日常维护管理、培育",3,20250301,20251219,"壮大村集体经济",166,7,"带动脱贫户和周边零散劳动力就业26人",3,{"$nulls":3},3]
[75,"岳县农函〔2025〕26号","茶叶加工厂房建设","巩固拓展脱贫攻坚成果和乡村振兴","县农业农村局","公田镇","饶港村","饶港村","产业发展","新建茶叶加工厂房面积0.6亩，揉茶机、茶叶杀青机、烘干机等茶叶加工设备购置",45,"2025.10.6",20251219,"车间建设带动当地劳动力用工，壮大村集体经济。",1104,48,"鼓励脱贫（监测）人员种植茶叶，增加收入途经，巩固脱贫成效。",null,45,null,null,45]
[76,"岳县农组发〔2025〕1号","塘田村大棚产业基地藜蒿种植","巩固拓展脱贫攻坚成果和乡村振兴","县农业农村局","公田镇","塘田村","塘田村","产业发展","培育，除草等日常管护",10,"2025.6.18",20251219,"土地流转，带动生产",138,21,"鼓励脱贫（监测）人员种植茶叶，增加收入途经，巩固脱贫成效。",10,{"$nulls":3},10]
[77,"岳县农组发〔2025〕2号","集中育秧基地（集体经济）","巩固拓展脱贫攻坚成果和乡村振兴","县农业农村局","公田镇","塘田村","塘田村","产业发展","集中育秧大棚基地占地面积40余亩，将种植经济作物，采用“村集体+合作社”的模式，实行五五分红，解决本村村民50人就业",50,"2025.6.18",20251219,"壮大村集体经济",612,16,"带动脱贫户和周边零散劳动力收入。",50,{"$nulls":3},50]
[78,"岳县农组发〔2025〕1号，岳县农组发〔2025〕5号","蒌下黄精种植（易地搬迁）","巩固拓展脱贫攻坚成果和乡村振兴","县发改局","公田镇","铁山村","铁山村","产业发展","补种苗、除草等日常管护；40亩",11,"2025.5.25","2025.7.15","壮大村集体经济",199,3,"受益塘田村增加村集体经济，通过以工代赈，增加部分家庭收入巩固脱贫成果",11,{"$nulls":3},11]
[79,"岳县农组发〔2025〕1号","小米辣椒种植","巩固拓展脱贫攻坚成果和乡村振兴","县农业农村局","公田镇","五龙桥村","五龙桥村","产业发展","承包荒田种植小米辣椒80余亩",5,"2025.05.25",20251219,"土地流转，带动生产",75,65,"本项目受益群众42户199人，其中脱贫户数及防止返贫监测对象户数13户46人，通过蒌下黄精种植管护，改善部分脱贫户人口生活和发展壮大村集体经济",5,{"$nulls":3},5]
[80,"岳县农组发〔2025〕5号","曹联组道路拓宽","巩固拓展脱贫攻坚成果和乡村振兴","县农业农村局","公田镇","五龙桥村","五龙桥村","乡村建设行动","护坡片石护彻，长40米、高3米。",3,"2025.07.02",20251219,"壮大村集体经济",120,5,"受益群众46户167人其中脱贫户数及防止返贫监测对象户数28户，脱贫人口数及防止返贫监测对象人口数72人，增加收入巩固脱贫成果.",3,{"$nulls":3},3]
[81,"岳县农组发〔2025〕1号","向佳村三淼猪场入股分红","巩固拓展脱贫攻坚成果和乡村振兴","县农业农村局","公田镇","向佳村","向佳村","产业发展","三淼猪场入股分红",20,"2025.6.5","2025.8.20","收益分红，资产入股",86,12,"受益群众53户265人其中脱贫户数及防止返贫监测对象户数11户，脱贫人口数及防止返贫监测对象人口数26人，增加收入巩固脱贫成果.",20,{"$nulls":3},20]
[82,"岳县农组发〔2025〕5号","全福片1.2.3.4组农田抗旱","巩固拓展脱贫攻坚成果和乡村振兴","县农业农村局","公田镇","向佳村","向佳村","产业发展","维护渠道1500多米及100米管道维护，添置抽水设备及人员用工。",5,"2025.8.10","2025.10.28","壮大村集体经济",116,3,"发展集体经济.带动村民.脱贫人口.监测对象人口增收",5,{"$nulls":3},5]
[83,"岳县农函〔2025〕25号","杨家组门前生活塘维修","巩固拓展脱贫攻坚成果和乡村振兴","县农业农村局","公田镇","向佳村","向佳村","产业发展","水塘面积350平米.塘底清污硬化.塘堤长25米.宽21米加固硬化",5,"2025.7.5","2025.10.15","改善村民生产生活用水.提升村民的生活质量",69,1,"帮助群众脱贫人口增产增收",null,5,null,null,5]
[84,"岳县农函〔2025〕26号","全福片港渠清淤、维护","巩固拓展脱贫攻坚成果和乡村振兴","县农业农村局","公田镇","向佳村","向佳村","产业发展","维修港渠1.6公里，清淤及维护。",5,"2025.8.15","2025.10.30","增强抗旱规模力度，增加村民收入，增强集体经济发展",3670,152,"受益群众1040户其中脱贫户50户152人，改善农民生活质量.提高农民产业发展.",null,5,null,null,5]
[85,"岳县农组发〔2025〕1号","联胜水产养殖","巩固拓展脱贫攻坚成果和乡村振兴","县农业农村局","公田镇","长安村","长安村","产业发展","联胜水产养殖扩建15亩土地用于龙虾养殖",7,"2025.5.15","2025.7.17","壮大村集体经济",3670,162,"受益向佳村增加村集体经济，通过以工代赈，增加部分家庭收入巩固脱贫成果",7,{"$nulls":3},7]
[86,"岳县农组发〔2025〕1号","坪桥片一组、二组上门塘清淤护砌","巩固拓展脱贫攻坚成果和乡村振兴","县农业农村局","黄沙街镇","苍坪村","苍坪村","产业发展","20亩灌溉塘清淤护砌，解决坪桥片一组、二组近400亩稻田灌溉",10,"2025/10/01","2025-11-30","保障农业生产",251,50,"群众积极参与获得工资",10,{"$nulls":3},10]
[87,"岳县农组发〔2025〕1号","坪桥片九组机埠新建","巩固拓展脱贫攻坚成果和乡村振兴","县农业农村局","黄沙街镇","苍坪村","苍坪村","产业发展","解决坪桥片九组稻田灌溉",14,"2025/07/01","2025-08-30","保障农业生产",180,23,"群众积极参与获得工资",14,{"$nulls":3},14]
[88,"岳县农组发〔2025〕2号","罗汉果与金盆柚种植项目（集体经济）","巩固拓展脱贫攻坚成果和乡村振兴","县农业农村局","黄沙街镇","苍坪村","苍坪村","产业发展","流转土地350亩，因地制宜发展罗汉果、金盆柚基地、甜叶菊种植、黄桃种植等特色产业，并免费为农户进行专业技术培训。以农户加村集体的运营模式给农户增收，促进村集体发展。",50,"2025/11/01",20251219,"带动周边经济发展和解决有劳动能力的贫困户就业。促进脱贫户、监测户多渠道长期稳定收益增收",100,20,"群众积极参与获得工资",50,{"$nulls":3},50]
[89,"岳县农组发〔2025〕1号","茶场社区茶绿樱花红旅游产业道路建设（二期）","巩固拓展脱贫攻坚成果和乡村振兴","县农业农村局","黄沙街镇","茶场社区","茶场社区","乡村建设行动","茶绿樱花红旅游产业道路拓宽硬化，长度3km，由原路面5m拓宽至8m",23,"2025-01-03","2025-04-21","方便居民通行",351,100,"群众积极参与获得工资",23,{"$nulls":3},23]
[90,"岳县农组发〔2025〕1号","大群界柳元七路段拓宽硬化","巩固拓展脱贫攻坚成果和乡村振兴","县农业农村局","黄沙街镇","大金村","大金村","乡村建设行动","7亩灌溉塘清淤维修，解决近200亩稻田灌溉",3,"2025/11/01","2025-12-01","按时完成大群界柳元七路段拓宽硬化",175,35,"群众积极参与获得工资",3,{"$nulls":3},3]
[91,"岳县农组发〔2025〕1号","大众片一组机埠新建","巩固拓展脱贫攻坚成果和乡村振兴","县农业农村局","黄沙街镇","大金村","大金村","产业发展","解决大众片一组稻田灌溉",18,"2025-05-27","2025-10-15","解决大众片一组稻田灌溉",263,15,"群众积极参与获得工资",18,{"$nulls":3},18]
[92,"岳县农组发〔2025〕1号","余兰片四组鹿场产业道路硬化","巩固拓展脱贫攻坚成果和乡村振兴","县农业农村局","黄沙街镇","大明村","大明村","乡村建设行动","余兰片四组鹿场进出道路及地坪硬化，道路120米长，地坪240平方米",4,"2025-07-02","2025-07-05","方便居民通行，推动鹿场生产发展",354,65,"群众积极参与获得工资",4,{"$nulls":3},4]
[93,"岳县农组发〔2025〕1号","余兰片机埠新建","巩固拓展脱贫攻坚成果和乡村振兴","县农业农村局","黄沙街镇","大明村","大明村","产业发展","解决余兰片稻田灌溉",15,"2025/10/01","2025-10-15","解决余兰片稻田灌溉",187,32,"群众积极参与获得工资",15,{"$nulls":3},15]
[94,"岳县农组发〔2025〕5号","大明村大矶头、沙园、温家冲机埠机埠维修","巩固拓展脱贫攻坚成果和乡村振兴","县农业农村局","黄沙街镇","大明村","大明村","产业发展","大矶头、沙园、温家冲机埠维修",12.2,"2025-12-01","2025-12-10","按时完成机埠维修，保障农田用水",369,21,"群众积极参与获得工资",12.2,{"$nulls":3},12.2]
[95,"岳县农组发〔2025〕1号","御景轩苗木种植项目","巩固拓展脱贫攻坚成果和乡村振兴","县农业农村局","黄沙街镇","御景轩","御景轩","产业发展","御景轩苗木种植（150亩树木种植、移栽、施肥、培育）",10,"2025-12-01",20251219,"种植御景轩苗木150亩",80,6,"群众积极参与获得工资",10,{"$nulls":3},10]
[96,"岳县农组发〔2025〕5号","复兴村防汛抗旱","巩固拓展脱贫攻坚成果和乡村振兴","县农业农村局","黄沙街镇","御景轩","御景轩","产业发展","和平支渠、高峰岭支渠、天杨支渠渠道清淤",5,"2025-07-05","2025-07-22","完成和平支渠、高峰岭支渠、天杨支渠渠道清淤，做好防汛抗旱工作",300,12,"群众积极参与获得工资",5,{"$nulls":3},5]
[97,"岳县农组发〔2025〕1号","梓强油茶种植","巩固拓展脱贫攻坚成果和乡村振兴","县农业农村局","黄沙街镇","和谐村","和谐村","产业发展","梓强油茶种植（600亩油茶树种植、移栽、施肥、培育）",11,"2025-06-19","2025-09-20","种植梓强油茶600亩",120,10,"群众积极参与获得工资",11,{"$nulls":3},11]
[98,"岳县农组发〔2025〕1号","新华小学茶油烘干厂场地建设","巩固拓展脱贫攻坚成果和乡村振兴","县农业农村局","黄沙街镇","和谐村","和谐村","产业发展","1200亩场地建设，入股新华小学茶油烘干厂场地建设项目，增加村集体分红。场地开发建设后资产为和谐村集体所有，和谐村集体经营管理",20,"2025-06-05","2025-12-20","增加村集体分红",240,32,"群众积极参与获得工资",20,{"$nulls":3},20]
[99,"岳县农组发〔2025〕1号","大联片五组、六组机埠维修","巩固拓展脱贫攻坚成果和乡村振兴","县农业农村局","黄沙街镇","荷塘村","荷塘村","产业发展","解决大联片五组、六组稻田灌溉",22,"2025-10-22","2025-11-22","解决大联片五组、六组稻田灌溉",400,154,"群众积极参与获得工资",22,{"$nulls":3},22]
[100,"岳县农组发〔2025〕1号","樱花苗木种植","巩固拓展脱贫攻坚成果和乡村振兴","县农业农村局","黄沙街镇","黄沙村\n村委会","黄沙村\n村委会","产业发展","苗木种植、移栽、施肥、培育110亩",5,"2025-06-19","2025-09-20","发展产业经济",180,20,"群众积极参与获得工资",5,{"$nulls":3},5]
[101,"岳县农组发〔2025〕1号","周冲片一组门前机耕路修建拓宽","巩固拓展脱贫攻坚成果和乡村振兴","县农业农村局","黄沙街镇","黄沙村\n村委会","黄沙村\n","乡村建设行动","长300米道路平整，修建拓宽1.6米并硬化",5,"2025-06-22","2025-11-21","按时完成道路建设",350,68,"群众积极参与获得工资",5,{"$nulls":3},5]
[102,"岳县农组发〔2025〕1号，岳县农组发〔2025〕5号，岳县农联发〔2025〕9号","监测户、脱贫户产业奖补","巩固拓展脱贫攻坚成果和乡村振兴","县农业农村局","黄沙街镇","黄沙街镇\n人民政府","黄沙街镇\n人民政府","产业发展","用于发放监测户、脱贫户肥料、种苗、鸡苗等生产物资",55.87,"2025-06-22","2025-11-20","帮助监测户，脱贫户发展产业、增收",2100,2100,"群众积极参与获得工资",45.87,10,null,null,55.87]
[103,"岳县农组发〔2025〕5号","黄秀村政家屋机埠改造及维修工程","巩固拓展脱贫攻坚成果和乡村振兴","县农业农村局","黄沙街镇","黄秀村","黄秀村","产业发展","政家屋机埠改造工程包括原机埠拆除，土方开挖、土方回填、机房基础浆砌石挡土墙，新建机房，购买设备；嘴上晏、旁家庄机埠维修工程包括机埠房屋面维修，内外墙凿除重新粉刷水泥压光，更换所有设备",14.8,"2025-11-01","2025-11-20","按时完成机埠改造，更新设备",101,65,"群众积极参与获得工资",14.8,{"$nulls":3},14.8]
[104,"岳县农组发〔2025〕1号","群乐片十三组门前塘水利建设","巩固拓展脱贫攻坚成果和乡村振兴","县农业农村局","黄沙街镇","刘士奇村","刘士奇村","产业发展","刘士奇村群乐片十三组门前塘护彻、清淤2亩",5,"2025-11-01","2025-11-20","做好前塘护彻、清淤",369,40,"群众积极参与获得工资",5,{"$nulls":3},5]
[105,"岳县农组发〔2025〕1号","先锋片六组机埠新建","巩固拓展脱贫攻坚成果和乡村振兴","县农业农村局","黄沙街镇","龙凤村","龙凤村","产业发展","解决先锋片六组稻田灌溉",14,"2025-05-21","2025-05-29","解决380亩农田灌溉",240,35,"群众积极参与获得工资",14,{"$nulls":3},14]
[106,"岳县农组发〔2025〕5号","龙凤村青山片邓冲二塘维修清淤","巩固拓展脱贫攻坚成果和乡村振兴","县农业农村局","黄沙街镇","龙凤村","龙凤村","产业发展","该塘面积4800平方米，灌溉面积260亩，因年久失修无法灌需要对该塘进行清淤7000立方米，塘堤70米进行维修加固，低涵，高涵，修建溢洪道",5,"2025-11-30",20251219,"解决260亩农田灌溉",140,12,"群众积极参与获得工资",5,{"$nulls":3},5]
[107,"岳县农组发〔2025〕2号","樱花苗木园基地建设","巩固拓展脱贫攻坚成果和乡村振兴","县农业农村局","黄沙街镇","龙凤村","龙凤村","产业发展","流转承包600亩土地，种植樱花苗木，拓宽道路，发展农旅产业。入股该公司在本村樱花苗木基地建设项目，通过出售苗木，产生收益，收益百分之二十归本村所有",50,"2025-11-30",20251219,"发展产业经济",200,20,"群众积极参与获得工资",50,{"$nulls":3},50]
[108,"岳县农组发〔2025〕1号","新堤片黄应时大塘水稻基地配套水利设施建设","巩固拓展脱贫攻坚成果和乡村振兴","县农业农村局","黄沙街镇","新天村","新天村","产业发展","压水涵建设及黄应时大塘堤坡硬化100米",9,"2025-05-30","2025/6/20","改善灌溉条件，促进增收",420,35,"群众积极参与获得工资",9,{"$nulls":3},9]
[109,"岳县农组发〔2025〕1号","荷塘村滨湖片白虎山荷塘机埠重建工程","巩固拓展脱贫攻坚成果和乡村振兴","县农业农村局","黄沙街镇","荷塘村","荷塘村","产业发展","机埠设备换新、管道换新50米、硬化工作面520平方、下火线开关、防汛吊机重新安装、土方填坑、泥沙挡土墙等",13,"2025-11-30",20251219,"改善灌溉条件，促进增收",110,20,"群众积极参与获得工资",13,{"$nulls":3},13]
[110,"岳县农组发〔2025〕1号","黄应时冷水坡机埠建设","巩固拓展脱贫攻坚成果和乡村振兴","县农业农村局","黄沙街镇","新天村","新天村","产业发展","机房建设、电力架设、管道铺设、电机及水泵建设",16,"2025-11-30",20251219,"改善灌溉条件，促进增收",66,30,"群众积极参与获得工资",16,{"$nulls":3},16]
[111,"岳县农组发〔2025〕1号","中兴村水稻种植","巩固拓展脱贫攻坚成果和乡村振兴","县农业农村局","黄沙街镇","中兴村","中兴村","产业发展","水稻种植60亩，育秧、翻耕、机插",2,"2025-04-20","2025-05-10","解决粮食生产",120,20,"群众积极参与获得工资",2,{"$nulls":3},2]
[112,"岳县农组发〔2025〕1号","和平片机埠维修","巩固拓展脱贫攻坚成果和乡村振兴","县农业农村局","黄沙街镇","中兴村","中兴村","产业发展","解决和平片稻田灌溉",13,"2025-05-17","2025/8/5","解决和平片粮食生产抗旱灌溉",245,24,"群众积极参与获得工资",13,{"$nulls":3},13]
[113,"岳县农组发〔2025〕5号","中兴村光华片段铁山渠道硬化（第一期）","巩固拓展脱贫攻坚成果和乡村振兴","县农业农村局","黄沙街镇","中兴村","中兴村","产业发展","中兴村光华片段铁山渠道硬化2.5km,高50cm，坡度60度，底宽40cm",20,"2025-05-15","2025-08-12","解决光华片粮食生产抗旱灌溉",346,25,"群众积极参与获得工资",20,{"$nulls":3},20]
[114,"岳县农函〔2025〕25号","玉华船大路至G240到玉华小学公路维修","巩固拓展脱贫攻坚成果和乡村振兴","县农业农村局","黄沙街镇","复兴村","复兴村","乡村建设行动","玉华船大路至G240到玉华小学5.5km公路维修",10,"2025-10-15","2025/11/15","方便群众出行",400,45,"群众积极参与获得工资",null,10,null,null,10]
[115,"岳县农函〔2025〕25号","新华片13、14组牛山塘清淤加固","巩固拓展脱贫攻坚成果和乡村振兴","县农业农村局","黄沙街镇","和谐村","和谐村","产业发展","新华片13、14组4亩牛山塘清淤加固",10,"2025-06-05","2025-10-25","能有效改善农田灌溉条件，提高农业产量，有助于保障农村集中供水，解决农村用水问题",480,50,"群众积极参与获得工资",null,10,null,null,10]
[116,"岳县农函〔2025〕25号","钟家组至天然十四组道路扩宽","巩固拓展脱贫攻坚成果和乡村振兴","县农业农村局","黄沙街镇","新天村","新天村","乡村建设行动","钟家组至天然十四组道路硬化3.5米*890米",5,2025.11,20251219,"给附近村民道路运输以及耕种通行带来便利",445,75,"群众积极参与获得工资",null,5,null,null,5]
[117,"岳县农函〔2025〕25号","大联上节塘清淤维修工程","巩固拓展脱贫攻坚成果和乡村振兴","县农业农村局","黄沙街镇","荷塘村","荷塘村","产业发展","600立方上节塘清淤，硬化内坡，按照护栏",5,"2025.10.1","2025.10.20","上节塘灌溉范围覆盖200多亩农田，护栏安装给村民提供了安全出行的环境",398,34,"群众积极参与获得工资",null,5,null,null,5]
[118,"岳县农函〔2025〕25号","大众片柳元七道路升级改造","巩固拓展脱贫攻坚成果和乡村振兴","县农业农村局","黄沙街镇","大金村","大金村","乡村建设行动","长1.5公里，原3.5米路面加宽至4.5米",5,"2025-12-01","2025-12-18","发动群众自筹捐款50万，预计10月20日之前完工",300,25,"群众积极参与获得工资",null,5,null,null,5]
[119,"岳县农函〔2025〕25号","塘内坡硬化，低涵改造，溢洪道维修硬化","巩固拓展脱贫攻坚成果和乡村振兴","县农业农村局","黄沙街镇","大明村","大明村","产业发展","新塘面积8亩，塘内坡硬化，低涵改造，溢洪道维修硬化",3,"2025-08-25","2025-09-05","保障农业生产",360,32,"群众积极参与获得工资",null,3,null,null,3]
[120,"岳县农函〔2025〕26号","船大路老街桥头段附属设施建设","巩固拓展脱贫攻坚成果和乡村振兴","县农业农村局","黄沙街镇","黄沙村","黄沙村","乡村建设行动","船大路荆州河老街桥头段长96米，高0.95米护坡；老街桥头段沿街排水沟建设，长105米，宽0.4米",5,"2025.8.26","2025.9.10","改善脱贫户及普通老百姓人居环境卫生，保障安全出行",200,24,"群众积极参与获得工资",null,5,null,null,5]
[121,"岳县农组发〔2025〕1号，岳县农组发〔2025〕5号","产业奖补","巩固拓展脱贫攻坚成果和乡村振兴","县农业农村局","鹿角","鹿角区域发展服务中心","鹿角区域发展服务中心","产业发展","中心所有监测户和脱贫户庭院经济产业奖补",25.19,"2025.5.15","2025.7.10","壮大村集体经济",480,45,"群众积极参与获得工资",25.19,{"$nulls":3},{"$f":"K127","v":25.19}]
[122,"岳县农组发〔2025〕1号","大成片渔池产业道路硬化","巩固拓展脱贫攻坚成果和乡村振兴","县农业农村局","鹿角","荣湾湖村","荣湾湖村","乡村建设行动","大成片渔池产业道路硬化长300米，宽3.5米，C30混凝土硬化20公分厚",5,"2025.5.15","2025.6.20","大成片渔池产业道路硬化长300米、宽3.5米C30混凝土硬化20公分厚，带动产业发展。",200,15,"群众积极参与获得工资",5,{"$nulls":3},5]
[123,"岳县农组发〔2025〕5号","抗旱水井","巩固拓展脱贫攻坚成果和乡村振兴","县农业农村局","鹿角","荣湾湖村","荣湾湖村","产业发展","保持水稻耕种，大成片十组、孙坞片六组（2）、高峰片一组共四口水井，用于水稻灌溉。",5,"2025.7.12","2025.7.19","保持水稻耕种，大成片十组、孙坞片六组（2）、高峰片一组共四口水井，用于水稻灌溉。",120,8,"群众积极参与获得工资",5,{"$nulls":3},5]
[124,"岳县农组发〔2025〕1号","鹿角片付家冲童家塘清淤维修","巩固拓展脱贫攻坚成果和乡村振兴","县农业农村局","鹿角","鹿角村","鹿角村","产业发展","鹿角村付家冲童家塘水面面积约7亩，进行山塘清淤维修、护坡、护栏等基础设施建设",5,"2025.6.2","2025.7.13"," 鹿角片付家冲童家塘7亩水面清淤维修，解决鹿角村鹿角片六组组屋场三十多亩水田灌溉以及其他农业用水。",250,40,"群众积极参与获得工资",5,{"$nulls":3},5]
[125,"岳县农组发〔2025〕2号","金盆柚种植项目（集体经济）","巩固拓展脱贫攻坚成果和乡村振兴","县农业农村局","鹿角","鹿角村","鹿角村","产业发展","村收回集体林场，开垦面积约300亩，总投资约130万种植金盆柚；金盆柚种植由村集体、岳阳志存种植有限公司和杨茂片村民三方共同出资，村集体占股10%，岳阳志存种植有限公司占股70%；杨茂片村民占股20%。金盆柚种植基地四年后挂果成熟出售",50,"2025.7.2","2025.10.07","村收回集体林场300亩，金盆柚种植300亩，项目总投资约130万元\n",203,15,"带动生产",50,{"$nulls":3},50]
[126,"岳县农函〔2025〕25号","抗旱水井新建","巩固拓展脱贫攻坚成果和乡村振兴","县农业农村局","鹿角","鹿角村","鹿角村","产业发展","保持水稻耕种，杨茂片、鹿角片、济美片共四口水井新建，用于水稻灌溉。",5,"2025.7.10","2025.7.20","保持水稻耕种，杨茂片、鹿角片、济美片共四口水井新建，用于水稻灌溉。",389,22,"带动生产",null,5,null,null,5]
[127,"岳县农组发〔2025〕1号，岳县农组发〔2025〕5号，岳县农联发〔2025〕9号","产业奖补","巩固拓展脱贫攻坚成果和乡村振兴","县农业农村局","麻塘办事处","麻塘街道","麻塘街道","产业发展","用于各村脱贫户、监测户（含两有人员）自主发展种养、殖业、庭院经济及支持集体经济、合作发展委托帮扶",63.24,"2025-05-24","2025-10-12","壮大村集体经济",3618,72,"带动脱贫户和周边零散劳动力就业80人。",53.24,10,null,null,63.24]
[128,"岳县农组发〔2025〕1号","东风村水稻基地抗旱渠道改建","巩固拓展脱贫攻坚成果和乡村振兴","县农业农村局","麻塘办事处","东风村村委会","东风村村委会","产业发展","东风垸水稻基地抗旱渠道改建（长200米宽0.5米）",7,"2025-10-28","2025-11-20","改善农田灌溉条件",120,9,"改善灌溉条件受益",7,{"$nulls":3},7]
[129,"岳县农组发〔2025〕1号","瓜蒌子基地改造扩建","巩固拓展脱贫攻坚成果和乡村振兴","县农业农村局","麻塘办事处","东风村村委会","东风村村委会","产业发展","瓜蒌子基地打100米深水井一口、新建水塔一座",3,"2025-06-13","2025-06-20","改善农田灌溉条件",200,8,"分红受益",3,{"$nulls":3},3]
[130,"岳县农组发〔2025〕5号","东风村抗旱设施建设项目","巩固拓展脱贫攻坚成果和乡村振兴","县农业农村局","麻塘办事处","东风村村委会","东风村村委会","产业发展","新建抗旱井一个、机埠更换设备一套、架设线路300米",{"$f":"R136+S136+T136+U136","v":6},"2025-08-08","2025-08-23","改善农田灌溉条件",200,38,"改善灌溉条件受益",6,{"$nulls":3},6]
[131,"岳县农组发〔2025〕1号","金垅村香莲种植基地项目","巩固拓展脱贫攻坚成果和乡村振兴","县农业农村局","麻塘办事处","金垅村村委会","金垅村村委会","产业发展","基地购置旋耕机1台，肥料一批",10,"2025-07-14","2025-08-25","增加集体经济收入",60,17,"分红受益",10,{"$nulls":3},10]
[132,"岳县农组发〔2025〕5号","金垅村粮食监测基地抗旱设施建设项目","巩固拓展脱贫攻坚成果和乡村振兴","县农业农村局","麻塘办事处","金垅村村委会","金垅村村委会","产业发展","机埠（3座）更换部分设备3套、新增三套临时抗旱设备",4,"2025-08-19","2025-08-27","改善农田灌溉条件",200,30,"改善灌溉条件受益",4,{"$nulls":3},4]
[133,"岳县农组发〔2025〕1号","麻塘村新建抗旱深水井项目","巩固拓展脱贫攻坚成果和乡村振兴","县农业农村局","麻塘办事处","麻塘村村委会","麻塘村村委会","产业发展","新钻2口深水井，安装水电管网及深水泵",5,"2025-11-13","2025-11-30","改善农田灌溉条件",1523,13,"改善灌溉条件受益",5,{"$nulls":3},5]
[134,"岳县农组发〔2025〕5号","茶园道路硬化","巩固拓展脱贫攻坚成果和乡村振兴","县农业农村局","麻塘办事处","原种场","原种场","乡村建设行动","改善原种场眉山韵茶园基础设施。投入10万元，全长400米，宽3米，厚度20公分。",10,"2025-09-15","2025-09-22","改善生产出行条件",60,7,"改善生产、出行条件受益",10,{"$nulls":3},10]
[135,"岳县农组发〔2025〕2号","麻塘村入股湖南德利亨新材料科技有限公司分红项目（集体经济）","巩固拓展脱贫攻坚成果和乡村振兴","县委组织部","麻塘办事处","麻塘村村委会","麻塘村村委会","产业发展","麻塘村向湖南德利亨新材料科技有限公司投资50万元现金入股，分红10年，前5年每年回本息8万元，后5年每年回本息7万元。",50,"2025-06-17","2025-06-27","增加集体经济收25000元/年",1000,200,"分红受益",50,{"$nulls":3},50]
[136,"岳县农函〔2025〕25号","洞庭村铁庄组山塘清淤护砌","巩固拓展脱贫攻坚成果和乡村振兴","县农业农村局","麻塘办事处","洞庭村村委会","洞庭村村委会","产业发展","山塘清淤约4亩、片石护砌约50平方米",5,"2025-09-26","2025-10-16","改善稻田灌溉条件，使农户增产增收。",190,40,"改善灌溉条件受益",null,5,null,null,5]
[137,"岳县农函〔2025〕25号","石子山抗战路（老区发展）","革命老区发展","县民政局","麻塘办事处","麻塘村村委会","麻塘村村委会","乡村建设行动","2400米，道路基础建设，铺设石子、平整、压实",3,"2025.9.29","2025.10.10","配合旅游开发恢复抗战遗址",3950,116,"部分群众筹工、出行直接受益",null,3,null,null,3]
[138,"岳县农组发〔2025〕1号，岳县农函〔2025〕26号","渔场繁殖一组道路硬化","巩固拓展脱贫攻坚成果和乡村振兴","县农业农村局","麻塘办事处","麻塘居委会","居委会","乡村建设行动","新建道路硬化约400*3*0.2米",10,"2025/10/2","2025-10-06","改善生产、出行条件、促进增收",70,15,"改善生产、出行条件受益",5,5,null,null,10]
[139,"岳县农函〔2025〕26号","永和片团结组流家塘维修项目","巩固拓展脱贫攻坚成果和乡村振兴","县农业农村局","麻塘办事处","麻布山村村委会","麻布山村村委会","产业发展","山塘清淤转运3200m³",5,"2025-09-25","2025-09-30","改善农田灌溉条件",56,7,"改善灌溉条件受益",null,5,null,null,5]
[140,"岳县农函〔2025〕26号","永和片团结组地质灾害点治理项目","巩固拓展脱贫攻坚成果和乡村振兴","县农业农村局","麻塘办事处","麻布山村村委会","麻布山村村委会","乡村建设行动","地质灾害治理200m，开挖转运土方3600m³",3,"2025-09-25","2025-10-15","避险解困、改善居住条件",450,7,"改善安全居住条件受益",null,3,null,null,3]
[141,"岳县农函〔2025〕26号","东风村各公组水渠建设项目","巩固拓展脱贫攻坚成果和乡村振兴","县农业农村局","麻塘办事处","东风村村委会","东风村村委会","产业发展","新建水渠长200米，宽0.4米，高0.5米",7,"2025-10-28","2025-11-20","改善农田灌溉条件",128,14,"改善灌溉条件受益",null,7,null,null,7]
[142,"岳县农组发〔2025〕5号","八斗安置点后续资产管护（易地搬迁）","巩固拓展脱贫攻坚成果和乡村振兴","县发改局","毛田镇","毛田镇","八斗安置点","产业发展"," 用于八斗安置点资产管护，涉及安置点范围内的艾叶种植基地维护、茶叶基地维护、艾叶加工车间相关附属配套建设。",15,2025.7,2025.9,"发展壮大产业项目，提高居民收入",372,372,"改善居住环境，促进安置点住房增收",15,{"$nulls":3},15]
[143,"岳县农组发〔2025〕1号","芭蕉村油茶基地建设","巩固拓展脱贫攻坚成果和乡村振兴","县农业农村局","毛田镇","芭蕉村","芭蕉村","产业发展","80亩油茶基地开垦种植，包括翻垦，施肥，培苗，除草，灌溉等",14,2025.5,2025.8,"发展壮大产业项目，提高集体经济收入",3486,283,"村集体增收，用于改善人居环境，及脱贫户等困难群体的救助",14,{"$nulls":3},14]
[144,"岳县农组发〔2025〕1号","白若金稻水稻种植","巩固拓展脱贫攻坚成果和乡村振兴","县农业农村局","毛田镇","白若村","白若村","产业发展","480亩水稻种植，包括种子，薄模，软盘，胶条，化肥，杀草药，耕田机，杂工等。",8,2025.5,2025.7,"发展壮大产业项目，提高集体经济收入",3100,475,"村集体增收，用于改善人居环境，及脱贫户等困难群体的救助",8,{"$nulls":3},8]
[145,"岳县农组发〔2025〕1号","道仁村金盆柚种植维护","巩固拓展脱贫攻坚成果和乡村振兴","县农业农村局","毛田镇","道仁村","道仁村","产业发展","40亩金盆柚种植，补苗，施肥，锄草，杀虫，自动灌溉设备维护等",10,2025.5,2025.12,"发展壮大产业项目，提高集体经济收入",329,87,"村集体增收，用于改善人居环境，及脱贫户等困难群体的救助",10,{"$nulls":3},10]
[146,"岳县农组发〔2025〕1号","黄茶产业基地项目","巩固拓展脱贫攻坚成果和乡村振兴","县农业农村局","毛田镇","黄道村","黄道村","产业发展","110亩黄茶基地维护，肥料、病虫防治，人工，基地道路维修",10,2025.5,2025.7,"发展壮大产业项目，提高集体经济收入",2249,126,"村集体增收，用于改善人居环境，及脱贫户等困难群体的救助",10,{"$nulls":3},10]
[147,"岳县农组发〔2025〕1号","中药材种植","巩固拓展脱贫攻坚成果和乡村振兴","县农业农村局","毛田镇","李塅村","李塅村","产业发展","中药村种植20亩，土地流转，白芨种苗，黄精种人工。",10,2025.5,2025.12,"发展壮大产业项目，提高集体经济收入",3086,223,"村集体增收，用于改善人居环境，及脱贫户等困难群体的救助",10,{"$nulls":3},10]
[148,"岳县农组发〔2025〕5号","棉花基地产业路建设","巩固拓展脱贫攻坚成果和乡村振兴","县农业农村局","毛田镇","李塅村","李塅村","乡村建设行动","600米产业路的基础开挖，土地平整。",3,2025.7,2025.11,"完善道路设施，方便群众出行",3086,223,"方便生产，带动产业发展",3,{"$nulls":3},3]
[149,"岳县农组发〔2025〕2号","众诚发艺项目（集体经济）","巩固拓展脱贫攻坚成果和乡村振兴","县农业农村局","毛田镇","李塅村","李塅村","产业发展","众诚发艺假发厂新增车间扩大建设，扩大规模，利用村里现有空闲地，在原假发厂边可以扩大建设300平方左右，可增加村集体经济收入15万元左右",50,2025.5,2025.12,"发展壮大产业项目，提高集体经济收入",860,95,"村集体增收，用于改善人居环境，及脱贫户等困难群体的救助",50,{"$nulls":3},50]
[150,"岳县农组发〔2025〕1号","卢塅村棉花种植","巩固拓展脱贫攻坚成果和乡村振兴","县农业农村局","毛田镇","卢塅村","卢塅村","产业发展","开垦荒地 60 亩种植棉花开垦荒地 60 亩种植棉花（土地平整、翻耕、深松、土地改良、灌溉沟渠修整，化肥农药地膜购买，种子消毒，播种采棉加工人工等）",10,2025.5,2025.12,"发展壮大产业项目，提高集体经济收入",4863,263,"村集体增收，用于改善人居环境，及脱贫户等困难群体的救助",10,{"$nulls":3},10]
[151,"岳县农组发〔2025〕1号","金盆柚水果\n种植基地建设","巩固拓展脱贫攻坚成果和乡村振兴","县农业农村局","毛田镇","毛田村","毛田村","产业发展","50亩金盆柚水果种植基地维护，包括人工，施肥，除草，灌溉，砌磡等。",8,2025.5,2025.12,"发展壮大产业项目，提高集体经济收入",2553,169,"村集体增收，用于改善人居环境，及脱贫户等困难群体的救助",8,{"$nulls":3},8]
[152,"岳县农组发〔2025〕1号","安置点后续资产管护","巩固拓展脱贫攻坚成果和乡村振兴","县农业农村局","毛田镇","毛田镇","毛田镇","乡村建设行动","用于全镇11个6户以上易地扶贫搬迁安置点后续资产维护与管理",33.01,2025.5,2025.12,"发展壮大产业项目，提高居民收入",568,568,"改善居住环境，促进安置点住房增收",33.01,{"$nulls":3},33.01]
[153,"岳县农组发〔2025〕1号，岳县农组发〔2025〕5号，岳县农联发〔2025〕9号","产业奖补","巩固拓展脱贫攻坚成果和乡村振兴","县农业农村局","毛田镇","毛田镇","毛田镇","产业发展","用于“两有人员”、脱贫户和监测户的产业奖补",116,2025.5,2025.12,"壮大村集体经济",3618,72,"带动脱贫户和周边零散劳动力就业80人。",103,13,null,null,116]
[154,"岳县农组发〔2025〕1号","孟城村黄茶基地维护","巩固拓展脱贫攻坚成果和乡村振兴","县农业农村局","毛田镇","孟城村","孟城村","产业发展","30亩黄茶基地维护与10亩扩种，包括开荒，人工，施肥，除草，灌溉等。",10,2025.5,2025.12,"发展壮大产业项目，提高集体经济收入",2387,194,"村集体增收，用于改善人居环境，及脱贫户等困难群体的救助",10,{"$nulls":3},10]
[155,"岳县农组发〔2025〕1号","鸣山村茶山种植产业发展","巩固拓展脱贫攻坚成果和乡村振兴","县农业农村局","毛田镇","鸣山村","鸣山村","产业发展","黄茶基地48亩维护管理，扩建20亩，土地流转，基地维护、施肥、病虫防治、抗旱、锄草、剪枝等，基地扩建20亩",10,2025.5,2025.11,"发展壮大产业项目，提高集体经济收入",2864,233,"村集体增收，用于改善人居环境，及脱贫户等困难群体的救助",10,{"$nulls":3},10]
[156,"岳县农组发〔2025〕1号","界头片茶叶种植","巩固拓展脱贫攻坚成果和乡村振兴","县农业农村局","毛田镇","南冲村","南冲村","产业发展","30亩茶叶种植，包括抛荒土地挖机开垦 ，人工清沟整垅，栽种茶苗，除草施肥，挖机修路，人工挖沟安装灌溉用水管道等。",11,2025.5,2025.11,"发展壮大产业项目，提高集体经济收入",236,33,"村集体增收，用于改善人居环境，及脱贫户等困难群体的救助",11,{"$nulls":3},11]
[157,"岳县农组发〔2025〕5号","毛田水库渠道维修","巩固拓展脱贫攻坚成果和乡村振兴","县农业农村局","毛田镇","南冲村","南冲村","产业发展","用于毛田镇饮用水源毛田水库东、西渠道维修，全长1000米",5,2025.7,{"v":2025.1,"d":"2025.10"},"完善渠道基础设施，优化水利功能",1540,148,"解决灌溉问题，提高产业发展",5,{"$nulls":3},5]
[158,"岳县农组发〔2025〕1号","西台村优质水稻种植","巩固拓展脱贫攻坚成果和乡村振兴","县农业农村局","毛田镇","西台村","西台村","产业发展","560亩优质水稻种植，包括种子，购育秧软盘，购薄膜，秧田机械平整工资。",13,2025.5,2025.7,"发展壮大产业项目，提高集体经济收入",120,11,"村集体增收，用于改善人居环境，及脱贫户等困难群体的救助",13,{"$nulls":3},13]
[159,"岳县农组发〔2025〕1号","黄精种植","巩固拓展脱贫攻坚成果和乡村振兴","县农业农村局","毛田镇","相思村","相思村","产业发展","10亩黄精种植，土地流转，翻耕种植人工费用，种苗，肥料，农膜、遮阳网、病虫防治等。",8,2025.5,2025.12,"发展壮大产业项目，提高集体经济收入",3049,195,"村集体增收，用于改善人居环境，及脱贫户等困难群体的救助",8,{"$nulls":3},8]
[160,"岳县农组发〔2025〕1号","小港村安全饮水项目","巩固拓展脱贫攻坚成果和乡村振兴","县农业农村局","毛田镇","小港村","小港村","乡村建设行动","小港村安全饮水工程，用于打三口井，两口各2立方，一口12立方。修建蓄水池96.8立方，铺设水管至屋场。",20,2025.5,2025.8,"完善道路设施，方便群众出行",2406,215,"保障安全饮水，带动务工",20,{"$nulls":3},20]
[161,"岳县农组发〔2025〕1号","小港村金盆柚种植后续维护","巩固拓展脱贫攻坚成果和乡村振兴","县农业农村局","毛田镇","小港村","小港村","产业发展","120亩金盆柚种植基地后续维护和管理，用于基地道路维护，清沟，灌溉用水，除草，施肥，修枝，除虫等维护工程。",10,2025.5,2025.8,"发展壮大产业项目，提高集体经济收入",2406,215,"村集体增收，用于改善人居环境，及脱贫户等困难群体的救助",10,{"$nulls":3},10]
[162,"岳县农组发〔2025〕5号","黄精种植基地维护项目（易地搬迁）","巩固拓展脱贫攻坚成果和乡村振兴","县发改局","毛田镇","小港村","小港村","产业发展","80亩黄精中药材基地维护",5,2025.7,2025.12,"发展壮大产业项目，提高集体经济收入",215,36,"村集体增收，用于改善人居环境，及脱贫户等困难群体的救助",5,{"$nulls":3},5]
[163,"岳县农组发〔2025〕1号","黄精种植","巩固拓展脱贫攻坚成果和乡村振兴","县农业农村局","毛田镇","英桥村","英桥村","产业发展","依托现有140亩黄桃基地，在现有黄桃基地上实现黄精种植80亩，包括种苗，肥料、病虫防治，锄草，人工等。",21,2025.5,2025.12,"发展壮大产业项目，提高集体经济收入",3049,195,"村集体增收，用于改善人居环境，及脱贫户等困难群体的救助",21,{"$nulls":3},21]
[164,"岳县农组发〔2025〕1号，岳县农组发〔2025〕5号","生姜种植","巩固拓展脱贫攻坚成果和乡村振兴","县农业农村局","毛田镇","云山村","云山村","产业发展","40亩生姜种植基地开垦与种植，包括机耕路，人工，生姜种，土地流转，土地整理，排水系统。",13,2025.5,2025.12,"发展壮大产业项目，提高集体经济收入",1000,148,"村集体增收，用于改善人居环境，及脱贫户等困难群体的救助",13,{"$nulls":3},13]
[165,"岳县农组发〔2025〕1号","艾叶种植","巩固拓展脱贫攻坚成果和乡村振兴","县农业农村局","毛田镇","中兴村","中兴村","产业发展","20亩艾叶种植，土地流转，挖机平整，土地翻耕，种苗，人工，肥料，维护除草，机耕路维修。",12,2025.5,2025.11,"发展壮大产业项目，提高集体经济收入",690,142,"村集体增收，用于改善人居环境，及脱贫户等困难群体的救助",12,{"$nulls":3},12]
[166,"岳县农组发〔2025〕1号","药材种植产业发展","巩固拓展脱贫攻坚成果和乡村振兴","县农业农村局","毛田镇","珠港村","珠港村","产业发展","种植中药材天麻20亩，包括土地流转，翻耕种植，购买种苗，肥料，农膜、遮阳网、病虫防治等。",10,2025.5,2025.12,"发展壮大产业项目，提高集体经济收入",488,150,"村集体增收，用于改善人居环境，及脱贫户等困难群体的救助",10,{"$nulls":3},10]
[167,"岳县农函〔2025〕25号","下屋组断头路建设（老区发展）","革命老区发展","县民政局","毛田镇","芭蕉村","芭蕉村","乡村建设行动","200米长，5米宽的断头路硬化",7,"2025.10.08","2025.10.28","完善道路设施，方便群众出行",168,14,"安全出行，带动务工",null,7,null,null,7]
[168,"岳县农函〔2025〕25号","珠港村九龙片青冲水库维修工程","巩固拓展脱贫攻坚成果和乡村振兴","县农业农村局","毛田镇","珠港村","珠港村","产业发展","清淤、低涵卧管绯修、外坡护砌，维修",5,2025.8,2025.12,"完善山塘基础设施，优化水利功能",950,102,"解决水库蓄水安全和灌溉",null,5,null,null,5]
[169,"岳县农函〔2025〕25号","道仁村道田线公路水毁公路维修","巩固拓展脱贫攻坚成果和乡村振兴","县农业农村局","毛田镇","道仁村","道仁村","乡村建设行动","路面、路基维修5公里",5,2025.8,2025.12,"完善道路设施，方便群众出行",238,65,"安全出行，带动务工",null,5,null,null,5]
[170,"岳县农函〔2025〕25号","西台村田花组至云塅公路维修","巩固拓展脱贫攻坚成果和乡村振兴","县农业农村局","毛田镇","西台村","西台村","乡村建设行动","4.2公里路有5处路面或路基等水毁损害点维修",5,2025.8,2025.9,"完善道路设施，方便群众出行",1900,89,"安全出行，带动务工",null,5,null,null,5]
[171,"岳县农函〔2025〕25号","甘云公路黄道村段拓宽升级项目","巩固拓展脱贫攻坚成果和乡村振兴","县民政局","毛田镇","黄道村","黄道村","乡村建设行动","甘云路（x131)黄道村段4.9公里，裁弯切直土石方、浆砌石堪、管道埋设、破路平整、沿线其他设施完善等。",10,"2025.7.19","2025.8.8","完善道路设施，方便群众出行",2218,136,"安全出行，带动务工",null,10,null,null,10]
[null,"岳县农函〔2025〕25号","甘云公路黄道村段拓宽升级项目","革命老区发展","县民政局","毛田镇","黄道村","黄道村",null,"甘云路（x131)黄道村段4.9公里，裁弯切直土石方、浆砌石堪、管道埋设、破路平整、沿线其他设施完善等。",3,"2025.7.19","2025.8.8","完善道路设施，方便群众出行",2218,136,"安全出行，带动务工",null,3,null,null,3]
[172,"岳县农函〔2025〕25号","南冲村界头片老屋组产业路墈护砌","巩固拓展脱贫攻坚成果和乡村振兴","县农业农村局","毛田镇","南冲村","南冲村","乡村建设行动","0.15公里路墈护砌",5,2025.8,2025.11,"完善道路设施，方便群众出行",98,12,"带动产业发展，带动务工",null,5,null,null,5]
[173,"岳县农函〔2025〕25号","鸣山村枫树组甘垅新修公路","巩固拓展脱贫攻坚成果和乡村振兴","县农业农村局","毛田镇","鸣山村","鸣山村","乡村建设行动","新修公路长1.2公里",6,2025.8,2025.12,"完善道路设施，方便群众出行",362,26,"安全出行，带动务工",null,6,null,null,6]
[174,"岳县农函〔2025〕25号","鸣山村枫树组长坡山塘维修","巩固拓展脱贫攻坚成果和乡村振兴","县农业农村局","毛田镇","鸣山村","鸣山村","产业发展","山塘低涵改造、清淤扩容、堤坡护砌",4,2025.8,2025.12,"完善山塘渠道基础设施，优化水利功能",435,42,"解决山塘蓄水安全和灌溉",null,4,null,null,4]
[175,"岳县农函〔2025〕25号","孟城村文洞片大平组道路拓宽","巩固拓展脱贫攻坚成果和乡村振兴","县农业农村局","毛田镇","孟城村","孟城村","乡村建设行动","300米道路拓宽",10,2025.8,2025.12,"完善道路设施，方便群众出行",658,68,"安全出行，带动务工",null,10,null,null,10]
[176,"岳县农函〔2025〕25号","云山村柏树组至红米洞公路拓宽硬化","巩固拓展脱贫攻坚成果和乡村振兴","县农业农村局","毛田镇","云山村","云山村","乡村建设行动","拓宽机耕路面到7米，硬化路面6米宽2公里",10,2025.8,2025.12,"完善道路设施，方便群众出行",600,28,"安全出行，带动务工",null,10,null,null,10]
[177,"岳县农函〔2025〕25号","毛田片安全饮水","巩固拓展脱贫攻坚成果和乡村振兴","县农业农村局","毛田镇","毛田村","毛田村","乡村建设行动","建深水井一口，维修供水管道800米",5,2025.8,2025.12,"解决安全饮水，保障居民用水",83,6,"保障安全饮水，带动务工",null,5,null,null,5]
[178,"岳县农函〔2025〕26号","英桥村桃洞片大条组安全饮水工程","巩固拓展脱贫攻坚成果和乡村振兴","县农业农村局","毛田镇","英桥村","英桥村","乡村建设行动","建深水井，蓄水池，铺设供水管道",5,2025.8,2025.12,"解决安全饮水，保障居民用水",73,16,"安全出行，带动务工",null,5,null,null,5]
[179,"岳县农组发〔2025〕1号","城东村大冲片张家门前塘维修","巩固拓展脱贫攻坚成果和乡村振兴","县农业农村局","荣家湾街道","城东村","城东村","产业发展","大冲片五组张家门前塘维修，塘面积5亩清淤0.5米深，塘堤护砌防漏。",8,"2025-10-15","2025-11-30","大冲片五组张家门前塘维修，塘面积5亩清淤0.5米深，塘堤护砌防漏；受益水田面积40亩，预计每亩增产100斤；受益群众21户72人，其中脱贫户2户4人。",72,4,"群众水稻种植受益，受益水稻面积40亩，预计每亩增产100斤。",8,{"$nulls":3},8]
[180,"岳县农组发〔2025〕1号，岳县农函〔2025〕25号","城东村群星片道路拓宽","巩固拓展脱贫攻坚成果和乡村振兴","县农业农村局","荣家湾街道","城东村","城东村","乡村建设行动","群星片一组通组道路1.2公里拓宽至4.5米。包括路基拓宽，路面硬化，硬化0.2米。",10,"2025-10-15","2025-11-30","群星片一组通组道路1.2公里拓宽至4.5米。包括路基拓宽，路面硬化，硬化0.2米；建成后加快农资流通速度，增加群众收入，解决群众出行安全问题，提升群众幸福䶠与获得感；受益人口31户106人，其中脱贫户3户11人。",106,11,"群众参与投工投劳增加收入，改建后解决群众出行安全问题，加快农资流通速度，增加收入。",5,5,null,null,10]
[181,"岳县农组发〔2025〕1号","大毛家湖渔场孵化场产业路","巩固拓展脱贫攻坚成果和乡村振兴","县农业农村局","荣家湾街道","大毛家湖","大毛家湖","乡村建设行动","大毛家湖渔场孵化场道路硬化160米，硬化0.2米。",2,"2025-09-05","2025-09-24","解决群众出行安全问题，加快农资流通，增加收入；受益群众160户605人，其中脱贫户8户19人。",605,19,"改善群众出行条件，加快农资流通速度。",2,{"$nulls":3},2]
[182,"岳县农组发〔2025〕1号","东方村泥家湖渠道修建","巩固拓展脱贫攻坚成果和乡村振兴","县农业农村局","荣家湾街道","东方村","东方村","产业发展","东方村泥家湖渔场片北渠道维修，全长300米，一段约50米安转波纹管，其余砖混泥土做墙。",4,"2025-10-01","2025-10-30","东方村泥家湖渠道修建全长268米、宽1米，深80公分，切实解决村民鱼池菜地灌溉困难。总投资55000万元，受益群众30户102人脱贫户1户3人。",102,0,"群众鱼池引水，菜地灌溉受益。",4,{"$nulls":3},4]
[183,"岳县农组发〔2025〕1号","东方村新建片王松港机埠建设","巩固拓展脱贫攻坚成果和乡村振兴","县农业农村局","荣家湾街道","东方村","东方村","产业发展","东方村新建片王松港新建机埠，包括排渍水沟改造，水塘清淤。",2,"2025-10-15","2025-11-30","受益水田面积120亩，预计亩增产100斤。受益群众300人，其中脱贫户8人。",300,8,"群众水稻种植受益",2,{"$nulls":3},2]
[184,"岳县农组发〔2025〕1号，岳县农组发〔2025〕2号","金星金盆柚基地项目（集体经济）","巩固拓展脱贫攻坚成果和乡村振兴","县农业农村局","荣家湾街道","公诚村","公诚村","产业发展","村集体拟投入50万元入股金星金盆柚种植合作社，占股20%，该项目预计2028年挂果后每年固定收益15万元。同时能解决本村部分劳动力就业。",60,"2025-10-01","2025-10-30","土地流转发展特色种植业，带动生产，吸纳周边群众务工，增加群众收入。受益群众80户308人，其中脱贫户4户15人。",308,15,"土地流转发展特色种植业，带动生产，吸纳周边群众务工，增加群众收入。",60,{"$nulls":3},{"$f":"K191","v":60}]
[185,"岳县农组发〔2025〕1号","公诚村金星机埠渠道延伸工程","巩固拓展脱贫攻坚成果和乡村振兴","县农业农村局","荣家湾街道","公诚村","公诚村","产业发展","公诚村金星机埠渠道延伸工程，共延伸400米，采取挖机深挖，埋设50#PE管道。",15,"2025-08-23","2025-09-11","受益灌溉面积2000余亩，改善灌溉条件，预计每亩增产100斤。受益群众1500人，其中脱贫人口106人。",1500,106,"群众水稻种植受益",15,{"$nulls":3},15]
[186,"岳县农组发〔2025〕5号","公诚村许家优质稻基地建设","巩固拓展脱贫攻坚成果和乡村振兴","县农业农村局","荣家湾街道","公诚村","公诚村","产业发展","公诚村许家优质稻基地一机埠270渠道维修，挖机深挖埋设PE500管道。工程预算13万元，工程内容包括渠道砍青、挖沟、铺设管道、弃土回填等。",10,"2025-10-15","2025-11-30","受益水稻面积400亩，亩增产100斤。受益人口506人，其中脱贫人口41人",506,41,"群众水稻种植受益",10,{"$nulls":3},10]
[187,"岳县农组发〔2025〕1号","六合垸村沿河片灌溉水渠建设","巩固拓展脱贫攻坚成果和乡村振兴","县农业农村局","荣家湾街道","六合垸村","六合垸村","产业发展","改建沿河片渠道，长700米，宽0.5米。",2,"2025-10-15","2025-11-30","改建沿河片渠道，长700米，宽0.5米；受益灌溉水田面积420亩；受益群众76户372人，其中脱贫户21户62人。",372,62,"群众水稻种植受益，预计亩增产100斤。",2,{"$nulls":3},2]
[188,"岳县农组发〔2025〕1号，岳县农组发〔2025〕5号","牛皋村幸福片水稻基地建设","巩固拓展脱贫攻坚成果和乡村振兴","县农业农村局","荣家湾街道","牛皋村","牛皋村","产业发展","牛皋村幸福片水稻基地配套幸福机埠管道延伸工程，机埠建成后惠及2100人，其中脱贫户98人，灌溉水田面积1100亩，旱地1300亩。",18,"2025-08-01","2025-09-30","受益灌溉水田面积1100亩，旱地1300亩，预计亩增产100斤。机埠建成后惠及2100人，其中脱贫户98人。",2100,98,"群众水稻种植受益",18,{"$nulls":3},18]
[189,"岳县农组发〔2025〕1号，岳县农组发〔2025〕5号，岳县农联发〔2025〕9号","产业奖补","巩固拓展脱贫攻坚成果和乡村振兴","县农业农村局","荣家湾街道","荣家湾街道","荣家湾街道","产业发展","对有产业发展意愿的脱贫户、监测对象发放产业启动资金或对产业发展具有一定规模、增收效果好的脱贫户、监测对象，以家庭为单位发放产业奖励补助，鼓励其发展产业致富。",56.39,"2025-05-30","2025-06-25","壮大村集体经济",3618,72,"带动脱贫户和周边零散劳动力就业80人。",46.39,10,null,null,56.39]
[190,"岳县农组发〔2025〕1号","荣鹿新村葵花片七组门口塘清淤护砌","巩固拓展脱贫攻坚成果和乡村振兴","县农业农村局","荣家湾街道","荣鹿新村","荣鹿新村","产业发展","荣鹿新村葵花片七组门口塘清淤1.5米，包括护砌100米，低涵建设。",6,"2025-10-01","2025-11-01","清淤维修后改善60亩水田灌溉条件，预计亩每年增收100斤；受益群众40户130人，其中脱贫户1户3人。",130,3,"群众水稻种植受益",6,{"$nulls":3},6]
[191,"岳县农组发〔2025〕1号","荣鹿新村王鸽养殖","巩固拓展脱贫攻坚成果和乡村振兴","县农业农村局","荣家湾街道","荣鹿新村","荣鹿新村","产业发展","与总投资46万元。包括鸽舍改造，1000对种鸽引进，饲料购买以及其他配套设施建设，由刘爱良负责生产经营，村委会监督管理，收益按投资比例进行分红，以增加村集体经济收入。",20,"2025-10-01","2025-11-01","受益群众86人，其中脱贫户2户6人，预计年增加村集体经济收入5万元。",86,6,"群众务工收益，村集体经济收入增加",20,{"$nulls":3},20]
[192,"岳县农组发〔2025〕1号，岳县农组发〔2025〕5号","文发村青莲片一组道路建设","巩固拓展脱贫攻坚成果和乡村振兴","县农业农村局","荣家湾街道","文发村","文发村","乡村建设行动","文发村青莲片一组130米道路硬化，其中新建驳岸60米，硬化20公分。",4,"2025-06-01","2025-07-01","改善群众出行条件，加快农资流通速度，提升群众幸福感、获得感；受益人口510人，其中脱贫户11人。",510,11,"改善群众出行条件，加快农资流通速度。",4,{"$nulls":3},4]
[193,"岳县农组发〔2025〕1号","欣荣村东庄片蜈蚣塘清淤维修","巩固拓展脱贫攻坚成果和乡村振兴","县农业农村局","荣家湾街道","欣荣村","欣荣村","产业发展","东庄片杰四欧蜈蚣塘5亩水塘清淤护砌，取淤1.2米4000立方米，护砌600平方米。",{"$f":"R200+S200+T200+U200","v":3},"2025-11-01","2025-11-30","东庄片杰四欧蜈蚣塘5亩水塘清淤护砌，取淤1.2米4000立方米，护砌600平方米；改善下游水田灌溉条件，受益水田60亩，预计亩增产100斤；受益群众56户203人，其中脱贫户4户15人。",203,15,"群众水稻种植受益，受益面积60亩，预计亩增产100斤。",3,{"$nulls":3},3]
[194,"岳县农组发〔2025〕1号，岳县农组发〔2025〕5号","兴园村跃进片陈塘堰机耕桥重建","巩固拓展脱贫攻坚成果和乡村振兴","县农业农村局","荣家湾街道","兴园村","兴园村","乡村建设行动","跃进片陈塘堰机耕桥旧桥拆除重建，桥长8米，宽3.5米。",{"$f":"R201+S201+T201+U201","v":4},"2025-09-27","2025-10-30","跃进片陈塘堰机耕桥旧桥拆除重建，桥长8米，宽3.5米,解决群众农业机械通行问题，方便耕种；受益群众35户120人，其中脱贫户2户6人。",120,6,"改善40亩土地种植条件，解决农业机械通行问题，群众水稻种植长期受益。",4,{"$nulls":3},4]
[195,"岳县农组发〔2025〕1号","友爱村金沙堰桥梁建设","巩固拓展脱贫攻坚成果和乡村振兴","县农业农村局","荣家湾街道","友爱村","友爱村","乡村建设行动","友爱片胡再如屋场金沙堰桥涵洞重建，全长12米，宽3米。",2,"2025-10-15","2025-11-30","友爱片胡再如屋场金沙堰桥涵重建，全长12米，宽3米；受益水田面积200亩，解决村民耕种困难；受益群众92户306人，其中脱贫户5户14人。",306,14,"群众水稻种植受益，受益面积200亩，方便机械进出，预计亩增产100斤。",2,{"$nulls":3},2]
[196,"岳县农组发〔2025〕5号","友爱村群合片优质稻基地建设","巩固拓展脱贫攻坚成果和乡村振兴","县农业农村局","荣家湾街道","友爱村","友爱村","产业发展","友爱村群合片七组优质稻基地新建机埠，工程预算40万元，工程内容为挡土墙高7米*长10米，底宽3米，面宽0.6米；机房建设，灌溉渠长350米；电力设备架线长150米；配套电机、抽水设备。",30,"2025-10-01","2025-11-30","受益水田240亩，每亩优质稻增产100斤。受益人口305人，其中脱贫户4户9人。",305,9,"群众水稻种植受益",30,{"$nulls":3},30]
[197,"岳县农组发〔2025〕1号","岳武村金盆柚基地","巩固拓展脱贫攻坚成果和乡村振兴","县农业农村局","荣家湾街道","岳武村","岳武村","产业发展","岳武村金盆柚种植基地建设，村集体流转120亩林地进行金盆柚种植，委托农户进行管理，收益增加集体经济收入。",32,"2025-10-15","2025-11-30","岳武村金盆柚种植基地续建，村集体流转120亩林地进行金盆柚种植后，树苗补苗、施肥、除草、打药以及浇灌等后期管理。受益群众100户405人，其中脱贫户28户76人。预计挂果后每年增加村集体经济收入20万。",405,76,"带动群众发展特色种植业，吸纳群众务工务劳。",32,{"$nulls":3},32]
[198,"岳县农函〔2025〕25号","岳武村共同片至滨湖片主干道提质改造","巩固拓展脱贫攻坚成果和乡村振兴","县农业农村局","荣家湾街道","岳武村","岳武村","乡村建设行动","岳武村共同片至滨湖片主干道提质改造工程，全长3公里，宽4.5米，厚20公分。主要建设内容为板块维修，部分路段拓宽硬化。",5,"2025-10-15","2025-11-30","解决群众出行安全问题，加快农资流通，增加收入。",2000,206,"改善群众出行条件，加快农资流通速度。",null,5,null,null,5]
[199,"岳县农函〔2025〕25号","公诚村富强片三组至五组道路拓宽硬化","巩固拓展脱贫攻坚成果和乡村振兴","县农业农村局","荣家湾街道","公诚村","公诚村","乡村建设行动","公诚村富强片三组至五组道路拓宽硬化，路长220米，拓宽至4.5米，部分路面板块维修。",5,"2025-10-15","2025-11-30","解决群众出行安全问题，加快农资流通，增加收入。",420,21,"改善群众出行条件，加快农资流通速度。",null,5,null,null,5]
[200,"岳县农函〔2025〕26号","文发村五爱片闵吴屋产业路","巩固拓展脱贫攻坚成果和乡村振兴","县农业农村局","荣家湾街道","文发村","文发村","乡村建设行动","文发村五爱片闵吴屋产业路建设，长200米，宽3.5米，改建完成后方便农机与农资进出，受益水田面积150亩。",3,"2025-10-15","2025-11-30","改建完成后方便农机与农资进出，受益水田面积150亩。",130,8,"改善群众出行条件，加快农资流通速度。",null,3,null,null,3]
[201,"岳县农函〔2025〕26号","六合垸村沿河片二组产业路","巩固拓展脱贫攻坚成果和乡村振兴","县农业农村局","荣家湾街道","六合垸村","六合垸村","乡村建设行动","六合垸村沿河片二组产业路建设，长260米，宽3米，改建完成后方便农机与农资进出，受益水田面积70亩，养殖面积40亩。",2,"2025-10-15","2025-11-30","改建完成后方便农机与农资进出，受益水田面积70亩，养殖面积40亩",120,6,"改善群众出行条件，加快农资流通速度。",null,2,null,null,2]
[202,"岳县农组发〔2025〕1号","村企合作433KW光伏电站项目","巩固拓展脱贫攻坚成果和乡村振兴","县农业农村局","新开镇","万福村","万福村","产业发展","入股村企共同投资150万在岳阳混凝土公司屋顶共建的433KW光伏电站，占股8%,通过发电收益增加村集体收入。",12,"2025.4.26","2025.5.21","带动村级集体经济每年收入1.6万元，收益期25年，累计收益38万元。",549,"39","带动村级集体经济每年收入1.6万元",12,{"$nulls":3},12]
[203,"岳县农组发〔2025〕1号","村企合作433KW光伏电站项目","巩固拓展脱贫攻坚成果和乡村振兴","县农业农村局","新开镇","马山村","马山村","产业发展","入股村企共同投资150万在岳阳混凝土公司屋顶共建的433KW光伏电站，占股8%,通过发电收益增加村集体收入。",12,"2025.4.26","2025.5.21","带动村级集体经济每年收入1.6万元，收益期25年，累计收益38万元。",549,206,"带动村级集体经济每年收入1.6万元",12,{"$nulls":3},12]
[204,"岳县农组发〔2025〕5号","永安片陶铺组门口道路硬化","巩固拓展脱贫攻坚成果和乡村振兴","县农业农村局","新开镇","马山村","马山村","乡村建设行动","项目全程约195米，平均宽约3.6米进行清基、预埋5道下水管道，并对全程硬化（厚度约18-20公分）预计投入9.5万元左右",5,"2025.07.26","2025.8.20","改善道路坑烂不堪的现状，联通毛山至坎屋道路，为村民生产生活创造优质环境。",360,5,"改善道路坑烂不堪的现状，联通毛山至坎屋道路，为村民生产生活创造优质环境。",5,{"$nulls":3},5]
[205,"岳县农组发〔2025〕1号","村企合作433KW光伏电站项目","巩固拓展脱贫攻坚成果和乡村振兴","县农业农村局","新开镇","马店村","马店村","产业发展","入股村企共同投资150万在岳阳混凝土公司屋顶共建的433KW光伏电站，占股8%,通过发电收益增加村集体收入。",12,"2025.4.26","2025.5.21","带动村级集体经济每年收入1.6万元，收益期25年，累计收益38万元。",549,"42","带动村级集体经济每年收入1.6万元",12,{"$nulls":3},12]
[206,"岳县农组发〔2025〕1号","村企合作433KW光伏电站项目","巩固拓展脱贫攻坚成果和乡村振兴","县农业农村局","新开镇","共和村","共和村","产业发展","入股村企共同投资150万在岳阳混凝土公司屋顶共建的433KW光伏电站，占股8%,通过发电收益增加村集体收入。",12,"2025.4.26","2025.5.21","带动村级集体经济每年收入1.6万元，收益期25年，累计收益38万元。",549,"32","带动村级集体经济每年收入1.6万元",12,{"$nulls":3},12]
[207,"岳县农组发〔2025〕2号","金丝皇菊种植项目（集体经济）","巩固拓展脱贫攻坚成果和乡村振兴","县农业农村局","新开镇","共和村","共和村","产业发展","村集体流转280亩土地，以土地和资金入股，与企业合作种植，按股份比例分成。项目建成当年即可产生收益，预估年收益约为30万元/年，其中村集体收益12万/年",50,20250325,20250630,"带动周边经济发展和解决有劳动能力的贫困户就业。促进脱贫户、监测户多渠道长期稳定收益增收",749,"42","带动周边经济发展和解决有劳动能力的贫困户就业。",50,{"$nulls":3},50]
[208,"岳县农组发〔2025〕1号","村企合作433KW光伏电站项目","巩固拓展脱贫攻坚成果和乡村振兴","县农业农村局","新开镇","友谊村","友谊村","产业发展","入股村企共同投资150万在岳阳混凝土公司屋顶共建的433KW光伏电站，占股8%,通过发电收益增加村集体收入。",12,"2025.4.26","2025.5.21","带动村级集体经济每年收入1.6万元，收益期25年，累计收益38万元。",549,"12","带动村级集体经济每年收入1.6万元",12,{"$nulls":3},12]
[209,"岳县农组发〔2025〕1号，岳县农组发〔2025〕5号，岳县农联发〔2025〕9号","产业奖补","巩固拓展脱贫攻坚成果和乡村振兴","县农业农村局","新开镇","全镇9个村一个居委会","全镇9个村一个居委会","产业发展","“两有对象”产业奖补，给全镇脱贫户、监测户输送鸡苗、猪等",50.06,"2025.5.12","2025.9.20","壮大村集体经济",3618,72,"带动脱贫户和周边零散劳动力就业80人。",40.06,10,null,null,50.06]
[210,"岳县农组发〔2025〕1号","新开镇油桐产业发展基地","巩固拓展脱贫攻坚成果和乡村振兴","县农业农村局","新开镇","马店、新开、友谊、马山","马店、新开、友谊、马山","产业发展","马店、新开、友谊、马山390亩油桐项目基地剪枝、除草\n友谊、马店油桐基地集中施肥",8.4,2025.0506,"2025.9.20","带动马店、新开、友谊、马山油桐项目增收、增产。",1356,"110","带动马店、新开、友谊、马山油桐项目增收、增产。",8.4,{"$nulls":3},8.4]
[211,"岳县农组发〔2025〕1号","龙湾村王鸽养殖基地","巩固拓展脱贫攻坚成果和乡村振兴","县农业农村局","新开镇","龙湾村","龙湾村","产业发展","入股村企共同投资80余万元，进行\"一县一特\"王鸽产业发展",25,20250514,20251219,"带动周边经济发展和解决有劳动能力的贫困户就业。促进脱贫户、监测户多渠道长期稳定收益增收",1136,"98","带动周边经济发展和解决有劳动能力的贫困户就业。",25,{"$nulls":3},25]
[212,"岳县农组发〔2025〕5号","七星二组新旧二塘维修","巩固拓展脱贫攻坚成果和乡村振兴","县农业农村局","新开镇","常山村","常山村","产业发展","七星二组新旧二塘起污、塘堤加固、底涵重建",3,"2025.08.03","2025.08.30","解决了村民农田灌溉用水和生活用水",283,"12","解决了村民农田灌溉用水和生活用水",3,{"$nulls":3},3]
[213,"岳县农函〔2025〕25号","龙湾村林下养鸡项目","巩固拓展脱贫攻坚成果和乡村振兴","县农业农村局","新开镇","龙湾村","龙湾村","产业发展","投入30万，建设年产12000只林下散养母鸡基地，通过“公司+村集体”模式，实行订单式回收，增加村集体收入",26,20251023,20251219,"带动、引领全村种养业发展",151,11,"带动、引领全村种养业发展",null,26,null,null,26]
[214,"岳县农函〔2025〕25号","光伏项目","巩固拓展脱贫攻坚成果和乡村振兴","县农业农村局","新开镇","龙湾村","龙湾村","产业发展","利用村空置区域或企业闲置屋场，安装光伏，增加村集体收入",10,2025.09,2025.12,"利用村空置区域或企业闲置屋场，安装光伏，增加村集体收入，并依靠结余费用用作于全村各项公益事业。",151,"11","增加村集体收入，",null,10,null,null,10]
[215,"岳县农函〔2025〕25号","村集体农机社会化服务","巩固拓展脱贫攻坚成果和乡村振兴","县农业农村局","新开镇","龙湾村","龙湾村","产业发展","购置一台秸杆回收机，与大户签订承包协议，推广秸杆回收利用，增加村集体收入",14,2025.09,{"v":2025.1,"d":"2025.10"},"加强机械规范使用，提高效益，促使该产业能得到有效发展，带动、引领全村种植业发展。",1047,"123","带动、引领全村种植业发展。",null,14,null,null,14]
[216,"岳县农函〔2025〕25号","马山村林下养鸡项目","巩固拓展脱贫攻坚成果和乡村振兴","县农业农村局","新开镇","马山村","马山村","产业发展","投入20万，建设年产10000只林下散养母鸡基地，通过“公司+村集体”模式，实行订单式回收，增加村集体收入",20,"2025.8.26","2025.12.22","增加集体经济收入",206,24,"带动就业，增加农户收入",null,20,null,null,20]
[217,"岳县农函〔2025〕25号","村企合作光伏","巩固拓展脱贫攻坚成果和乡村振兴","县农业农村局","新开镇","新开塘社区","居委会","产业发展","村集体投资20万与光伏公司共同投资，在新开米厂宿舍楼安装130千瓦光伏电站，按股份获得收益。",20,20251023,20251219,"收益形成后帮扶脱贫户8户20人增收，增加集体经济收入",340,12,"增加村集体收入",null,20,null,null,20]
[218,"岳县农函〔2025〕26号","青岗片五组道路硬化","巩固拓展脱贫攻坚成果和乡村振兴","县农业农村局","新开镇","马店村","马店村","乡村建设行动","道路全长约500米硬化，宽4米厚0.2米，预计投入资金18万余元。",3,"2025.8.26","2025.9.22","为解决青岗片三四五组村民安全出行，保证进出车辆畅通 解决青岗片三四五组村民安全出行，其中脱贫户4户，11人。",220,11,"解决青岗片三四五组村民安全出行，其中脱贫户4户，11人。",null,3,null,null,3]
[219,"岳县农函〔2025〕26号","马店片二组塘坡塘清淤、塘堤硬化","巩固拓展脱贫攻坚成果和乡村振兴","县农业农村局","新开镇","马店村","马店村","产业发展","塘堤加固、周围驳岸，塘堤清淤，预计投入资金3.5万元。",2,20251023,20251218,"为解决马店片二三四五组农田灌溉，确保农户正常生产",312,16,"带动就业，增加农户收入",null,2,null,null,2]
[220,"岳县农组发〔2025〕1号","青柚品种改良种植及西红柿套种","巩固拓展脱贫攻坚成果和乡村振兴","县农业农村局","新墙镇","双枫村","双枫村","产业发展","对双枫村集体经济合作社果园内20亩青柚进行品种改良种植和西红柿等瓜果套种",10,"2025-05-10","2025-12-10","预计年收益3-5万元 ，增加集体经济收入",121,12,"可带动周边群众33户121人，其中脱贫户4户12人，预计可增加务工人数20人",10,{"$nulls":3},10]
[221,"岳县农组发〔2025〕5号","双枫杨溪桥机埠渠道护砌","巩固拓展脱贫攻坚成果和乡村振兴","县农业农村局","新墙镇","双枫村村民委员会","双枫村村民委员会","产业发展","对先锋片杨溪桥机埠渠道清淤护砌230米。",5,"2025-08-01","2025-12-01","对先锋片杨溪桥机埠渠道清淤护砌230米。",76,13,"解决灌溉问题，提高产业发展",5,{"$nulls":3},5]
[222,"岳县农函〔2025〕25号","双枫村机埠设备维修添置更新","巩固拓展脱贫攻坚成果和乡村振兴","县农业农村局","新墙镇","双枫村","双枫村","产业发展","对本村双枫片、红光片机埠设备进行维修添置更新。",5,"2025-09-01","2025-12-01","该项目建设可解决先锋片该组28户村民农田灌溉，可加大对村民增产增收。",76,13,"群众参与施工",null,5,null,null,5]
[223,"岳县农组发〔2025〕1号","钢架大棚水果蔬菜种植","巩固拓展脱贫攻坚成果和乡村振兴","县农业农村局","新墙镇","三合村","三合村","产业发展","寺塘片10亩钢架大棚内水果蔬菜种植",6,"2025-04-01","2025-10-01","解决当地群众60户220人生产生活方便，预计每户增收600元。",220,18,"群众参与施工",6,{"$nulls":3},6]
[224,"岳县农组发〔2025〕1号","前进片应海组油茶种植","巩固拓展脱贫攻坚成果和乡村振兴","县农业农村局","新墙镇","新华村","新华村","产业发展","油茶种植基地后期维护，包括补茶苗、人工除草、打药、施肥等",4.24,"2025-01-01","2025-10-01","每户年增长收入1200元左右，6年后给集体经济增加年收入1万元左右",217,18,"为周边群众65户210人带来劳动就业机会",4.24,{"$nulls":3},4.24]
[225,"岳县农组发〔2025〕1号","四义片余子交金盆\n柚种植","巩固拓展脱贫攻坚成果和乡村振兴","县农业农村局","新墙镇","新华村","新华村","产业发展","金盆柚种植基地土地流转100亩，土地翻耕、人工施底肥、金盆柚苗移栽",20,20250601,20251219,"为周边群众提供就业机会，增加集体经济收入",217,18,"群众参与施工",20,{"$nulls":3},20]
[226,"岳县农组发〔2025〕5号，","新华湘佳牧业产业路","巩固拓展脱贫攻坚成果和乡村振兴","县农业农村局","新墙镇","新华村","新华村","乡村建设行动","湘佳牧业鸽子场建设地点松源片六、七组，桃源片四、六、七组 资金用于产业路1000米进行路基拓宽、铺砾石、路面压实、水沟开挖等",20,"2025-07-01","2025-12-01","提搞生产条件，有利于集体经济发展",456,27,"为周边群众130户456人带来劳动就业机会",10,10,null,null,20]
[227,"岳县农组发〔2025〕1号","二期油桐基地建设","巩固拓展脱贫攻坚成果和乡村振兴","县农业农村局","新墙镇","马形村","马形村","产业发展","200亩油桐基地翻耕，油桐树苗栽种，机耕路防火隔离带建设",7,"2025-06-01","2025-12-01","带动村集体经济发展、为村集体经济及农户增收、预计每户增收400元",841,51,"群众参与施工",7,{"$nulls":3},7]
[228,"岳县农组发〔2025〕1号","村集体经济发展土豆种植项目","巩固拓展脱贫攻坚成果和乡村振兴","县农业农村局","新墙镇","清水村","清水村","产业发展","计划流转土地 100\n亩，建设种植基地，\n配套完善的灌溉、施\n肥、病虫害防治等基\n础设施，资金主要用\n于种苗肥料采购、人\n工费用、技术培训等\n方面。",20,"2025-09-01","2025-12-01","显著提高村集体和村民的经济收入，打造可持续的致富产业。",528,130,"群众参与施工",20,{"$nulls":3},20]
[229,"岳县农函〔2025〕26号","上游片、清水片\n排灌渠护砌","巩固拓展脱贫攻坚成果和乡村振兴","县农业农村局","新墙镇","清水村","清水村","产业发展","清水村上游片中门组、江舒组排灌渠830米护砌，\n清水片前进组排灌渠340米护砌",15,"2025年11月15日","2025-12-01","减少渠道中水流在运输过程中的渗漏和流失，节约用水，使渠道灌溉成效更高，同时也便于灌溉水渠的养护和管理",102,24,"群众参与施工",null,15,null,null,15]
[230,"岳县农组发〔2025〕1号，岳县农组发〔2025〕5号，岳县农联发〔2025〕9号","全镇产业奖补","巩固拓展脱贫攻坚成果和乡村振兴","县农业农村局","新墙镇","新墙镇人民政府","新墙镇人民政府","产业发展","两有对象产业奖补",55,"2025-06-01","2025-10-01","鼓励贫困劳动力自主发展产业，增强贫困户持续增收",444,1335,"群众参与施工",45,10,null,null,55]
[231,"岳县农组发〔2025〕2号","钢结构大棚基地项目","巩固拓展脱贫攻坚成果和乡村振兴","县委组织部","新墙镇","高桥村委会","高桥村委会","产业发展","结构大棚基地项目拟建在双港片，拟投入80万元，建设高标准早稻集中育秧和樟树港辣椒种植基地，以村集体70％+农户30%合股模式，提高村集体收益，能带动附近约10余户群众增收，其中脱贫户3户8人，为村集体经济带来10万元左右增加。",50,"2025-09-10","2025-12-18","改善生产条件，增加集体经济收入",150,24,"带动周边30户劳动力151余人增产增收，",50,{"$nulls":3},50]
[232,"岳县农组发〔2025〕1号，岳县农组发〔2025〕2号","兰泽村王鸽养殖项目（集体经济）","巩固拓展脱贫攻坚成果和乡村振兴","县委组织部","杨林街镇","兰泽村","兰泽村","产业发展","计划投资53万资金建设鸽厂，后期计划投入2000羽种鸽开展肉鸽养殖",60,"2025-07-10","2025-12-16","增加村集体经济收",124,5,"贫困劳动力参与就业",60,{"$nulls":3},60]
[233,"岳县农函〔2025〕25号","茨花塘水渠清污护砌（老区发展）","革命老区发展","县民政局","杨林街镇","兰泽村","兰泽村","产业发展","该项目因水渠年久失修，渗漏严重，无法放水，现对水渠进行清污护砌，长度约162米、高90㎝、宽70㎝，灌溉下游基本农田约160亩",3,"2025.10.10","2025.11.02","提高周边农田水利灌溉效率，提高生产力，增加农民收入",260,35,"带动农民增收。",null,3,null,null,3]
[234,"岳县农组发〔2025〕1号","城山舟村望祥鸽业增产项目","巩固拓展脱贫攻坚成果和乡村振兴","县农业农村局","杨林街镇","城山舟村","城山舟村","产业发展","购置鸽产业设备，全自动料机鸽笼改良，预计建成后提升肉鸽产业效能增加300羽一季，提升村集体经济效益",5,"2025-05-26","2025-06-06","建成后提升肉鸽产业效能增加300羽一季，提升村集体经济效益",127,127,"增加村集体经济收入用于低收入人群扶贫解困。",{"$f":"3+2","v":5},{"$nulls":3},5]
[235,"岳县农组发〔2025〕1号，岳县农组发〔2025〕2号","杨林街村王鸽养殖项目（集体经济）","巩固拓展脱贫攻坚成果和乡村振兴","县委组织部","杨林街镇","杨林街村","杨林街村","产业发展","计划投资55万资金建设鸽厂，后期计划投入1000羽种鸽开展肉鸽养殖",60,"2025-06-18","2025-10-28","增加村集体经济收",239,15,"贫困劳动力参与就业",60,{"$nulls":3},60]
[236,"岳县农函〔2025〕26号","杨林街村坳上组细背冲塘清淤护砌项目","巩固拓展脱贫攻坚成果和乡村振兴","县农业农村局","杨林街镇","杨林街村","杨林街村","产业发展","塘身总长度52米 清淤约5亩，护砌塘身，加固加高1.3m",5,"2025-09-18","2025-12-15","通过增加山塘蓄水暗量，保障群众农业用水，增加水稻种植收入",169,20,"脱贫户参与施工建设，提高收入。",null,5,null,null,5]
[237,"岳县农组发〔2025〕1号，岳县农函〔2025〕26号","姑桥村肉鸽产业发展项目","巩固拓展脱贫攻坚成果和乡村振兴","县农业农村局","杨林街镇","姑桥村","姑桥村","产业发展","计划购置300~500羽种鸽开展肉鸽养殖，与村集体经济合作经营",13,"2025-06-20","2025-11-18","通过发展肉鸽养殖，增加村集体经济收入。",150,150,"脱贫户参与施工建设，提高收入。鸽子养殖项目产生的收入部分用于低收入人群的扶贫解困。",{"$f":"2+8","v":10},3,null,null,13]
[238,"岳县农组发〔2025〕1号，岳县农函〔2025〕25号","王安村黄精种植产业发展项目","巩固拓展脱贫攻坚成果和乡村振兴","县农业农村局","杨林街镇","王安村","王安村","产业发展","拟在王安村开展黄精中药材种植，纳入村集体经济项目，收益分红",10,"2025-06-20","2025-10-30","通过发展黄金种植带动王安村群众增产增收",206,206,"受益户为王安村全体脱贫户、监测户。",5,5,null,null,10]
[239,"岳县农组发〔2025〕1号","溪源村金盆柚产业基地改造项目","巩固拓展脱贫攻坚成果和乡村振兴","县农业农村局","杨林街镇","溪源村","溪源村","产业发展","拟在柚子基地开展精品果园建设项目，包含铺设浇灌滴管、修建水井、修建水塔、安装监控、基地道路维修、提水机房及设施修建等",25,"2025-06-19","2025-12-16","通过续建柚子基地带动溪源村群众增产增收",251,251,"受益户为溪源村全体脱贫户、监测户。",25,{"$nulls":3},25]
[240,"岳县农函〔2025〕25号","溪源村至谷太片道路拓宽硬化维修项目","巩固拓展脱贫攻坚成果和乡村振兴","县农业农村局","杨林街镇","溪源村","溪源村","乡村建设行动","溪源村村部至谷太片区道路拓宽硬化维修，道路长1.2公里，宽约4m，厚20cm",5,"2025-08-28","2025-10-15","通过加宽道路方便村民出行，提高生产效率。",251,251,"脱贫户参与劳务，提高收入。",null,5,null,null,5]
[241,"岳县农组发〔2025〕1号","花果园村茶产业基地保产增收项目","巩固拓展脱贫攻坚成果和乡村振兴","县农业农村局","杨林街镇","花果园村","花果园村","产业发展","拟对花果园村100亩茶叶开展施肥、除草等管护作业，保障茶产业的正常产出和产量增加",3,"2025-06-20","2025-10-28","通过续建茶产业基地带动花果园村群众增产增收",154,154,"受益户为花果园村全体脱贫户、监测户。",3,{"$nulls":3},3]
[242,"岳县农组发〔2025〕1号，岳县农组发〔2025〕5号，岳县农联发〔2025〕9号","杨林街镇产业奖补项目","巩固拓展脱贫攻坚成果和乡村振兴","县农业农村局","杨林街镇","杨林街镇","杨林街镇","产业发展","对杨林街镇有产业的脱贫人口进行产业奖补，113户监测户（含风险消除）奖补标准1000元/户，414户脱贫户奖补标准500元/户，促进产业发展和脱贫人口增收，带动脱贫人口开展庭院经济发展，对长期在家且有能力、有意愿的脱贫人口开展庭院经济帮扶计划开展金盆柚种植、肉鸽养殖、黄精种植、鸡苗发放等",82.13,"2025-07-10",20251219,"通过发放鸡苗、鼓励脱贫户、监测户发展产业，提高收入。",1397,1397,"提高全镇脱贫户、监测户收入。",72.13,10,null,null,82.13]
[243,"岳县农组发〔2025〕5号","崩山分干、大坳干渠清淤扫障项目","巩固拓展脱贫攻坚成果和乡村振兴","县农业农村局","杨林街镇","杨林街镇","杨林街镇","产业发展","对崩山分干和大拗干渠部分淤堵渠道进行清淤扫障。",5,"2025-07-16","2025-07-17","通过疏通渠道，保障全镇农业用水，为群众增产增收。",33469,1397,"脱贫户参与劳务，提高收入。",5,{"$nulls":3},5]
[244,"岳县农函〔2025〕26号","杨林街镇付朝支渠维修项目","巩固拓展脱贫攻坚成果和乡村振兴","县农业农村局","杨林街镇","杨林街镇","杨林街镇","产业发展","付朝支渠花果园村段多处渗漏、塌方，合计100米，需对渠堤进行土方换填加固，对塌方点进行开挖后硬化。",5,"2025-09-18","2025-11-03","通过疏通渠道，保障全镇农业用水，为群众增产增收。",8379,393,"脱贫户参与劳务，提高收入。",null,5,null,null,5]
[245,"岳县农函〔2025〕25号","尚书村幼雄水稻种植产业发展项目","巩固拓展脱贫攻坚成果和乡村振兴","县农业农村局","杨林街镇","尚书村","尚书村","产业发展","依托幼雄水稻合作社开展水稻种植产业发展，承诺收益固定分红",10,"2025-09-18","2025-10-20","通过资金入股幼雄水稻合作社保底分红，每年1万元。",146,146,"增加村集体经济收入用于低收入人群扶贫解困。",null,10,null,null,10]
[246,"岳县农组发〔2025〕1号","入股大六斗种植专业合作社","巩固拓展脱贫攻坚成果和乡村振兴","县农业农村局","月田镇","白竹村","白竹村","产业发展","大六斗种植专业合作社入股分红",10,"2025.3.20","2025.12.10","提高村集体经济收益",50,10,"群众积极参与获得工资",10,{"$nulls":3},10]
[247,"岳县农组发〔2025〕1号","光伏发电","巩固拓展脱贫攻坚成果和乡村振兴","县农业农村局","月田镇","月田镇","茨洞村","产业发展","村部新建光伏发电50个千瓦，预计集体年收入3万元",11,"2025.5.16","2025.5.26","提高村集体经济收益",1830,186,"群众积极参与获得工资",11,{"$nulls":3},11]
[248,"岳县农组发〔2025〕1号","入股岳阳县长源水电开发有限公司","巩固拓展脱贫攻坚成果和乡村振兴","县农业农村局","月田镇","月田镇","大界村","产业发展","更新香花坝水电站发电机组设备参与分红",30,"2025.2.20","2025.3.18","提高村集体经济收益",1830,60,"群众积极参与获得工资",30,{"$nulls":3},{"$f":"K255","v":30}]
[249,"岳县农组发〔2025〕1号","沙子塘清淤","巩固拓展脱贫攻坚成果和乡村振兴","县农业农村局","月田镇","月田镇","大界村","产业发展","大界村正极组沙子塘清淤",3,"2025.1.10","2025.3.25","增强农田灌溉，提高产业发展",550,72,"群众积极参与获得工资",3,{"$nulls":3},3]
[250,"岳县农组发〔2025〕5号","织带厂建设","巩固拓展脱贫攻坚成果和乡村振兴","县农业农村局","月田镇","月田镇","大界村","产业发展","搭建大约2100㎡的钢构棚厂卷闸门，刷地坪漆，硬化水泥路，场地改造，\n将原有变压器进行增容。",3,20250101,"2025.7.30","提高村集体经济收益",875,42,"群众积极参与获得工资",3,{"$nulls":3},3]
[251,"岳县农组发〔2025〕1号","黄茶基地管理培育","巩固拓展脱贫攻坚成果和乡村振兴","县农业农村局","月田镇","月田镇","稻田村","产业发展","黄茶基地管理培育",18,"2025.6.14","2025.7.14","提高村集体经济收益",263,46,"群众积极参与获得工资",18,{"$nulls":3},18]
[252,"岳县农组发〔2025〕1号","赵洞片黄桃基地\n培育管理","巩固拓展脱贫攻坚成果和乡村振兴","县农业农村局","月田镇","月田镇","稻田村","产业发展","200亩黄桃培育管理\n补苗、扩种及基地设施建设",20,"2025.6.14","2025.7.14","提高村集体经济收益",263,46,"群众积极参与获得工资",20,{"$nulls":3},20]
[253,"岳县农组发〔2025〕5号","S203稻田段排水系统维护工程（易地搬迁）","巩固拓展脱贫攻坚成果和乡村振兴","县发改局","月田镇","月田镇","稻田村","产业发展","易地搬迁安置点进出道路S203稻田段排水系统维护工程",6,"2025.7.5","2025.8.5","强农田灌溉",50,50,"群众积极参与获得工资",6,{"$nulls":3},6]
[254,"岳县农组发〔2025〕1号，岳县农组发〔2025〕2号","中药材种植基地项目（集体经济）","巩固拓展脱贫攻坚成果和乡村振兴","县农业农村局","月田镇","月田镇","改港村","产业发展","中药材种植基地后续维护",55,"2025.4.25","2025.8.4","提高村集体经济收益",1000,40,"群众积极参与获得工资",55,{"$nulls":3},55]
[255,"岳县农组发〔2025〕1号","入股威豪养殖合作社","巩固拓展脱贫攻坚成果和乡村振兴","县农业农村局","月田镇","月田镇","改港村","产业发展","入股威豪养殖合作社扩大养殖业规模",30,"2025.6.30","2025.6.30","提高村集体经济收益",3665,292,"群众积极参与获得工资",30,{"$nulls":3},30]
[256,"岳县农组发〔2025〕1号","读书光伏发电站","巩固拓展脱贫攻坚成果和乡村振兴","县农业农村局","月田镇","月田镇","红光村","产业发展","340 平方米，60 千瓦",12,"2025.10.8","2025.11.6","提高村集体经济收益",320,20,"群众积极参与获得工资",12,{"$nulls":3},12]
[257,"岳县农组发〔2025〕1号","金盆柚种植","巩固拓展脱贫攻坚成果和乡村振兴","县农业农村局","月田镇","月田镇","花苗村","产业发展","种植金盆柚11亩",7,"2025.6.18","2025.7.18","提高脱贫人口收入",50,18,"受益群众14户其中贫户数及防止返贫监测对象户数5户，脱贫人口数及防止返贫监测对象人口数18人，通过以工代赈，增加收入巩固脱贫成果",7,{"$nulls":3},7]
[258,"岳县农组发〔2025〕1号","黄精种植","巩固拓展脱贫攻坚成果和乡村振兴","县农业农村局","月田镇","月田镇","花苗村","产业发展","种植黄精7亩",{"$f":"R265+S265+T265+U265","v":5},"2025.8.28","2025.9.18","发展壮大产业项目，提高集体经济收入",3049,195,"群众积极参与获得工资",5,{"$nulls":3},5]
[259,"岳县农组发〔2025〕1号","黄茶基地基础建设维护","巩固拓展脱贫攻坚成果和乡村振兴","县农业农村局","月田镇","月田镇","黄岸村","产业发展","塘坳片黄山组茶园基地基础建设维护",28,"2025.8.28","2025.9.28","提高村集体经济收益",1749,170,"群众积极参与获得工资",28,{"$nulls":3},28]
[260,"岳县农组发〔2025〕1号","黄茶管理培育","巩固拓展脱贫攻坚成果和乡村振兴","县农业农村局","月田镇","月田镇","黄岸村","产业发展","道院、塘坳、高雅3个片茶园管护",5.5,"2025.2.25","2025.5.10","提高村集体经济收益",1749,170,"群众积极参与获得工资",5.5,{"$nulls":3},5.5]
[261,"岳县农组发〔2025〕1号","入股天伏马茶叶合作社","巩固拓展脱贫攻坚成果和乡村振兴","县农业农村局","月田镇","月田镇","黄岸村","产业发展","入股天伏马茶叶合作社，参与合作社分红，增加村集体收入",8,"2025.3.1","2025.4.1","提高村集体经济收益",300,240,"群众积极参与获得工资",8,{"$nulls":3},8]
[262,"岳县农组发〔2025〕5号","黄土山道路维护","巩固拓展脱贫攻坚成果和乡村振兴","县农业农村局","月田镇","月田镇","黄岸村","乡村建设行动","黄土山破损道路维修硬化。",5,"2025.8.28","2025.9.28","便于村民出行",320,32,"群众积极参与获得工资",5,{"$nulls":3},5]
[263,"岳县农组发〔2025〕5号","S203黄岸段排水系统维护工程（易地搬迁）","巩固拓展脱贫攻坚成果和乡村振兴","县发改局","月田镇","月田镇","黄岸村","产业发展","易地搬迁安置点进出道路S203黄岸段排水系统维护工程",7,"2025.10.8","2025.11.5","增强农田灌溉",200,12,"群众积极参与获得工资",7,{"$nulls":3},7]
[264,"岳县农组发〔2025〕1号","黄茶基地基础设施维护暨管理培训","巩固拓展脱贫攻坚成果和乡村振兴","县农业农村局","月田镇","月田镇","江堧村","产业发展","李家组120亩黄茶后续管理培育暨黄茶基地基础设施维护",20,"2025.8.1","2025.10.8","提高村集体经济收益",590,57,"群众积极参与获得工资",20,{"$nulls":3},20]
[265,"岳县农组发〔2025〕5号","黄茶基地基础设施维护（易地搬迁）","巩固拓展脱贫攻坚成果和乡村振兴","县发改局","月田镇","月田镇","江堧村","产业发展","维护江堧村黄茶基地的基础设施",4,"2025.7.10","2025.7.30","提高村集体经济收益",590,57,"群众积极参与获得工资",4,{"$nulls":3},4]
[266,"岳县农组发〔2025〕1号","入股明师傅腐乳分红","巩固拓展脱贫攻坚成果和乡村振兴","县农业农村局","月田镇","月田镇","江堧村","产业发展","入股明师傅腐乳分红",4,"2025.5.15","2025.5.15","提高村集体经济收益",590,57,"群众积极参与获得工资",4,{"$nulls":3},4]
[267,"岳县农组发〔2025〕1号","邓谷果园西瓜种植","巩固拓展脱贫攻坚成果和乡村振兴","县农业农村局","月田镇","月田镇","立新村","产业发展","邓谷片西瓜种植8.5亩",5.5,"2025.6.1","2025.7.1","提高村集体经济收益",400,38,"群众积极参与获得工资",5.5,{"$nulls":3},5.5]
[268,"岳县农组发〔2025〕1号","油茶基地后续维护","巩固拓展脱贫攻坚成果和乡村振兴","县农业农村局","月田镇","月田镇","立新村","产业发展","邓谷片水库湾48亩油茶基地和邓谷片46亩油茶基地后续维护",9.5,"2025.6.1","2025.7.1","提高村集体经济收益",1800,60,"群众积极参与获得工资",9.5,{"$nulls":3},9.5]
[269,"岳县农组发〔2025〕5号","各片组级破损公路切板硬化","巩固拓展脱贫攻坚成果和乡村振兴","县农业农村局","月田镇","月田镇","立新村","乡村建设行动","破损公路切板400平方米，硬化400平方米，共约38处",6,"2025.7.1","2025.7.1","便于村民出行",1800,60,"群众积极参与获得工资",6,{"$nulls":3},6]
[270,"岳县农组发〔2025〕1号","黄茶基地维护","巩固拓展脱贫攻坚成果和乡村振兴","县农业农村局","月田镇","月田镇","铁山湖村","产业发展","弯头片、大洲片黄茶后续管理维护",10,"2025.10.8","2025.12.8","提高村集体经济收益",120,8,"群众积极参与获得工资",10,{"$nulls":3},10]
[271,"岳县农组发〔2025〕1号","相思山村王段片棉花种植","巩固拓展脱贫攻坚成果和乡村振兴","县农业农村局","月田镇","月田镇","相思山村","产业发展","相思山村王段片棉花种植65亩",8,2025.6,"2025.10.1","提高村集体经济收益",860,65,"群众积极参与获得工资",8,{"$nulls":3},8]
[272,"岳县农组发〔2025〕1号","光伏发电","巩固拓展脱贫攻坚成果和乡村振兴","县农业农村局","月田镇","月田镇","月东村","产业发展","利用村部屋顶建 300\n平方光伏发电",12,"2025.9.1","2025.11.5","提高村集体经济收益",1830,186,"群众积极参与获得工资",12,{"$nulls":3},12]
[273,"岳县农组发〔2025〕1号","入股岳阳县长源水电开发有限公司","巩固拓展脱贫攻坚成果和乡村振兴","县农业农村局","月田镇","月田镇","月东村","产业发展","更新香花坝水电站发电机组设备参与分红",10,"2025.2.20","2025.3.18","提高村集体经济收益",1830,186,"群众积极参与获得工资",10,{"$nulls":3},10]
[274,"岳县农组发〔2025〕1号","光伏电站","巩固拓展脱贫攻坚成果和乡村振兴","县农业农村局","月田镇","月田镇","月田村","产业发展","利用月田村部、冷库、移民活动中心的屋顶共560平方米面积，建成130千瓦时的光伏电站",30,"2025.5.16","2025.5.30","提高村集体经济收益",720,60,"群众积极参与获得工资",30,{"$nulls":3},30]
[275,"岳县农组发〔2025〕1号","产业大棚建设","巩固拓展脱贫攻坚成果和乡村振兴","县农业农村局","月田镇","月田镇","月田村","产业发展","建没大棚1200平方米，用于发展产业",7,"2025.8.1","2025.12.1","提高村集体经济收益",810,33,"群众积极参与获得工资",7,{"$nulls":3},7]
[276,"岳县农组发〔2025〕1号，岳县农组发〔2025〕5号，岳县农联发〔2025〕9号","产业奖补","巩固拓展脱贫攻坚成果和乡村振兴","县农业农村局","月田镇","月田镇","月田镇","产业发展","推动两有人员发展庭院经济并进行产业奖补",70.05,"2025.6.1","2025.12.10","壮大村集体经济",3618,72,"带动脱贫户和周边零散劳动力就业80人。",57.05,13,null,null,70.05]
[277,"岳县农组发〔2025〕1号","易地搬迁点固定资产维护","巩固拓展脱贫攻坚成果和乡村振兴","县农业农村局","月田镇","月田镇","月田镇","乡村建设行动","对易地搬迁安置点现有资产进行维护",5,"2025.6.1","2025.12.12","维护易地搬迁基础设施",204,204,"改善易地搬迁条件，带动务工",5,{"$nulls":3},5]
[278,"岳县农函〔2025〕25号","下金山水库养鱼","巩固拓展脱贫攻坚成果和乡村振兴","县农业农村局","月田镇","月田镇","立新村","产业发展","下金山水库库容11万立方米，投入草鱼苗、鲢鱼苗共25万尾，挖机清淤25小时，货车转运",7,"2025.8.1","2025.10.8","提高村集体经济收益",223,52,"群众积极参与获得工资",null,7,null,null,7]
[279,"岳县农函〔2025〕25号","茨洞片万家桥拓宽维修改造","巩固拓展脱贫攻坚成果和乡村振兴","县农业农村局","月田镇","月田镇","茨洞村","乡村建设行动","万家桥拓宽3.5米，桥墩维护护砌，桥面重新硬化，增加桥面护栏。",5,"2025.8.10","2025.8.30","便于村民出行",200,50,"群众积极参与获得工资",null,5,null,null,5]
[280,"岳县农函〔2025〕25号","白石组级公路硬化","巩固拓展脱贫攻坚成果和乡村振兴","县农业农村局","月田镇","月田镇","花苗村","乡村建设行动","路基平整，开挖水沟，路面硬化650平方",5,"2025.9.28","2025.10.13","便于村民出行",386,18,"群众积极参与获得工资",null,5,null,null,5]
[281,"岳县农函〔2025〕25号","晒谷坪建设","巩固拓展脱贫攻坚成果和乡村振兴","县农业农村局","月田镇","月田镇","江堧村","乡村建设行动","晒谷坪水沟修建、硬化等工程",5,"2025.8.26","2025.8.26","便于村民出行",342,38,"群众积极参与获得工资",null,5,null,null,5]
[282,"岳县农函〔2025〕25号","长冲组四\n叉路口处\n险护砌硬化","巩固拓展脱贫攻坚成果和乡村振兴","县农业农村局","月田镇","月田镇","红光村","乡村建设行动","加宽硬化 360 平方，\n护砌 35 立方，土方\n开挖 700 立方",5,"2025.10.5","2025.11.20","便于村民出行",200,40,"群众积极参与获得工资",null,5,null,null,5]
[283,"岳县农函〔2025〕25号","新民水渠渠道","巩固拓展脱贫攻坚成果和乡村振兴","县农业农村局","月田镇","月田镇","相思山村","乡村建设行动","新民水渠维修300米",5,"2025.9.15","2025.10.15","提高村集体经济收益",188,12,"群众积极参与获得工资",null,5,null,null,5]
[284,"岳县农函〔2025〕25号","敬老院到村部主干道护砌、回填","巩固拓展脱贫攻坚成果和乡村振兴","县农业农村局","月田镇","月田镇","稻田村","乡村建设行动","敬老院到村部主干道因大雨水毁严重，影响车辆出行，需护砌、回填",15,"2025.7.10","2025.8.10","便于村民出行",1000,50,"群众积极参与获得工资",null,15,null,null,15]
[285,"岳县农函〔2025〕25号","团坪公路硬化","巩固拓展脱贫攻坚成果和乡村振兴","县农业农村局","月田镇","月田镇","改港村","乡村建设行动","该路长1000米，宽3.5米，厚0.2米。",10,"2025.10.1","2025.11.20","便于村民出行",510,14,"群众积极参与获得工资",null,10,null,null,10]
[286,"岳县农函〔2025〕26号","花苗村黄茶制作技艺","巩固拓展脱贫攻坚成果和乡村振兴","县农业农村局","月田镇","月田镇","花苗村","产业发展","黄茶加工、购置设备",40,"2025.10.10","2025.12.1","提高村集体经济收益",200,50,"群众积极参与获得工资",null,40,null,null,40]
[287,"岳县农函〔2025〕26号","稻田村黄茶制作技艺","巩固拓展脱贫攻坚成果和乡村振兴","县农业农村局","月田镇","月田镇","稻田村","产业发展","黄茶加工、设备配套",20,"2025.10.8","2025.11.28","提高村集体经济收益",300,40,"群众积极参与获得工资",null,20,null,null,20]
[288,"岳县农函〔2025〕26号","黄岸村黄茶制作技艺","巩固拓展脱贫攻坚成果和乡村振兴","县农业农村局","月田镇","月田镇","黄岸村","产业发展","生产加工场地升级改造，生产设施设备采购，茶叶苗圃（优良品种繁殖）建没。",50,"2025.9.1","2025.11.27","提高村集体经济收益",600,50,"群众积极参与获得工资",null,50,null,null,50]
[289,"岳县农组发〔2025〕1号","芭蕉村半山林中药材黄精种植","巩固拓展脱贫攻坚成果和乡村振兴","县农业农村局","张谷英镇","芭蕉村村委会","芭蕉村村委会","产业发展","芭蕉村从杨和片农户流转承包山地50亩，用于种植黄精中药材，发展村集体经济。",12,"2025.9.14",20251219,"该项目致本村增加集体经济4.5万元以上，提高脱贫户经济收入。",1286,68,"芭蕉村受益人口1286人，其中脱贫户人口68人",12,{"$nulls":3},12]
[290,"岳县农组发〔2025〕5号","金盆柚种植","巩固拓展脱贫攻坚成果和乡村振兴","县农业农村局","张谷英镇","芭蕉村村委会","芭蕉村村委会","产业发展","发展庭院经济，屋前屋后闲置空地种植金盆柚",6,"2025.9.8",20251219,"提高脱贫人口收入",50,18,"受益群众14户其中贫户数及防止返贫监测对象户数5户，脱贫人口数及防止返贫监测对象人口数18人，通过以工代赈，增加收入巩固脱贫成果",6,{"$nulls":3},6]
[291,"岳县农组发〔2025〕5号","红卫片安置点项目（易地搬迁）","巩固拓展脱贫攻坚成果和乡村振兴","县发改局","张谷英镇","芭蕉村村委会","芭蕉村村委会","乡村建设行动","芭蕉村红卫片安置点基础设施提质改造",3,"2025.7.30","2025.8.7","解决红卫片易地搬迁安置点用电安全隐患及疏通排水防汛安全",15,15,"红卫片易地搬迁安置点受益15人",3,{"$nulls":3},3]
[292,"岳县农组发〔2025〕1号","金西片黄茶基地","巩固拓展脱贫攻坚成果和乡村振兴","县农业农村局","张谷英镇","大峰村村委会","大峰村","产业发展","补种黄茶苗、施肥、除草、管理等。",10,"2025.2.25","2025.3.25","通过新建黄茶基地带动大峰村全体群多增产增收",365,47,"受益户为大峰村全体村民",10,{"$nulls":3},10]
[293,"岳县农组发〔2025〕1号","大棚综合利用项目","巩固拓展脱贫攻坚成果和乡村振兴","县农业农村局","张谷英镇","大峰村村委会","大峰村","产业发展","3300平方米大棚育秧早、晚稻1000亩，辣椒种植",10,"2025.4.10","2025.5.10","该项目是新建一个3300亩的大棚综合利用基地，发展村级经济项目，增加村集体经济收入，计划于2025年10月底前完工，预期及时完工率、验收合格率、受益群众满意度100%",3789,172,"本项目实施调工主要是本村村民，发展经济，增加村民收入。",10,{"$nulls":3},10]
[294,"岳县农组发〔2025〕5号，岳县农联发〔2025〕9号","大峰村灌排水沟渠疏浚工程","巩固拓展脱贫攻坚成果和乡村振兴","县农业农村局","张谷英镇","大峰村村委会","大峰村","产业发展","大峰村部分灌排水沟渠计1148米，以清淤疏通为主，护砌沟渠40余米，铺设管道40米。",7,"2025.6.18","2025.7.26","通过维修渠道路保障村民增收",168,39,"受益户为江南片全体村民",5,2,null,null,7]
[295,"岳县农组发〔2025〕2号","大峰村王鸽养殖项目（集体经济）","巩固拓展脱贫攻坚成果和乡村振兴","县农业农村局","张谷英镇","大峰村村委会","大峰村","产业发展","计划建设五个鸽棚，大峰村入股合作社共同经营，面积约6000平方，总投资为360万元；预计可开展养殖王鸽10000对，预计今年集体经济收入51万元。",50,"2025.6.20",20251219,"该项目是新建一个6000亩的王鸽养殖项目基地，发展村级经济项目，增加村集体经济收入，计划于2025年10月底前完工，预期及时完工率、验收合格率、受益群众满意度100%",3789,"62户172","本项目实施调工主要是本村村民，发展经济，增加村民收入。",50,{"$nulls":3},50]
[296,"岳县农组发〔2025〕1号","瓦窑坡竹制品加工厂后期工程","巩固拓展脱贫攻坚成果和乡村振兴","县农业农村局","张谷英镇","大明山村村委会","大明山村村委会","产业发展","在豪坑片瓦窑组1.硬化场地6000平方米.2.搭建厂棚6000平方米.",12,20250513,20251219,"产生集体经济20万元",3000,48,"利用大明山村丰富的竹资源，就近解决全村群众就业，增加群众收入。",12,{"$nulls":3},12]
[297,"岳县农组发〔2025〕1号"," 10万亩楠竹基地开发","巩固拓展脱贫攻坚成果和乡村振兴","县农业农村局","张谷英镇","倒溪村村委会","倒溪村村委会","产业发展","引进竹制品加工企业，流转楠竹林，楠竹修山，基地低改，盘活竹林资源，培育竹笋。",6,"2025.6.25","2025.7.25"," 盘活竹林资源，培育竹笋，提高竹子价值，让老百姓在家门口务工创业，实现增收致富。",2054,72,"群众参与",6,{"$nulls":3},6]
[298,"岳县农组发〔2025〕1号","黄茶基地建设","巩固拓展脱贫攻坚成果和乡村振兴","县农业农村局","张谷英镇","风水村村委会","风水村村委会","产业发展","补种黄茶苗、施肥、除草、管理等。",7,"2025.3.2","2025.4.20","完成硬化人行道路520米，架设滴灌设施68亩",336,30,"三年后为群众增收1000元",7,{"$nulls":3},7]
[299,"岳县农组发〔2025〕1号","金盆柚种植","巩固拓展脱贫攻坚成果和乡村振兴","县农业农村局","张谷英镇","风水村村委会","风水村村委会","产业发展","1000根苗、栽种、土地整理、施肥、除草、管理等。",6,"2025.3.15","2025.5.18","提高脱贫人口收入",50,18,"受益群众14户其中贫户数及防止返贫监测对象户数5户，脱贫人口数及防止返贫监测对象人口数18人，通过以工代赈，增加收入巩固脱贫成果",6,{"$nulls":3},6]
[300,"岳县农组发〔2025〕1号","养生稻种植","巩固拓展脱贫攻坚成果和乡村振兴","县农业农村局","张谷英镇","莲花湖村村委会","莲花湖村村委会","产业发展","养生稻种植260亩",17,"20250325",20251130,"壮大村集体经济",164,57,"受益群众52户其中贫户数及防止返贫监测对象户数24户，脱贫人口数及防止返贫监测对象人口数57人，通过以工代赈，增加收入巩固脱贫成果",17,{"$nulls":3},17]
[301,"岳县农组发〔2025〕1号","鸭稻扩充生产项目","巩固拓展脱贫攻坚成果和乡村振兴","县农业农村局","张谷英镇","饶村村村委会","饶村村村委会","产业发展","购置鸭苗及饲料，清理水渠，设置围网，水稻种殖（人工）",8,"2025.6.23","2025.9.1","扩大种养殖面积200亩",650,57,"增加村集体收入",8,{"$nulls":3},8]
[302,"岳县农组发〔2025〕1号","松树村稻虾混养村集体经济发展项目","巩固拓展脱贫攻坚成果和乡村振兴","县农业农村局","张谷英镇","松树村村委会","松树村村委会","产业发展","松树村从农户手中托管农田50亩，将农田整治之后，20亩打造龙虾池进行虾子养殖，30亩用于稻谷种植，发展村集体经济。",6,"2025.3.15",20251219,"目标1、打造20亩龙虾池基地；目标2、种植30亩稻谷，增加村集体经济收入5万元；",200,22,"群众酬劳、带动村民40户200人，增加家庭收入",6,{"$nulls":3},6]
[303,"岳县农组发〔2025〕1号，岳县农函〔2025〕25号","天龙村黄茶种植项目","巩固拓展脱贫攻坚成果和乡村振兴","县农业农村局","张谷英镇","天龙村村委会","天龙村村委会","产业发展","新建黄茶种植基地\n50 亩",12,2025.11,20251219,"黄茶种植项目可提供10多个岗位.增加集体收入2万多元",{"v":133,"d":"133.00"},133,"天龙村受益人口100多人",7,5,null,null,12]
[304,"岳县农组发〔2025〕1号","渭洞村刘家片茶油种植","巩固拓展脱贫攻坚成果和乡村振兴","县农业农村局","张谷英镇","渭洞村村委会","渭洞村村委会","产业发展","承包山地50亩，山地开发平整。\n种植茶树苗33000棵。\n铺设自动灌溉管道5000米。",8,{"v":2025.1,"d":"2025.10"},20251219,"增加劳动力10人增收，壮大集体经济收入。",3446,102,"渭洞村全村1062户，3446人受益",8,{"$nulls":3},8]
[305,"岳县农组发〔2025〕1号","五洋扇业工艺厂","巩固拓展脱贫攻坚成果和乡村振兴","县农业农村局","张谷英镇","五洋村村委会","五洋村村委会","产业发展","购买机械、厂房扩建",5,"2025.6.15","2025.9.28","该项目致本村楠竹畅销，带动劳动力就业",2367,136,"五洋村受益682户2367人",5,{"$nulls":3},5]
[306,"岳县农组发〔2025〕1号","张谷英村黄哨油茶种植产业路建设项目","巩固拓展脱贫攻坚成果和乡村振兴","县农业农村局","张谷英镇","张谷英村村委会","张谷英村村委会","乡村建设行动","张谷英村黄哨油茶种植产业路硬化，长280米，宽4米",5,20250807,20251219,"绿化环境，提高旅游品味，为油茶种植奠定基础",800,27,"改善农业生产条件和农村生态环境",5,{"$nulls":3},5]
[307,"岳县农组发〔2025〕1号，岳县农组发〔2025〕5号，岳县农联发〔2025〕10号","产业奖补","巩固拓展脱贫攻坚成果和乡村振兴","县农业农村局","张谷英镇","张谷英镇人民政府","张谷英镇人民政府","产业发展","产业奖补",74.03,"2025.7.10",20251219,"壮大村集体经济",3618,72,"带动脱贫户和周边零散劳动力就业80人。",61.03,13,null,null,74.03]
[308,"岳县农组发〔2025〕5号","大坳水库清淤疏浚","巩固拓展脱贫攻坚成果和乡村振兴","县农业农村局","张谷英镇","张谷英镇人民政府","张谷英镇人民政府","产业发展","主要用于大坳水库干渠清淤疏通",5,"2025.7.1","2025.7.12","消除潜在的安全隐患并能有效减轻水库的运行压力‌",30,10,"受益村莲花湖村、大峰村、朱公桥村。",5,{"$nulls":3},5]
[309,"岳县农组发〔2025〕1号","朱公片钓鱼洞油茶种植","巩固拓展脱贫攻坚成果和乡村振兴","县农业农村局","张谷英镇","朱公桥村村委会","朱公桥村村委会","产业发展","油茶250亩",5,"2025.4.28","2025.6.23","确保油茶建设顺利完成，解决就业岗位20个，增加村集体经济收入每年10万元",460,8,"朱公桥村受益人口460人",5,{"$nulls":3},5]
[310,"岳县农函〔2025〕25号","莲花片饶家陇至大坳片折刀壁坑道路建设（老区发展）","革命老区发展","县民政局","张谷英镇","莲花湖村村委会","莲花湖村村委会","乡村建设行动","①全长2KM路基整理及小型桥梁建设一座②与莲花路接头处18余米干渠封顶50余立方米的驳岸护砌及500余平方米硬化",3,20250408,20250915,"完善道路基础设施建设，方便村民经济作物和经济林出山",2219,512,"方便莲花湖村村民出行",null,3,null,null,3]
[311,"岳县农函〔2025〕26号","林区道路建设","巩固拓展脱贫攻坚成果和乡村振兴","县农业农村局","张谷英镇","倒溪村","倒溪村","乡村建设行动","对倒溪村山脚通往山顶防火隔离带多条林区小路约12公里进行新挖拓宽，便于村民出行，方便生产物资竹木运输和产业发展。",10,"2025.4.23","2025.7.26","  林区道路新修拓宽便于全村村民出行，生产物资竹木运输降低运成本，为竹制品加工企业 发展产业振兴乡村打下夯实的基础。",2054,72,"群众参与施工",null,10,null,null,10]
[312,"岳县农函〔2025〕26号","三支渠四支渠清瘀维修","巩固拓展脱贫攻坚成果和乡村振兴","县农业农村局","张谷英镇","朱公桥村","朱公桥村","产业发展","青水片三支渠，花园片四支渠清瘀。",2,20251113,20251219,"完成三支渠四支渠清瘀工作，保障水系畅通",1423,38,"保障水系覆盖农田灌溉",null,2,null,null,{"$f":"K319","v":2}]
[313,"岳县农函〔2025〕26号","水渠疏通及维修","巩固拓展脱贫攻坚成果和乡村振兴","县农业农村局","张谷英镇","饶村村","饶村村","产业发展","我村水渠疏通及维修，解决我村农田灌溉问题",3,20251113,20251219,"解决我村农田灌溉问题",510,70,"解决我村双季稻种植；保障粮食安全。",null,3,null,null,3]
[314,"岳县农函〔2025〕26号","金盆柚种植","巩固拓展脱贫攻坚成果和乡村振兴","县农业农村局","张谷英镇","渭洞村","渭洞村","产业发展","在四维片承包山地20亩，开挖平整，种植金盆柚苗13200棵。",5,20251001,20251219,"提高脱贫人口收入",50,18,"受益群众14户其中贫户数及防止返贫监测对象户数5户，脱贫人口数及防止返贫监测对象人口数18人，通过以工代赈，增加收入巩固脱贫成果",null,5,null,null,5]
[315,"岳县农组发〔2025〕1号","岳阳县穗民水果种植专业合作社金盆柚种植","巩固拓展脱贫攻坚成果和乡村振兴","县农业农村局","长湖乡","白羊村","白羊村","产业发展","荒山开挖、整地、挖眼、放线、施肥、栽苗、培育",20,20250616,20250716,"通过建设金盆柚项目带动村民增产增收","158",12,"带动群众增收",20,{"$nulls":3},20]
[316,"岳县农组发〔2025〕1号","岳阳县瑞民养殖农民专业合作社肉鸽养殖","巩固拓展脱贫攻坚成果和乡村振兴","县农业农村局","长湖乡","白羊村","白羊村","产业发展","肉鸽养殖场扩产，采购种鸽1200对，300元每对，预计投资360000元",20,20250620,20250630,"完成肉鸽养殖场扩产和采购","144",14,"带动村民增产增收",20,{"$nulls":3},20]
[317,"岳县农函〔2025〕26号","岳阳县瑞民养殖农民专业合作社污水沟改造工程","巩固拓展脱贫攻坚成果和乡村振兴","县农业农村局","长湖乡","白羊村","白羊村","产业发展","300米沟开挖、清淤、护砌",5,20250611,202510,"完成300米沟开挖、清淤、护砌","165",16,"受益人口165人",null,5,null,null,5]
[318,"岳县农组发〔2025〕1号，岳县农函〔2025〕25号","新建组至童万组产业路拓宽硬化","巩固拓展脱贫攻坚成果和乡村振兴","县农业农村局","长湖乡","大众村","大众村","乡村建设行动","1000米道路拓宽硬化",14,20250605,2025.12,"完成1000米道路拓宽硬化","298",30,"受益人口数298人",9,5,null,null,14]
[319,"岳县农组发〔2025〕1号","拓展庭院经济","巩固拓展脱贫攻坚成果和乡村振兴","县农业农村局","长湖乡","范家村","范家村","产业发展","各农户庭院经济追肥补苗",10,20250605,2025.12,"通过建设金盆柚项目带动村民增产增收","90",68,"带动村民增产增收",10,{"$nulls":3},10]
[320,"岳县农函〔2025〕26号","范家村松一组塘堤底部加固及内侧护砌工程","巩固拓展脱贫攻坚成果和乡村振兴","县农业农村局","长湖乡","范家村","范家村","产业发展","62米塘堤底部加固及内侧护砌高4米",5,20250605,2025.12,"完成62米塘堤底部加固及内侧护砌高4米","105",12,"受益人口105人",null,5,null,null,5]
[321,"岳县农组发〔2025〕1号","胡山片村级产业路维修","巩固拓展脱贫攻坚成果和乡村振兴","县农业农村局","长湖乡","洪桥村","洪桥村","乡村建设行动","道路全长 2 公里",3,20250714,2025.12," 方便村民出行及耕种",120,350,"带动村民增产增收",3,{"$nulls":3},3]
[322,"岳县农组发〔2025〕1号","铁炉组公路至迷水头山产业路硬化","巩固拓展脱贫攻坚成果和乡村振兴","县农业农村局","长湖乡","京广村","京广村","乡村建设行动","铁炉组公路路基整\n修长 320 米，并硬化\n长 320 米，宽 3 米，\n厚 0.15 米",{"$f":"R329+S329+T329+U329","v":6},20251129,20251129,"硬化长340米","356人","13人","改善交通，不断提升交通运输能力，激活当地经济。",6,{"$nulls":3},6]
[323,"岳县农组发〔2025〕1号","长湖乡荆洲村金盆柚基地","巩固拓展脱贫攻坚成果和乡村振兴","县农业农村局","长湖乡","荆洲村","荆洲村","产业发展","金盆柚种植面积200亩",10,20250605,2025.12,"通过建设金盆柚项目带动村民增产增收","92",7,"带动群众增收",10,{"$nulls":3},10]
[324,"岳县农组发〔2025〕5号","荆洲村田堪张产业路建设","巩固拓展脱贫攻坚成果和乡村振兴","县农业农村局","长湖乡","荆洲村","荆洲村","乡村建设行动","道路全长2公里",5,20250606,202510,"完成2公里产业路建设","62",14,"受益人口数62人",5,{"$nulls":3},5]
[325,"岳县农函〔2025〕26号","齐屋队兰塘清淤维修工程","巩固拓展脱贫攻坚成果和乡村振兴","县农业农村局","长湖乡","荆洲村","荆洲村","产业发展","塘坝清淤维修",3,20250702,202510,"完成塘坝清淤维修",96,12,"带动群众增收",null,3,null,null,3]
[326,"岳县农组发〔2025〕1号","义门新山组金盆柚种植项目","巩固拓展脱贫攻坚成果和乡村振兴","县农业农村局","长湖乡","燎原新村","燎原新村","产业发展","义门片新山组金盆柚种植项目，共计100亩，内容包括：山林流转租金、山地平整、种苗购买及栽种，施肥，后续养护等。",7,20250522,2025.12,"通过建设金盆柚项目带动村民增产增收","168",20,"受益人数168人",7,{"$nulls":3},7]
[327,"岳县农组发〔2025〕1号","燎原片周文组机埠维修","巩固拓展脱贫攻坚成果和乡村振兴","县农业农村局","长湖乡","燎原新村","燎原新村","产业发展","水泵等设备维修更换，管道开挖铺设500米",10,20251101,20251130,"完成水泵等设备维修更换，管道开挖铺设500米","95",4,"带动群众增收",10,{"$nulls":3},10]
[328,"岳县农组发〔2025〕1号","义门片双义组新建机埠","巩固拓展脱贫攻坚成果和乡村振兴","县农业农村局","长湖乡","燎原新村","燎原新村","产业发展","新建泵站1座，铺设引水管道500米，新建闸门1处",17,20251101,20251130,"完成新建泵站1座，铺设引水管道500米，新建闸门1处","112",10,"带动群众增收",17,{"$nulls":3},17]
[329,"岳县农组发〔2025〕1号，岳县农组发〔2025〕5号，岳县农联发〔2025〕10号","产业奖补","巩固拓展脱贫攻坚成果和乡村振兴","县农业农村局","长湖乡","长湖乡","长湖乡","产业发展","根据监测户的家庭产业发展的方向，发放对应家庭的所需要的一定物资",33.04,20250602,202510,"壮大村集体经济",3618,72,"带动脱贫户和周边零散劳动力就业80人。",23.04,10,null,null,33.04]
[330,"岳县农组发〔2025〕1号，岳县农函〔2025〕26号","下杨组至三闾片产业路拓宽硬化","巩固拓展脱贫攻坚成果和乡村振兴","县农业农村局","长湖乡","团结村","团结村","乡村建设行动","团结村下杨组至三闾片产业路扩宽硬化",15,20250604,202510,"完成团结村下杨组至三闾片产业路扩宽硬化",198,18,"带动群众增收",10,5,null,null,15]
[331,"岳县农函〔2025〕25号","凌云片马家组产业路扩宽硬化","巩固拓展脱贫攻坚成果和乡村振兴","县农业农村局","长湖乡","团结村","团结村","乡村建设行动","凌云片马家组产业路扩宽硬化",5,20250714,2025.12,"完成凌云片马家组产业路扩宽硬化","88",21,"受益人口88人",null,5,null,null,5]
[332,"岳县农组发〔2025〕1号","鼎丰油茶林提质改造、抚育","巩固拓展脱贫攻坚成果和乡村振兴","县农业农村局","长湖乡","长湖村","长湖村","产业发展","200苗油茶提质改造、抚育、管护",5,20250717,202510,"完成200亩油茶提质改造、抚育、管护","33",3,"带动群众增收",5,{"$nulls":3},5]
[333,"岳县农组发〔2025〕2号","油茶培育改造项目（集体经济）","巩固拓展脱贫攻坚成果和乡村振兴","县农业农村局","长湖乡","长湖村","长湖村","产业发展","已入股强湖农业油茶深加工企业，投资65万元，占股20%。采用油茶+精深加工，延长产业链，提升产业价值。加强近年来扩种油茶幼林的抚育管护，提质改造低产油茶林，建设改善油茶产业作业条件",50,20250909,2025.12,"提质改造低产油茶林，建设改善油茶产业作业条件",258,18,"带动群众增收",50,{"$nulls":3},50]
[334,"岳县农函〔2025〕25号","自强村村集体金盆柚基地建设","巩固拓展脱贫攻坚成果和乡村振兴","县农业农村局","长湖乡","自强村","自强村","产业发展","村集体发展40亩金盆柚基地建设",5,20250913,2025.12,"通过建设金盆柚项目增加村集体经济","130",13,"增加村集体经济",null,5,null,null,5]
[335,"岳县农组发〔2025〕1号","刘一组机埠新建","巩固拓展脱贫攻坚成果和乡村振兴","县农业农村局","长湖乡","自强村","自强村","产业发展","新建泵站 1 座，20KW\n机电设施一套，铺设\n引水管道",13,20250603,2025.12,"完成新建泵站1座，20KW机电设施一套，铺设引水管道",102,44,"受益农户102人数",13,{"$nulls":3},13]
[336,"岳县农组发〔2025〕1号","下罗组机埠建设","巩固拓展脱贫攻坚成果和乡村振兴","县农业农村局","长湖乡","自强村","自强村","产业发展","新建泵站1座，铺设引水管道约2000米，新建闸门",20,20251010,20251110,"完成新建泵站1座，铺设引水管道约2000米，新建闸门","118",14,"受益人口118人",20,{"$nulls":3},20]
[337,"岳县农组发〔2025〕1号","刘家冲产业路路基拓宽建设","巩固拓展脱贫攻坚成果和乡村振兴","县农业农村局","长湖乡","自强村","自强村","乡村建设行动","在原道路上拓宽路基2.5米，全长约1.2公里，所经过处涵管加构",5,20251101,20251130,"在原道路上拓宽路基2.5米，全长约1.2公里，所经过处涵管加构","58",16,"受益人口数58人",5,{"$nulls":3},5]
[338,"岳县农组发〔2025〕5号","自强村湖头组机埠维修","巩固拓展脱贫攻坚成果和乡村振兴","县农业农村局","长湖乡","自强村","自强村","产业发展","改建废弃机埠1座，铺设管道1000米",6,20251010,20251110,"完成改建废弃机埠1座，铺设管道1000米","42",17,"受益人口约42人",6,{"$nulls":3},6]
[339,"岳县农组发〔2025〕5号","自强村石头岭机埠维修","巩固拓展脱贫攻坚成果和乡村振兴","县农业农村局","长湖乡","自强村","自强村","产业发展","废旧机埠维修，设备更换，重新铺设管道",9,20251010,20251110,"完成废弃机埠维修，设备更换，重新铺设管道","88",7,"受益人口88人",9,{"$nulls":3},9]
[340,"岳县农组发〔2025〕1号","脐橙基地","巩固拓展脱贫攻坚成果和乡村振兴","县农业农村局","中洲乡","巴陵村","巴陵村","产业发展","日常除草、施肥、浇水",15,"2025.2.16","20251219","提升脐橙品质产量，脐橙苗顺利生长，强化日常管护，带动周边就业增收，实现生态经济多效共赢",3075,297,"提供就业机会，增产增收",15,{"$nulls":3},15]
[341,"岳县农组发〔2025〕5号","巴陵村抗旱渠道清淤疏浚","巩固拓展脱贫攻坚成果和乡村振兴","县农业农村局","中洲乡","巴陵村","巴陵村","产业发展","8000米抗旱渠道清淤疏浚",3,"2025.8.12","2025.8.31","解决巴陵村各农户灌溉抗旱难题，增加收入。",1282,210,"提供就业机会，增产增收",3,{"$nulls":3},3]
[342,"岳县农组发〔2025〕1号","金盆柚基地","巩固拓展脱贫攻坚成果和乡村振兴","县农业农村局","中洲乡","宝塔村","宝塔村","产业发展","金盆柚基地日常管护",20,"2025.2.26","20251219","提升金盆柚品质产量，强化日常管护，带动周边就业增收，实现生态经济多效共赢",735,13,"提供就业机会，增产增收",20,{"$nulls":3},20]
[343,"岳县农组发〔2025〕1号","北垸村三号型路基建设","巩固拓展脱贫攻坚成果和乡村振兴","县农业农村局","中洲乡","岳阳县中洲中辰机械施工队","岳阳县中洲中辰机械施工队","乡村建设行动","4050米机耕路路基建设，铺设卵石、平整、压实。",10,20250601,20250730,"1、为三号型村民生活出行带来便利\n2、为三号型村民养殖业减少运输成本，变相为农户增产增收\n3.加快现代农村建设",350,9,"出行带来便利为，农户增产增收",10,{"$nulls":3},10]
[344,"岳县农组发〔2025〕5号","北垸村东西二号渠清淤","巩固拓展脱贫攻坚成果和乡村振兴","县农业农村局","中洲乡","岳阳县中洲乡卫华机械施工队","岳阳县中洲乡卫华机械施工队","产业发展","2130米渠道清淤",2,20250730,20250930,"为2000多亩农田排涝抗旱带来保障，间接为农户增产增收",2600,90,"增产增收",2,{"$nulls":3},2]
[345,"岳县农组发〔2025〕1号，岳县农组发〔2025〕2号","风干鱼加工项目（集体经济）","巩固拓展脱贫攻坚成果和乡村振兴","县委组织部","中洲乡","岳阳县万利扬食品厂","岳阳县万利扬食品厂","产业发展","通过入股万利扬食品厂，开发北垸村的风干鱼、手撒酱板鱼的深加工,增加集体经济发展。增加机械设备，提高产量，增加村集体经济收入及增加村民务工收入，每年可为北垸村带来务工收入300多万元，厂房土地原承包出租收入3.4万。在现有基础上，可增加务工人员20人，预计入股后可增加村集体收入19.5万元",60,20250803,20251030,"增加村集体经济收入及增加村民务工收入",3651,271,"增加村集体收入，增加村民务工收入",60,{"$nulls":3},60]
[346,"岳县农组发〔2025〕1号","机场村蔬菜加工厂建设","巩固拓展脱贫攻坚成果和乡村振兴","县农业农村局","中洲乡","机场村","机场村","产业发展","新建设一栋长14.5米，宽28.5米，高4.6米的条形基础、框架结构蔬菜加工厂房，添置蔬菜加工设备，建筑面积约为420米²",20,20250601,20251030,"新建设一栋长14.5米，宽28.5米，高4.6米的条形基础、框架结构蔬菜加工厂房，添置蔬菜加工设备，建筑面积约为420米²",999,176,"增加村集体收入，增加村民务工收入",20,{"$nulls":3},20]
[347,"岳县农组发〔2025〕1号","机场村桂花鱼养殖","巩固拓展脱贫攻坚成果和乡村振兴","县农业农村局","中洲乡","机场村","机场村","产业发展","养鱼基础设备",10,"20250110","20251130","通过入股岳阳县诚为康生态农业有限公司，用于该公司养鱼基础设备建设、鱼类养殖，每年预计增加村集体经济收入0.5万元",20,16,"入股分红资金后续将用于脱贫户、监测户产业奖补",10,{"$nulls":3},10]
[348,"岳县农组发〔2025〕1号","坪桥湖村油茶套种","巩固拓展脱贫攻坚成果和乡村振兴","县农业农村局","中洲乡","坪桥湖村","坪桥湖村","产业发展","荒山开垦，油茶套种玉米、大豆1200亩",25,"2025.3.10","2025.6.25","增加集体经济收入",3265,132,"增加集体经济收入",25,{"$nulls":3},25]
[349,"岳县农组发〔2025〕1号","坪桥湖村桂花鱼养殖","巩固拓展脱贫攻坚成果和乡村振兴","县农业农村局","中洲乡","坪桥湖村","坪桥湖村","产业发展","长15米宽4.5米高7米混凝土倒置生化池，PVC水管500米",10,"2025.4.15","2025.6.25","增加集体经济收入",3265,132,"增加集体经济收入",10,{"$nulls":3},10]
[350,"岳县农组发〔2025〕1号","三江村三组断头路新建","巩固拓展脱贫攻坚成果和乡村振兴","县农业农村局","中洲乡","三江村","三江村","乡村建设行动","长100米宽3.5米道路硬化",5,"2025.6.24","2025.7.10","提供生产生活便利",452,11,"群众参与施工，增加收入",5,{"$nulls":3},5]
[351,"岳县农组发〔2025〕5号","5组、10组道路维修","巩固拓展脱贫攻坚成果和乡村振兴","县农业农村局","中洲乡","三江村","三江村","乡村建设行动","2590米道路铺卵石",10,"2025.9.10","2025.9.20","提供生产生活便利",452,12,"群众参与施工，增加收入",10,{"$nulls":3},10]
[352,"岳县农组发〔2025〕5号","黄精基地","巩固拓展脱贫攻坚成果和乡村振兴","县农业农村局","中洲乡","三江村","三江村","产业发展","黄精基地排水沟开挖硬化150米",3,"2025.9.20\n","2025.9.30","增加产量. 提高生产效率。",234,12,"群众参与施工，增加收入",3,{"$nulls":3},3]
[353,"岳县农组发〔2025〕1号","药材加工建设","巩固拓展脱贫攻坚成果和乡村振兴","县农业农村局","中洲乡","中洲村","中洲村","产业发展","160平钢架棚建设、烘干设备一台、筛选机一台、硬化等设备设施",10,"2025.3.1","2025.5.19","解决本村200多亩药材加工问题",947,21,"增加村集体收入，增加村民务工收入",10,{"$nulls":3},10]
[354,"岳县农组发〔2025〕1号，岳县农组发〔2025〕5号，岳县农联发〔2025〕10号","产业奖补","巩固拓展脱贫攻坚成果和乡村振兴","县农业农村局","中洲乡","中洲乡政府","中洲乡政府","产业发展","发展庭院经济，对有意愿有能力进行产业发展的农户进行产业奖补",27.01,"2025.4.15","2025.6.15","发展庭院经济，对有意愿有能力进行产业发展的农户进行产业奖补",1592,1592,"发展庭院经济，对有意愿有能力进行产业发展的农户进行产业奖补",17.01,10,null,null,27.01]
[355,"岳县农函〔2025〕25号","9组新建机埠","巩固拓展脱贫攻坚成果和乡村振兴","县农业农村局","中洲乡","平江河村","平江河村","产业发展","9组新建机埠1座",5,"2025.9.12","20251219","为灌溉提供便利",652,55,"为灌溉提供便利，增产增收",null,5,null,null,5]
[356,"岳县农函〔2025〕25号","北垸村二组机耕路维修","巩固拓展脱贫攻坚成果和乡村振兴","县农业农村局","中洲乡","北垸村","北垸村","乡村建设行动","1423米机耕路路基维修，预埋过路涵，铺设卵石、平整、压实。",5,"2025.9.30","20251030","提供生产生活便利",145,27,"提供生产生活便利，增产增收",null,5,null,null,5]
[357,"岳县农函〔2025〕25号","北垸村三号型路基建设（老区发展）","革命老区发展","县民政局","中洲乡","北垸村","北垸村","乡村建设行动","4050米道路路基建设，铺卵石、平整、压实",5,"2025.8.26","2025.9.30","提供生产生活便利",665,35,"提供生产生活便利，增产增收",null,5,null,null,5]
[358,"岳县农函〔2025〕25号","青镜片村级道路维修","巩固拓展脱贫攻坚成果和乡村振兴","县农业农村局","中洲乡","巴陵村","巴陵村","乡村建设行动","青镜片1—11组，大明片12—19组，金山片20组——23组，道路拓宽维修长6000米。",25,"2025.10.20","2025.11.10","提供生产生活便利",3075,297,"提供生产生活便利，增产增收",null,25,null,null,25]
[359,"岳县农函〔2025〕25号","坪桥湖村仁义片金山机埠维修","巩固拓展脱贫攻坚成果和乡村振兴","县农业农村局","中洲乡","坪桥湖村","坪桥湖村","乡村建设行动","抽水设备更换，机房维修，进、出水管更换及水渠管道埋设。",10,"2025.6.20","2025.7.10","为灌溉提供便利",764,12,"提供生产生活便利，增产增收",null,10,null,null,10]
[360,"岳县农组发〔2025〕1号，岳县农函〔2025〕26号","岳阳县一次性交通费补助","巩固拓展脱贫攻坚成果和乡村振兴","县农业农村局",null,"农业农村局","岳阳县","就业项目","对本年度外出务工的脱贫人口（含防止返贫监测对象）全覆盖发放一次性交通补助",218,"2025.12.1","2025.12.13","解决650多亩水田灌溉问题，带来增产，增收效益",425,14,"提供生产生活便利，增产增收",150,68,null,null,218]
[361,"岳县农组发〔2025〕1号","岳阳县小额信贷贴息","巩固拓展脱贫攻坚成果和乡村振兴","县农业农村局",null,"农商行","岳阳县","产业发展","2025年脱贫人口（含防止返贫监测对象）小额信贷贴息",128,"2025.01.01",20251219,"帮助监测户发展产业项目",1000,1000,"帮助监测户发展产业项目",128,{"$nulls":3},128]
[362,"岳县农组发〔2025〕1号","岳阳县公益性岗位补贴","巩固拓展脱贫攻坚成果和乡村振兴","县农业农村局",null,"县农业农村局","县农业农村局","就业项目","对符合条件的脱贫人口（含防止返贫监测对象）提供公益性岗位，发放工资",810,"2025.3.1",2025.12,"提高脱贫户、监测户收入",900,900,"提高脱贫户、监测户收入",810,{"$nulls":3},810]
[363,"岳县农组发〔2025〕1号","帮扶车间稳岗补贴","巩固拓展脱贫攻坚成果和乡村振兴","县农业农村局",null,"县农业农村局","县农业农村局","就业项目","对全县帮扶车间雇佣脱贫户、监测户务工，带动脱贫户、监测户就业给予帮扶车间一定的补贴",50,"2025.3.1",2025.08,"对全县23家帮扶车间雇佣脱贫户、监测户务工，带动脱贫户、监测户就业给予帮扶车间一定的补贴",206,206,"对全县23家帮扶车间雇佣脱贫户、监测户务工，带动脱贫户、监测户就业给予帮扶车间一定的补贴",50,{"$nulls":3},50]
[364,"岳县农组发〔2025〕1号，岳县农组发〔2025〕5号","岳阳县“雨露计划”职业教育补助","巩固拓展脱贫攻坚成果和乡村振兴","县农业农村局",null,"农业农村局","岳阳县","巩固三保障成果","对全县符合“雨露计划”发放条件的对象发放秋季“雨露计划”",270,"2025.3.1",20251219,"对岳阳县具有正式学籍的中职、高职在读建档立卡学生通过正常程序申报后符合条件的均可获得助学补助1500元/人·学期",1600,1600,"减轻农户教育成本，提高农户收入",270,{"$nulls":3},270]
[365,"岳县农函〔2025〕25号","朱砂桥村省级和美湘村建设","巩固拓展脱贫攻坚成果和乡村振兴","县农业农村局",null,"朱砂桥村","朱砂桥村","乡村建设行动","1、段丘屋场沟渠双侧护砌、底部硬化。2、朱砂七一水库维修加固，山塘清淤扩容、堤坡平整、低涵重建、泄洪道重建。3、朱砂片新建组小二型过渡水库水环境治理，采用生石灰进行杀菌、消毒，配合微生物菌改底和微生物藻调节水质。预计需投放复合菌种液8800L，复合藻种液8800L，生石灰3000KＧ，进行综合治理。4、朱砂片油桐种植、油茶管护项目，进行油桐苗购买及种植，形成100亩油桐种植项目，加强油桐、油茶日常管理。5、村部光伏充电站项目，利用村部屋顶建设光伏电站，引进充电桩公司投资建设充电桩，将村部发电出售给充电桩，余电进行上网。6、朱砂花果园产业路项目，新建道路全长700米，平整压实后硬化，宽4米，厚度20公分。7、李伏片树莓种植项目，村集体入股秋收信息技术服务有限公司（公司实施地在本村范围内），投入10万元资金入股分红。\n",100,"2025.1.01",2025.05,"1:根据省级和美湘村建设方案，保质保量完成段丘美丽屋场沟渠护砌、七一水库维修加固、过渡水库水环境治理、花果园产业路新建、花果园产业路新建、村部光伏充电站建设、油桐种植基地管护、以及树莓种植等7项目。\n2：顺利通过省市省级和美湘村建设验收\n3：全面提升村庄基础设施与农村人居环境，提升村民满意度。",3078,139,"改善农户生活环境，带动就业",null,100,null,null,100]
[366,"岳县农函〔2025〕25号","大峰村省级和美湘村建设","巩固拓展脱贫攻坚成果和乡村振兴","县农业农村局",null,"大峰村村委会","大峰村村委会","乡村建设行动","1、饶村小学至大傅屋场道路大约700米整修及提质改造。2、双石片，伍相片，金西片破损村组道路约1000平方大修。3、大峰村1.5公里灌排渠整修及护砌",50,"2025.3.1","2025.12.31","1:保质保量完成饶村小学至大傅屋场道路提质改造，双石、伍相、金西等破损村组道路维修，以及村域1.5公里灌排渠维修清淤等3个项目。2：对省级美丽村庄进一步提档升级，全面提升村庄基础设施与农村人居环境，提升村民满意度。",2080,136,"改善农户生活环境，带动就业",null,50,null,null,50]
[367,"岳县农函〔2025〕25号","麻布山村省级和美湘村建设","巩固拓展脱贫攻坚成果和乡村振兴","县农业农村局",null,"麻布山村村委会","麻布山村村委会","乡村建设行动","1、大坳片三合组至庙山组道路拓宽道路拓宽硬化1.5m*1200*02M。2、牌头片三合组解放塘清淤、护坡、新建泄洪道山塘清淤、50M*6m塘堤护坡硬化，新建泄洪道底涵。3、永和片五星组滩塘清淤及塘堤片石护砌塘加固、塌方长15M*高8M护砌，道路基础建设。4、大坳片明山组旅游路人行道改造人行道改造170mx1.2m。5、陈晏组排水港道改造约120米沟渠清淤、片石护砌180立方。6、麻布山村牌头片仁义组道路硬化道路硬化130m*3m。7、永和片新廖组道路硬化项目新建道路硬化（含路基）约150*3.5*0.2M。8、麻布山村美丽屋场内雨污分流沟改造项目姜志里屋场160米、大坳组屋场40米、明山组屋场100米，安装下水道盖3处。9、麻布山村景区道路水毁修复工程水毁路段护砌长8米*高5米片石护砌。10、麻布山村牌头片三合组晒谷场硬化项目晒谷场地硬化900平方，新建排水沟45米。11、麻布山村牌头片团结组晒谷场硬化项目晒谷场地硬化850平方。12、金永路新塘段危险路段改造道路硬化110mx5mx0.2m\n1200*02M",100,"2024.10.01","2025.05.30","1:根据省级和美湘村建设方案，保质保量完成大坳片三合组至庙山组道路拓宽升级、三合组解放塘维修加固、陈晏组排水港道改造、三合组晒谷场硬化等12个项目。2：顺利通过省市省级和美湘村建设验收3：全面提升村庄基础设施与农村人居环境，提升村民满意度。",3865,210,"改善农户生活环境，带动就业",null,100,null,null,100]
[368,"岳县农函〔2025〕29号","范家村省级和美湘村建设","巩固拓展脱贫攻坚成果和乡村振兴","县农业农村局",null,"范家村","范家村","乡村建设行动","1.开展美丽屋场建设，打造公路组、大屋组、章福、高家大屋等四个美丽屋场",100,"2025.6.1","2025.12.31","1、根据省级和美湘村建设方案，在2026年5月份前保质保量完成美丽屋场、基础设施、人居环境、以及集体经济发展等4个方面10项建设任务，因地制宜重点打造4个各具特色的美丽屋场，并以点带面，创新工作机制，改善乡村风貌，完善基础设施，提升服务水平，培育文明乡风，建设“六美”宜居宜业宜游和美范家村。2、顺利通过省市省级和美湘村建设验收。3、全面提升村庄基础设施与农村人居环境，提升村民满意度",4127,104,"改善农户生活环境，带动就业",null,100,null,null,100]
[369,"岳县农函〔2025〕25号","岳阳县高质量庭院经济项目（步仙镇山美村）","巩固拓展脱贫攻坚成果和乡村振兴","县农业农村局",null,"步仙镇山美村","步仙镇山美村","产业发展","金盆柚种植170亩、肉鸡养殖3000只",20,"2025-10-01","2025-12-01","促进农户稳定增收",157,54,"带动生产，促进产业发展",null,20,null,null,20]
[370,"岳县农函〔2025〕25号","岳阳县高质量庭院经济项目（毛田镇孟城村）","巩固拓展脱贫攻坚成果和乡村振兴","县农业农村局",null,"毛田镇孟城村","毛田镇孟城村","产业发展","金盆柚种植180亩、肉鸡养殖2500只",20,"2025-10-01","2025-12-01","促进农户稳定增收",170,22,"带动生产，促进产业发展",null,20,null,null,20]
[371,"岳县农函〔2025〕25号","岳阳县高质量庭院经济项目（月田镇立新村）","巩固拓展脱贫攻坚成果和乡村振兴","县农业农村局",null,"月田镇立新村","月田镇立新村","产业发展","金盆柚种植200亩、肉鸡养殖2000只",20,"2025-10-01","2025-12-01","促进农户稳定增收",203,124,"带动生产，促进产业发展",null,20,null,null,20]
[372,"岳县农函〔2025〕25号","岳阳县高质量庭院经济项目（公田镇饶港村）","巩固拓展脱贫攻坚成果和乡村振兴","县农业农村局",null,"公田镇饶港村","公田镇饶港村","产业发展","金盆柚种植200亩、肉鸡养殖2000只",20,"2025-10-01","2025-12-01","促进农户稳定增收",254,83,"带动生产，促进产业发展",null,20,null,null,20]
[373,"岳县农函〔2025〕25号","岳阳县高质量庭院经济项目（张谷英镇芭蕉村）","巩固拓展脱贫攻坚成果和乡村振兴","县农业农村局",null,"张谷英镇芭蕉村","张谷英镇芭蕉村","产业发展","金盆柚种植200亩、肉鸡养殖2000只",20,"2025-10-01","2025-12-01","促进农户稳定增收",244,55,"带动生产，促进产业发展",null,20,null,null,20]
[374,"岳县农函〔2025〕25号，岳县农函〔2025〕29号","2024年度新型农业经营主体贷款贴息","巩固拓展脱贫攻坚成果和乡村振兴","县农业农村局",null,"县农业农村局","县农业农村局","产业发展","针对全县范围内满足条件的新型经营主体，因农业生产经营需要、从湖南省内商业银行或银保监会批准从事支农融资业务的湖南省内保险公司取得的贷款的已支付利息，经主体自主申报后，按省财政贷款贴息政策进行补贴",784,2025.02,2025.12,"减轻新型农业经营主体融资成本负担，改善农业种养殖生产条件所必须的基础设施建设、设施设备；拓展产业链建设，增强农业生产和农产品加工能力，促进农产品的流通销售，带动就业和农户增收，促进了新型农业经营主体节能减排、资源化利用和农业可持发展。",3600,86,"带动就业，增加农户收入",null,784,null,null,784]
[375,"岳县农函〔2025〕26号","小型农业水利设施建设（提升山上经济作物灌溉水源保障能力）","巩固拓展脱贫攻坚成果和乡村振兴","县水利局",null,"县水利局","15个乡镇","产业发展","对全县各乡镇30口山上经济林周边山塘进行清淤整治",60,"2025-01-01","2025-10-20","清淤整治各乡镇30口山上经济林周边山塘",975,350,"带动就业，促进产业发展",null,60,null,null,60]
[376,"岳县农函〔2025〕26号","畅通“中梗阻”渠道","巩固拓展脱贫攻坚成果和乡村振兴","县水利局",null,"县水利局","15个乡镇","产业发展","改善灌溉面积1660亩、对接高标准农田面积2200亩",260,"2025-01-01","2025-10-20","改善灌溉面积1660亩、对接高标准农田面积2200亩。",800,125,"带动就业，促进产业发展",null,260,null,null,{"$f":"K383","v":260}]
[377,"岳县农函〔2025〕26号","恢复农村小水源蓄水能力","巩固拓展脱贫攻坚成果和乡村振兴","县水利局",null,"县水利局","15个乡镇","产业发展","对全县各乡镇395口山塘进行清淤整治，新增蓄水能力591000m³、改善灌溉面积5770亩",790,"2025-01-01","2025-10-20","清淤整治各乡镇395口山塘，新增蓄水能力591000m³、新增恢复灌溉面积660亩、改善灌溉面积5770亩。",10575,611,"带动就业，促进产业发展",null,790,null,null,790]
[378,"岳县财发〔2024〕166号","冬春水利建设项目","巩固拓展脱贫攻坚成果和乡村振兴","县水利局",null,"县水利局","15个乡镇","产业发展","对全县各乡镇395口山塘进行清淤整治，新增蓄水能力591000m³、改善灌溉面积5770亩",1098,"2025-06-06",20251210,"清淤整治各乡镇395口山上经济林周边山塘",975,350,"促进产业发展",{"$nulls":3},1098,1098]
[379,"岳县财发〔2024〕166号","农村环境卫生整治专项","巩固拓展脱贫攻坚成果和乡村振兴","县农业农村局",null,"农业农村局","15个乡镇","乡村建设行动","实施农村人居环境整治，实现垃圾清运、转运、无害化处理",2352.5,"2025.1.1",20251219,"进一步提升全县农村人居环境，力争全县农村人居环境整治排名全市前列，人民群众对乡村环境卫生满意度达到95%以上。",147000,10965,"进一步提升全县农村人居环境，力争全县农村人居环境整治排名全市前列，人民群众对乡村环境卫生满意度达到95%以上。",{"$nulls":3},2352.5,2352.5]
[380,"岳县财发〔2024〕166号","农村公路日常维修及维护（小型工程）","巩固拓展脱贫攻坚成果和乡村振兴","县农业农村局",null,"农业农村局","15个乡镇","乡村建设行动","农村公路日常维修及维护（小型工程）",700,"2025-02-10","2025-07-10","完成农村公路维修里程69公里",380000,10965,"带动就业，提高生活水平",{"$nulls":3},700,700]
[381,"岳县财发〔2024〕166号","小微水体整治资金","巩固拓展脱贫攻坚成果和乡村振兴","县水利局",null,"县水利局","15个乡镇","产业发展","对15个乡镇（街道）179处小微水体清污护砌，对塘身加固；对塘内清污干净，塘内塘身水泥护砌，巩固农业生产基础",400,20250320,20251020,"对15个乡镇（街道）179处小微水体清污护砌，对塘身加固",20000,360,"提高农业生产条件，带动就业",{"$nulls":3},400,400]
[382,"岳县农函〔2025〕31号","铁山水库至新墙镇管道工程","巩固拓展脱贫攻坚成果和乡村振兴","县水利局",null,"岳阳县岳路供水有限公司","铁山水库","产业发展","19.82Km管道及其附属设施",1280,20250101,20251219,"建设19.82km输水管道及其附属设施",311513,2216,"改善农业生产条件，带动务工",null,1280,null,null,1280]
[383,"岳县农函〔2025〕32号","陆基工厂化设施渔业养殖场项目","巩固拓展脱贫攻坚成果和乡村振兴","县畜牧水产发展服务中心",null,"青草大海（岳阳）农业科技有限公司","麻塘街道办事处东风村","产业发展","建设1800平米核心循环水养殖车间，含一号（鳜鱼）标苗养殖车间、二号（南美白对虾）标苗养殖车间、三号驯化养殖车间；高位养殖池、循环水及尾水处理系统及配套设施，基地管理及水质监测系统，新购置养殖设施设备共计70余套。",460,20250701,20251202,"1、折股量化资金≥184万元；优先脱贫人口，且不低于受益对象总数的50%；合作期限≥3年；分红率≥6%；\n2、订单收购农户直接收益92万元以上，其中脱贫户46万元以上；\n3、配套服务减免服务费46万元以上；\n4、其他方式除流转、租赁外，开展免费规范化的培训服务和指导1年2次以上",48,16,"保底收益+入股分红",null,460,null,null,460]
[384,"岳县农函〔2025〕32号","陆基工厂化设施渔业养殖场项目","巩固拓展脱贫攻坚成果和乡村振兴","县畜牧水产发展服务中心",null,"岳阳清河水养殖有限公司","新墙镇高桥村","产业发展","项目新建养殖水体3300立方米；建设养殖温棚2800平方米共4栋，生产管理用房200平方米，各类养殖池2600平方米（其中：PP养殖池36个，PE养殖池20个，镀锌板帆布圆池34个），尾水处理池1个，配套砖混生化，帆布生化池、帆布蓄水池，配套场区道路等工程；购置消毒、过滤等水处理系统、增氧系统、注排水系统、温控系统、智能监测、在线监测等设备。",200,20250701,20251202,"1、折股量化资金≥80万元；优先脱贫人口，且不低于受益对象总数的50%；合作期限≥3年；分红率≥6%；\n2、订单收购农户直接收益40万元以上，其中脱贫户20万元以上；\n3、配套服务减免服务费20万元以上；\n4、其他方式除流转、租赁外，开展免费规范化的培训服务和指导1年2次以上。",50,25,"保底收益+入股分红\n订单收购\n配套服务\n其他方式",null,200,null,null,200]
[385,"岳县农函〔2025〕32号","陆基工厂化设施渔业养殖场项目","巩固拓展脱贫攻坚成果和乡村振兴","县畜牧水产发展服务中心",null,"岳阳县金鳜养殖专业合作社","中洲乡渔场场部","产业发展","项目新建养殖水体370立方米；建设厂棚1个（养殖用棚1000平米）、养殖池6个、驯化池10个、生化池8个、水井3个，新购养殖设施设备共计28台",230,20250701,20251202,"1、折股量化资金≥80万元；优先脱贫人口，且不低于受益对象总数的50%；合作期限≥3年；分红率≥6%；\n2、订单收购农户直接收益40万元以上，其中脱贫户20万元以上；\n3、配套服务减免服务费20万元以上；\n4、其他方式除流转、租赁外，开展免费规范化的培训服务和指导1年2次以上。",46,23,"保底收益+入股分红\n订单收购\n配套服务\n其他方式",null,230,null,null,230]
[386,"岳县农函〔2025〕32号","水产精深加工生产线项目","巩固拓展脱贫攻坚成果和乡村振兴","县畜牧水产发展服务中心",null,"岳阳县长信农业开发有限公司","荣家湾镇城东村","产业发展","项目新购生物质蒸汽锅炉、筛鱼机+输送带、油炸机、烟罩、杏鲍菇切菜机、滚揉机、烧油机、风机、烤箱、三联卤+烟罩+管道、半自动灌装机、自动解冻设备、制冷机、异物检测、搅拌机、不锈钢烟囱、不锈钢桶、大油桶等生产设施设备，建成一条年产达到1500吨水产精深加工生产线1条",{"$f":"R393+S393+T393+U393","v":210},20250701,20251202,"1、吸纳就业新增脱贫劳动力就业21人以上，工资发放总额63万元以上，其中脱贫户工资发放总额31.5万元以上；\n2、订单收购农户直接收益42万元以上，其中脱贫户21万元以上；\n3、配套服务减免服务费21万元以上；\n4、其他方式除流转、租赁外，开展免费规范化的培训服务和指导1年2次以上。",42,21,"吸纳就业\n订单收购\n配套服务\n其他方式",null,210,null,null,210]
[387,"岳县农函〔2025〕32号","水产休闲食品加工生产线建设项目","巩固拓展脱贫攻坚成果和乡村振兴","县畜牧水产发展服务中心",null,"湖南大成食品有限公司","新开镇马店村","产业发展","主要进行生产车间扩建钢架棚300㎡，新增自动穿签机、抽签机、钢签、自动化设备YDZDH-230A、立式包装机-XB520A、X射线异物检测机、吊装解冻机、冷却机、9018喷码机、设备升级改造：双杠伺服卧式灌装机1#/2#-YD2G-SFGZJ-W-A、给袋式包装机-RZ10-100-14ZKJC、订制燃油油炸机、油炸锅排烟系统、旋流过滤机-XL-8、单层不锈钢烟囱、订制生物质蒸汽发生器-WHG4-0.09-4吨、不锈钢净水设备配套4吨、烟熏炉、打丝机-HKDSJ300、液压滚揉机YGR-3000等26套设备，建成一条年生产淡水鱼加工2000吨、产值1800万元的生产线",300,20250701,20251202,"1、吸纳就业新增脱贫劳动力就业30人以上，工资发放总额90万元以上，其中脱贫户工资发放总额45万元以上",60,30,"吸纳就业\n订单收购\n配套服务\n其他方式",null,300,null,null,300]
[388,"岳县农联发〔2025〕7号","岳阳县公田镇易地搬迁集中安置区维修改造项目","巩固拓展脱贫攻坚成果和乡村振兴","县发改局","公田镇","公田镇","易地搬迁集中安置点","易地搬迁后扶","1、屋顶及外立面破损维修改造;3个安置区维修改造1190平方米：2、房屋公共区域漏水渗水维修改造；4个安置区维修改造1941平方米",50,"2025.10.24",20251219,"通过易地搬迁安置区提质升级专项的实施，拟在1-3年内年逐步完成易地搬迁安置区提质升级  工作，确保搬迁群众稳得住、逐步能致富，推动集中安置区融入新型城镇化实现高质量发展。",45,45,"带动就业，增加贫困户收入",null,50,null,null,50]
[389,"岳县农联发〔2025〕8号","余家山塘维修项目工程","巩固拓展脱贫攻坚成果和乡村振兴","县农业农村局","柏祥镇","临港村",{"$f":"G396","v":"临港村"},"产业发展","1、清理山塘内0.8m深的淤泥约2560m³；2、山塘塘提长45m高3.5m宽4m做好塘提的护坡；3、建设使用踏步，4、山塘排水底口更换；",2,20251126,20251206,"改善水利条件，方便群众生产、水利灌溉促进发展农业生产增收。",182,26,"带动产业发展，带动务工",null,2,null,null,2]
[390,"岳县农联发〔2025〕8号","豆二组双塘扩容项目","巩固拓展脱贫攻坚成果和乡村振兴","县农业农村局","柏祥镇","七一村","七一村","产业发展","1、清理山塘内1.2m深的淤泥约1998m³；2、山塘塘提长50m高2.5m宽3m做好塘提的护坡；3、建设使用踏步，4、山塘排水底口更换；",2,20251115,20251206,"改善水利条件，方便群众生产、水利灌溉促进发展农业生产增收。",156,25,"带动产业发展，带动务工",null,2,null,null,2]
[391,"岳县农联发〔2025〕8号","王太组山塘清淤维修硬化","巩固拓展脱贫攻坚成果和乡村振兴","县农业农村局","柏祥镇","中村村","中村村","产业发展","清淤300立方米，硬化200平方米。",2,20251125,20251212,"改善水利条件，方便群众生产、水利灌溉促进发展农业生产增收。",178,27,"带动产业发展，带动务工",null,2,null,null,2]
[392,"岳县农联发〔2025〕8号","付家塘清污硬化","巩固拓展脱贫攻坚成果和乡村振兴","县农业农村局","柏祥镇","伏太村","伏太村","产业发展","挖机清污4000个立方，清淤1.5米深，坡面硬化约500平方",8,20251125,20251215,"改善水利条件，方便群众生产、水利灌溉促进发展农业生产增收。",158,18,"带动产业发展，带动务工",null,8,null,null,8]
[393,"岳县农联发〔2025〕8号","谷冲道路硬化","巩固拓展脱贫攻坚成果和乡村振兴","县农业农村局","步仙镇","新合村","新合村","乡村建设行动","道路拓宽硬化，全长3公里",20,"2025.10.20","2025.11.30","解决交通安全出行问题",4100,110,"解决全村村民的生产及出行安全",null,20,null,null,20]
[394,"岳县农联发〔2025〕8号","辛淑三桥拆除重建工程","巩固拓展脱贫攻坚成果和乡村振兴","县农业农村局","步仙镇","仙桥村","仙桥村","乡村建设行动","辛淑三桥老桥拆除，新建板桥一座，桥梁全长33米，宽7米",20,"2025.11.15","2025.12.01","解决生活生产交通出行问题",1865,137,"解决全村村民的生产及出行安全",null,20,null,null,20]
[395,"岳县农联发〔2025〕8号","进化集镇至万召片道路升级改造","巩固拓展脱贫攻坚成果和乡村振兴","县农业农村局","步仙镇","凤凰村","凤凰村","乡村建设行动","对产业路路边长90米、高2米、底宽1.5米、面宽0.8米浆砌石驳岸护砌",2,20251023,20251219,"解决金盆柚基地交通",1450,98,"发展集体经济，带动脱贫、监测人口增收",null,2,null,null,2]
[396,"岳县农联发〔2025〕8号","筻口居委会新塘水库扩容维修\n","巩固拓展脱贫攻坚成果和乡村振兴","县农业农村局","筻口镇","筻口居委会",{"$f":"G403","v":"筻口居委会"},"产业发展","新塘水库漏水处堤坝新建驳岸，约50米X10米,同时进行清淤扩容",{"$f":"R403+S403+T403+U403","v":5},20251201,"20251219","维修后有效改善92户303人农田灌溉问题，经居支两委、联村领导、党员、群众代表讨论决议机新塘水库扩容及维修。","303","6","群众筹资筹劳参与水利基础设施建设，保障脱贫户、监测户稳定增收",null,5,null,null,5]
[397,"岳县农联发〔2025〕8号","释迦寺村优质稻基地配套水利建设","巩固拓展脱贫攻坚成果和乡村振兴","县农业农村局","筻口镇","释迦寺村","释迦寺村","产业发展","中安片七组水渠清理450米，新建水泥U型槽40规格220米",3,"20251101","20251219","解决释迦寺村的农业生产，用水灌溉问题。受益农户69户，受益农田1100多亩。","636","49","群众筹资筹劳参与水利基础设施建设，保障脱贫户、监测户稳定增收",null,3,null,null,3]
[398,"岳县农联发〔2025〕8号","移山村莲塘片门口塘清淤","巩固拓展脱贫攻坚成果和乡村振兴","县农业农村局","筻口镇","移山村","移山村","产业发展","移山村莲塘片九组门口塘7.5亩水面扫障清淤，清淤约2米深",3,20251201,"20251219","解决了\n移山村\n莲塘片村民农业生产","106","5","群众筹资筹劳参与水利基础设施建设，保障脱贫户、监测户稳定增收",null,3,null,null,3]
[399,"岳县农联发〔2025〕8号","甘田村墈上组山塘维修","巩固拓展脱贫攻坚成果和乡村振兴","县农业农村局","公田镇","甘田村","甘田村","产业发展","塘内清污200立方；护砌40米、高2米、宽1米；排水沟30米",3,"2025.10.20","2025.12.12","改善农田灌溉增产增收",134,4,"改善周边农田灌溉45亩，群众增产增收",null,3,null,null,3]
[400,"岳县农联发〔2025〕8号","五龙桥村青山段道路拓宽扩建","巩固拓展脱贫攻坚成果和乡村振兴","县农业农村局","公田镇","五龙桥村","五龙桥村","乡村建设行动","青山段道路拓宽扩建挖方：长120m*宽3m*高8m，片石护砌：长440m*宽1.2m*高4.2m\n,土方回填：长447m*宽2.5m*高4m.\n",7,"2025.11.15","2025.12.01","改善群众出行，改善生产生活条件",134,4,"受益群众280户其中脱贫户数及防止返贫监测对象户数10户，脱贫人口数及防止返贫监测对象人口数26人，增加收入巩固脱贫成果·",null,7,null,null,7]
[401,"岳县农联发〔2025〕8号","秸秆综合利用奖补","巩固拓展脱贫攻坚成果和乡村振兴","县农业农村局","岳阳县生态能源服务中心","岳阳县生态能源服务中心","岳阳县生态能源服务中心","产业发展","对秸秆产业化利用主体的厂房建设及购置秸秆加工设备进行奖补。",84,20251023,20251219,"改善农田灌溉增产增收",280,"10","1、秸秆收购增收机制：让农户 “家门口卖秸秆得实惠”；2、就业岗位带动机制：让农户 “就近务工稳就业”；3、免费技能培训及技术指导秸秆分类、秸秆种植提质技术等；4、鼓励农户参与 “企业 + 合作社 + 农户” 模式，分享产业增值收益。",null,84,null,null,84]
[402,"岳县农联发〔2025〕9号","\n狮形水库维修加固\n","巩固拓展脱贫攻坚成果和乡村振兴","县农业农村局","公田镇","东淇村","东淇村","产业发展","狮形水库维修加固堤长30米、高10米；\n山塘清淤、内坡加固",12,"2025.11.15","2025.12.01","改善农田灌溉增产增收",560,"受益群众203户，其中脱贫户数及防止返贫监测对象户数8户，脱贫人口数及防止返贫监测对象人口数3人，增加收入巩固脱贫成果","受益群众203户，其中脱贫户数及防止返贫监测对象户数8户，脱贫人口数及防止返贫监测对象人口数3人，增加收入巩固脱贫成果",null,12,null,null,12]
[403,"岳县农联发〔2025〕9号","东坡组道路拓宽硬化","巩固拓展脱贫攻坚成果和乡村振兴","县农业农村局","公田镇","飞云村","飞云村","乡村建设行动","80米道路拓宽基础设施及硬化",5,"2025.11.15","2025.12.01","改善出行条件，提升村民的生活质量",148,"16人","受益群众56户，其中脱贫户数及防止返贫监测对象户数9户，脱贫人口数及防止返贫监测对象人口数16人，增加收入巩固脱贫成果",null,5,null,null,5]
[404,"岳县农联发〔2025〕9号","独圳丘塘清淤护砌","巩固拓展脱贫攻坚成果和乡村振兴","县农业农村局","公田镇","长安村","长安村","产业发展","塘内清淤1100立方、护砌长34米.高2.5米.宽0.8米",2,"2025.11.15","2025.12.01","改善村民生产生活用水.提升村民的生活质量","32户97人","2户9人","受益群众32户其中脱贫户户2户9人，改善农民生活质量.提高农民产业发展.",null,2,null,null,2]
[405,"岳县农联发〔2025〕9号","小湄片方家屋场道路拓宽硬化","巩固拓展脱贫攻坚成果和乡村振兴","县农业农村局","公田镇","大塅村","大塅村","乡村建设行动","250米道路拓宽至3.5米后硬化",10,"2025.10.20","2025.11.30","改善出行条件，提升村民的生活质量",102,16,"受益群众20户其中贫户数及防止返贫监测对象户数5户，脱贫人口数及防止返贫监测对象人口数16人，通过以工代赈，增加收入巩固脱贫成果",null,10,null,null,10]
[406,"岳县农联发〔2025〕9号","板桥安置点道路护坡","巩固拓展脱贫攻坚成果和乡村振兴","县农业农村局","公田镇","大塅村","大塅村","乡村建设行动","板桥安置点道路护坡，长25米，高4米",2,"2025.11.15","2025.12.01","改善出行条件，提升村民的生活质量",150,25,"受益群众50户其中贫户数及防止返贫监测对象户数9户，脱贫人口数及防止返贫监测对象人口数25人，通过以工代赈，增加收入巩固脱贫成果",null,2,null,null,2]
[407,"岳县农联发〔2025〕9号","公田片上屋组团结支渠维修","巩固拓展脱贫攻坚成果和乡村振兴","县农业农村局","公田镇","公田社区","公田社区","产业发展","渠道维修350米",3,"2025.11.15","2025.12.01","壮大村集体经济，改善农田灌溉，提升村民的生活质量。",365,26,"受益群众112户其中脱贫户数及防止返贫监测对象户数8户，脱贫人口数及防止返贫监测对象人口数26人，通过以工代赈，增加收入巩固脱贫成果",null,3,null,null,3]
[408,"岳县农联发〔2025〕9号","新民片六、七组道路拓宽工程","巩固拓展脱贫攻坚成果和乡村振兴","县农业农村局","黄沙街镇","大明村","大明村","乡村建设行动","和谐村-新民坪桥路段拓宽，长1.217公里，宽5米",5,"2025-12-01","2025-12-18","改善脱贫户及普通老百姓人居环境卫生，保障安全出行",480,45,"群众积极参与获得工资",null,5,null,null,5]
[409,"岳县农联发〔2025〕9号","茶场社区茶绿樱花红道路基础路设施沉水井建设","巩固拓展脱贫攻坚成果和乡村振兴","县农业农村局","黄沙街镇","茶场社区","茶场社区","乡村建设行动","建设茶场社区拦河片一至六组沉水井22座",3,"2025-10-22","2025-11-02","方便灌溉",200,15,"群众积极参与获得工资",null,3,null,null,3]
[410,"岳县农联发〔2025〕9号","罗汉果基地扩面、菊花种植","巩固拓展脱贫攻坚成果和乡村振兴","县农业农村局","黄沙街镇","苍坪村","苍坪村","产业发展","罗汉果基地扩面100亩，种植菊花",20,"2025-10-27","2025-12-18","发展集体经济",120,8,"群众积极参与获得工资",null,20,null,null,20]
[411,"岳县农联发〔2025〕9号","君召连二塘清淤，维修","巩固拓展脱贫攻坚成果和乡村振兴","县农业农村局","黄沙街镇","龙凤村","龙凤村","产业发展","君召连二塘清淤，塘堤维修12亩",2,"2025-12-01","2025-12-18","方便发展生产",250,40,"群众积极参与获得工资",null,2,null,null,2]
[412,"岳县农联发〔2025〕9号","五组灌溉沟渠清淤、加固","巩固拓展脱贫攻坚成果和乡村振兴","县农业农村局","麻塘办事处","原种场","原种场","产业发展","五组灌溉沟渠87米，宽1.15米，深1.1米混凝土硬化沟渠",10,"2025-12-25",20251219,"改善农田灌溉条件",500,12,"改善灌溉条件受益",null,10,null,null,10]
[413,"岳县农联发〔2025〕9号","邓家组门口塘清淤、护砌","巩固拓展脱贫攻坚成果和乡村振兴","县农业农村局","麻塘办事处","金垅村","金垅村","产业发展","水塘清淤约3000立方米、堤坡护砌58立方米",5,"2025-12-25",20251219,"改善农田灌溉条件",120,16,"改善灌溉条件受益",null,5,null,null,5]
[414,"岳县农联发〔2025〕9号","麻塘村水库组晒谷坪硬化项目","巩固拓展脱贫攻坚成果和乡村振兴","县农业农村局","麻塘办事处","麻塘村","麻塘村","乡村建设行动","对水库组300平方空地平整并进行硬化，另外加装不锈钢护栏43米",5,"2025-12-25",20251219,"完成300平方晒谷坪建设，改善生产条件",65,5,"改善生产条件受益",null,5,null,null,5]
[415,"岳县农联发〔2025〕9号","麻塘村果园组、笔架组安全饮水项目","巩固拓展脱贫攻坚成果和乡村振兴","县农业农村局","麻塘办事处","麻塘村","麻塘村","乡村建设行动","安装约1400米自来水管网",5,"2025-12-25",20251219,"完成1400米自来水管道安装，改善群众饮水安全",184,17,"饮水安全受益",null,5,null,null,5]
[416,"岳县农联发〔2025〕9号","枫梓碑机埠拦水坝维修项目","巩固拓展脱贫攻坚成果和乡村振兴","县农业农村局","麻塘办事处","东风村","东风村","产业发展","30米拦水坝混凝土浇筑防渗墙，溢洪口片石护砌",2,"2025-12-25",20251219,"完成30米拦水坝建设，改善农田灌溉条件",68,9,"改善灌溉条件受益",null,2,null,null,2]
[417,"岳县农联发〔2025〕9号","荷塘组公路塌方维修","巩固拓展脱贫攻坚成果和乡村振兴","县农业农村局","毛田镇","道仁村","道仁村","乡村建设行动","预埋100#高压涵洞20米、土方转运2000方、路面混泥土硬化200平方",5,2025.11,2025.12,"完善道路设施，方便群众出行",126,24,"安全出行，带动务工",null,5,null,null,5]
[418,"岳县农联发〔2025〕9号","水产养殖苗塘扩建","巩固拓展脱贫攻坚成果和乡村振兴","县农业农村局","毛田镇","道仁村","道仁村","产业发展","苗塘清淤扩容5亩、修筑堤坝50米、堤坝修建砖混结构挡土墙",5,2025.11,2025.12,"发展壮大产业项目，提高集体经济收入",57,22,"村集体增收，用于改善人居环境，及脱贫户等困难群体的救助",null,5,null,null,5]
[419,"岳县农联发〔2025〕9号","毛田片坡头组山塘维修","巩固拓展脱贫攻坚成果和乡村振兴","县农业农村局","毛田镇","毛田村","毛田村","产业发展","3口饮用水山塘清淤",5,2025.11,2025.12,"完善山塘渠道基础设施，优化水利功能",65,12,"解决山塘蓄水安全和灌溉",null,5,null,null,5]
[420,"岳县农联发〔2025〕9号","毛田片坡头组安全饮水工程","巩固拓展脱贫攻坚成果和乡村振兴","县农业农村局","毛田镇","毛田村","毛田村","乡村建设行动","新建过滤池，管道铺埋等",10,2025.11,2025.12,"解决安全饮水，保障居民用水",72,9,"保障安全饮水，带动务工",null,10,null,null,10]
[421,"岳县农联发〔2025〕9号","南冲片大屋组门口塘维修","巩固拓展脱贫攻坚成果和乡村振兴","县农业农村局","毛田镇","南冲村",{"$f":"G428","v":"南冲村"},"产业发展","塘内清淤，塘磡片石护砌",5,2025.11,2025.12,"完善山塘渠道基础设施，优化水利功能",68,14,"解决山塘蓄水安全和灌溉",null,5,null,null,5]
[422,"岳县农联发〔2025〕9号","下屋组石墈护砌","巩固拓展脱贫攻坚成果和乡村振兴","县农业农村局","毛田镇","芭蕉村","芭蕉村","乡村建设行动","104米长，7米高挡土墙",13,2025.11,2025.12,"完善道路设施，方便群众出行",156,22,"安全出行，带动务工",null,13,null,null,13]
[423,"岳县农联发〔2025〕9号","云山村联合片柏树组安全饮水项目","巩固拓展脱贫攻坚成果和乡村振兴","县农业农村局","毛田镇","云山村","云山村","乡村建设行动","水井扩容，加固，水管更换，铺设",3,2025.11,2025.12,"解决安全饮水，保障居民用水",65,12,"保障安全饮水，带动务工",null,3,null,null,3]
[424,"岳县农联发〔2025〕9号","相思村同乐片余家组安全饮水工程","巩固拓展脱贫攻坚成果和乡村振兴","县农业农村局","毛田镇","相思村","相思村","乡村建设行动","新建蓄水池，过滤池，管道铺埋等",2,2025.11,2025.12,"解决安全饮水，保障居民用水",162,12,"保障安全饮水，带动务工",null,2,null,null,2]
[425,"岳县农联发〔2025〕9号","中兴村中毛片公铺组公路拓宽护砌","巩固拓展脱贫攻坚成果和乡村振兴","县农业农村局","毛田镇","中兴村","中兴村","乡村建设行动","长29米，高2.6米，底宽1.5米，面宽0.6米",2,2025.11,2025.12,"完善道路设施，方便群众出行",225,48,"安全出行，带动务工",null,2,null,null,2]
[426,"岳县农联发〔2025〕9号","黄道村爱国片李景山山塘护砌维修","巩固拓展脱贫攻坚成果和乡村振兴","县农业农村局","毛田镇","黄道村","黄道村","产业发展","清淤,山塘护砌维修",2,2025.11,2025.12,"完善山塘渠道基础设施，优化水利功能",75,16,"解决山塘蓄水安全和灌溉",null,2,null,null,2]
[427,"岳县农联发〔2025〕9号","鹿角村风情谷产业路","巩固拓展脱贫攻坚成果和乡村振兴","县农业农村局","荣家湾街道","鹿角村","鹿角村","乡村建设行动","鹿角村蛇头港北窑咀风情谷产业路维修改造，路长500米，宽3米，工程量包括清障、拓宽、沙卵石铺设。",2,"2025-12-01",20251219,"发展旅游民宿风情产业，带动周边群众，解决群众出行安全问题，加快农资流通，增加收入。受益群众20户76人，其中脱贫户1户3人。",76,3,"解决群众出行安全问题，加快农资流通，增加收入",null,2,null,null,2]
[428,"岳县农联发〔2025〕9号","欣荣村先锋片张家冲门塘维修","巩固拓展脱贫攻坚成果和乡村振兴","县农业农村局","荣家湾街道","欣荣村","欣荣村","产业发展","欣荣村先锋片张家冲门塘维修，水塘面积2亩，堤坝渗水维修。",2,"2025-12-01",20251219,"受益水田40亩，每亩优质稻增产100斤。受益人口78人，其中脱贫户2户6人。",78,6,"群众水稻种植受益",null,2,null,null,2]
[429,"岳县农联发〔2025〕9号","东方村东方片江家冲道路维修","巩固拓展脱贫攻坚成果和乡村振兴","县农业农村局","荣家湾街道","东方村","东方村","乡村建设行动","东方村东方片江家冲道路维修，路长2公里，路宽5米。",3,"2025-11-23","2025-12-15","解决群众出行安全问题，加快农资流通，增加收入。受益群众180户750人，其中脱贫户5户21人。",750,21,"解决群众出行安全问题，加快农资流通，增加收入",null,3,null,null,3]
[430,"岳县农联发〔2025〕9号","兴园村株树片隋家屋场道路拓宽","巩固拓展脱贫攻坚成果和乡村振兴","县农业农村局","荣家湾街道","兴园村","兴园村","乡村建设行动","兴园村株树片隋家屋场道路拓宽，路长900米，拓宽至5米。",2,"2025-11-25","2025-12-15","解决群众出行安全问题，加快农资流通，增加收入。受益群众125户640人，其中脱贫户3户9人。",640,9,"解决群众出行安全问题，加快农资流通，增加收入",null,2,null,null,2]
[431,"岳县农联发〔2025〕9号","公诚村三义片吴三房门前灌溉水渠维修","巩固拓展脱贫攻坚成果和乡村振兴","县农业农村局","荣家湾街道","公诚村","公诚村","产业发展","公诚村三义片吴三房门前灌溉水渠维修，水渠长170米，高1.6米，宽2米。",5,"2025-12-01",20251219,"受益水田180亩，每亩优质稻增产100斤。受益人口478人，其中脱贫户4户14人。",478,14,"群众水稻种植受益",null,5,null,null,5]
[432,"岳县农联发〔2025〕9号","文发村三塘片周家坡上下塘清淤护坡及机耕路建设","巩固拓展脱贫攻坚成果和乡村振兴","县农业农村局","荣家湾街道","文发村","文发村","产业发展","文发村三塘片周家坡上下塘清淤护坡，两口水塘面积8亩；机耕路建700米，3.5米宽，砂砾石铺设。",7,"2025-12-01",20251219,"受益水田120亩，每亩优质稻增产100斤。受益人口350人，其中脱贫户4户12人。",350,12,"群众水稻种植受益",null,7,null,null,7]
[433,"岳县农联发〔2025〕9号","友爱村友爱片二组通铁路涵洞桥建设","巩固拓展脱贫攻坚成果和乡村振兴","县农业农村局","荣家湾街道","友爱村","友爱村","乡村建设行动","新建友爱村友爱片二、三、四组通铁路涵洞桥，桥长8米，宽3.5米。",3,"2025-12-01",20251219,"解决群众出行安全问题，加快农资流通，增加收入。受益群众72户300人，其中脱贫户4户15人。",300,15,"解决群众出行安全问题，加快农资流通，增加收入",null,3,null,null,3]
[434,"岳县农联发〔2025〕9号","六合垸村六合片八组产业路","巩固拓展脱贫攻坚成果和乡村振兴","县农业农村局","荣家湾街道","六合垸村","六合垸村","乡村建设行动","六合垸村六合片八组产业路维修，路长300米，宽3.5米，砂砾石铺设，部分路面拓宽。",5,"2025-12-01",20251219,"解决群众出行安全问题，加快农资流通，增加收入。受益人口45户180人，其中脱贫户2户7人。",180,7,"解决群众出行安全问题，加快农资流通，增加收入",null,5,null,null,5]
[435,"岳县农联发〔2025〕9号","岳武村共同片至星火连接路维修","巩固拓展脱贫攻坚成果和乡村振兴","县农业农村局","荣家湾街道","岳武村","岳武村","乡村建设行动","岳武村共同片至星火连接路2.2公里道路维修，包括板块维修，坑洞填补。",8,"2025-11-25","2025-12-15","解决群众出行安全问题，加快农资流通，增加收入。受益群众700户2800人，其中脱贫户70户256人。",2800,256,"解决群众出行安全问题，加快农资流通，增加收入",null,8,null,null,8]
[436,"岳县农联发〔2025〕9号","新堰渠道维修","巩固拓展脱贫攻坚成果和乡村振兴","县农业农村局","新开镇","共和村","船山片新屋组","产业发展","堰坝护砌，200米渠道维修",5,20251120,20251210,"解决新屋组、宋家组、船山组80户350人的种粮用水灌溉问题",350,15,"带动新屋组、宋家组、船山组80户350人，其中脱贫户5户15人",null,5,null,null,5]
[437,"岳县农联发〔2025〕9号","老挖塘清淤过水涵建设","巩固拓展脱贫攻坚成果和乡村振兴","县农业农村局","新开镇","常山村","常山片十三组","产业发展","埋设80Cm涵10米，清涵800立方米",2,20251201,20251219,"解决下游群众灌溉用水，和生活用水的需求",120,19,"带动十三组30户120人，其中脱贫户4户19人",null,2,null,null,2]
[438,"岳县农联发〔2025〕9号","永安片曾家-陶铺机埠及引水灌溉渠维修项目","巩固拓展脱贫攻坚成果和乡村振兴","县农业农村局","新开镇","马山村","永安片曾家组","产业发展","永安片曾家-陶铺机埠维修及860米引水灌溉渠清淤、疏通",2,20251112,20251219,"解决两组21户（包括脱贫户3户五保户1户）60余亩农田灌溉,增加农户收入",65,8,"解决两组21户（包括脱贫户3户五保户1户）60余亩农田灌溉,增加农户收入",null,2,null,null,2]
[439,"岳县农联发〔2025〕9号","大马片干冲塘维修加固","巩固拓展脱贫攻坚成果和乡村振兴","县农业农村局","新开镇","友谊村","友谊村","产业发展","堤坡清表1500平方，立子管开挖及安装20米，泄洪口20米，塘堤加固加高1米，宽5米，长65米，堤脚基础65米长，混凝土护坡65米*6米，100米*50米塘内清污",2,20251112,20251219,"提高了周边农户供水能力,确保水源充足,供水稳定,改善灌溉条件.防洪减灾,确保农田得到充分灌溉,提高农作物的产量和质量,帮助农民增加收入.",105,12,"带动全村农户867户、3086人增产增收，其中脱贫户33户，84人。",null,2,null,null,2]
[440,"岳县农联发〔2025〕9号","美庄组门前塘堤硬化","巩固拓展脱贫攻坚成果和乡村振兴","县农业农村局","新开镇","新开村","新开村","产业发展","堤面硬化85米，宽5.5米",4,20251120,20251219,"解决新开片美庄组46户146人的种粮用水灌溉问题",146,11,"带动新开片美庄组46户146人，其中脱贫户3户11人",null,4,null,null,{"$f":"K447","v":4}]
[441,"岳县农联发〔2025〕9号","小源片八组沙石塘清淤维修项目","巩固拓展脱贫攻坚成果和乡村振兴","县农业农村局","新开镇","马店村","马店村","产业发展","塘内约2600平方范围清淤外运，40米塘堤加宽加高加固，低涵维修，低涵囗做3米宽2米高的八字挡土墙，溢洪道长5米维修硬化",4,20251115,20251219,"为解决小源片五、六、八、九组农户农田灌溉，确保农户正常生产",367,27,"为解决小源片五、六、八、九组农户农田灌溉，确保农户正常生产，其中脱贫户13户，27人",null,4,null,null,4]
[442,"岳县农联发〔2025〕9号","罗公山塘维修","巩固拓展脱贫攻坚成果和乡村振兴","县农业农村局","新开镇","龙湾村","龙湾村","产业发展","清淤500立方米、护切内坡600平方米、大堤加固",4,20251115,20251219,"解决瞿保组80户种粮用水灌溉问题",310,10,"带动黎桂片480人",null,4,null,null,4]
[443,"岳县农联发〔2025〕9号","高桥村高桥片沟渠建设","巩固拓展脱贫攻坚成果和乡村振兴","县农业农村局","新墙镇","高桥村","高桥村","产业发展","400米沟渠新建",13,"2025-11-15","2025-12-15","就业人员每年大概2000元左右收入",151,24,"为周边群众130户456人带来劳动就业机会，",null,13,null,null,13]
[444,"岳县农联发〔2025〕9号","先锋片甘沙组渠道护砌","巩固拓展脱贫攻坚成果和乡村振兴","县农业农村局","新墙镇","双枫村","双枫村","产业发展","对先锋片杨溪桥机埠渠道清淤护砌30米并转运清理一期二期产生的淤泥渣土。",2,"2025-08-01","2025-12-01","该项目建设可解决先锋片该组28户村民农田灌溉，可加大对村民增产增收。",76,13,"群众参与施工",null,2,null,null,2]
[445,"岳县农联发〔2025〕9号","少星组山塘山塘清淤护砌","巩固拓展脱贫攻坚成果和乡村振兴","县农业农村局","新墙镇","清水村","清水村","产业发展","清除5.2亩山塘塘内淤泥、腐殖质及杂物，塘坝坝体及塘岸护砌",3,"2025-11-01","2025-12-01","塘体水质改善，水体净化能力提升，减少淤泥污染，生态环境质量得到改善",102,24,"群众参与施工",null,3,null,null,3]
[446,"岳县农联发〔2025〕9号","麻洞组安全饮水工程","巩固拓展脱贫攻坚成果和乡村振兴","县农业农村局","杨林街镇","王安村","王安村","乡村建设行动","新建深水井6座、入户管网2000米，改善麻洞组村民饮水问题。",7,"2025-11-01","2025-11-30","改善保障麻洞组全体村民安全饮水问题。",69,6,"保障村民安全饮水",null,7,null,null,7]
[447,"岳县农联发〔2025〕9号","刘家组路边塘驳岸护砌","巩固拓展脱贫攻坚成果和乡村振兴","县农业农村局","杨林街镇","溪源村","溪源村","乡村建设行动","驳岸全长60米，高1.5米至2.5米",2,"2025-11-01","2025-12-15","新建、保护道路，完善交通基础设施。",54,6,"带动生产，带动务工",null,2,null,null,2]
[448,"岳县农联发〔2025〕9号","塘先组对门垄渠清污护砌","巩固拓展脱贫攻坚成果和乡村振兴","县农业农村局","杨林街镇","兰泽村","兰泽村","产业发展","渠道清污护砌长约110米，、宽80cm、深90cm.",3,"2025-10-30","2025-12-16","清污护砌渠道，提高农业生产。",85,15,"带动农民增收。",null,3,null,null,3]
[449,"岳县农联发〔2025〕9号","国庆至赵洞公路段护砌","巩固拓展脱贫攻坚成果和乡村振兴","县农业农村局","月田镇","稻田村","稻田村","乡村建设行动","国庆白善桥至赵洞龙潭湾道路护砌，约115平方。",4,"2025.11.27","2025.12.10","便于村民出行",700,50,"群众积极参与获得工资",null,4,null,null,4]
[450,"岳县农联发〔2025〕9号","刘氏庙金鱼组道路硬化","巩固拓展脱贫攻坚成果和乡村振兴","县农业农村局","月田镇","铁山湖村","铁山湖村","乡村建设行动","拓宽长3300米，宽2米，硬化宽1.5米",10,"2025.11.24","2025.12.12","便于村民出行",1000,40,"群众积极参与获得工资",null,10,null,null,10]
[451,"岳县农联发〔2025〕9号","大洲片枫树组黑臭水治理","巩固拓展脱贫攻坚成果和乡村振兴","县农业农村局","月田镇","铁山湖村","铁山湖村","乡村建设行动","修建大型净化池4个长5米、宽2米共10个立方",6,"2025.11.20","2025.12.14","便于村民出行",1000,40,"群众积极参与获得工资",null,6,null,null,6]
[452,"岳县农联发〔2025〕9号","月田村安全饮水工程","巩固拓展脱贫攻坚成果和乡村振兴","县农业农村局","月田镇","月田村","月田村","乡村建设行动","建一座10立方米的饮水井和10立方米蓄水池一个，铺设900余米的供水管",5,"2025.11.27","2025.12.13","便于村民出行",300,100,"群众积极参与获得工资",null,5,null,null,5]
[453,"岳县农联发〔2025〕9号","茨洞村塘湾组道路拓宽硬化","巩固拓展脱贫攻坚成果和乡村振兴","县农业农村局","月田镇","茨洞村","茨洞村","乡村建设行动","茨洞村塘湾组原茨洞小学道路，全程453米，原路面178米长3米宽硬化路，现拓宽硬化2米，新建275米长3米宽。",19,"2025.11.25","2025.12.8","便于村民出行",800,40,"群众积极参与获得工资",null,19,null,null,19]
[454,"岳县农联发〔2025〕9号","立新村邓谷片、上庄片、大陂片破损路面切板硬化","巩固拓展脱贫攻坚成果和乡村振兴","县农业农村局","月田镇","立新村","立新村","乡村建设行动","立新村邓谷片、上庄片、大陂片破损路面切板硬化共计550平方",7,"2025.11.28","2025.12.14","便于村民出行",1000,40,"群众积极参与获得工资",null,7,null,null,7]
[455,"岳县农联发〔2025〕10号","大明山涧草农仓豆制品加工厂提质改造","巩固拓展脱贫攻坚成果和乡村振兴","县农业农村局","张谷英镇","大明山村","大明山村","产业发展","1.屋顶翻新.2.优化改良地面528㎡.3.水电重新安装",{"$f":"R462+S462+T462+U462","v":15},20250501,20251030,"产生集体经济5万元",1000,23,"就近解决全村群众就业，帮助群众销售农产品，增加群众收入。",null,15,null,null,15]
[456,"岳县农联发〔2025〕10号","金盆柚基地产业路拓宽","巩固拓展脱贫攻坚成果和乡村振兴","县农业农村局","张谷英镇","风水村","风水村","乡村建设行动","风水村金盆柚基地产业路拓宽路基至约4.5米宽",3,20250501,20250830,"风水村金盆柚基地产业路拓宽路基至约4.5米宽",326,49,"增加群众收入",null,3,null,null,3]
[457,"岳县农联发〔2025〕10号","花园片冲屋饮水工程","巩固拓展脱贫攻坚成果和乡村振兴","县农业农村局","张谷英镇","朱公桥村","朱公桥村","乡村建设行动","水管铺设、修建水池、打井",4,20251101,20251219,"确保花园片冲屋396人饮水充足，饮水安全",396,3,"朱公桥村受益人口396人",null,4,null,null,4]
[458,"岳县农联发〔2025〕10号","京广七组刘家组清污、硬化","巩固拓展脱贫攻坚成果和乡村振兴","县农业农村局","长湖乡","长湖乡","长湖乡","产业发展","水塘清污，塘堤整形81米并硬化塘堤长65米，高4.5米，厚0.1米",3,20251010,20251110,"完成水塘清污，塘堤整形81米并硬化塘堤长65米，高4.5米，厚0.1米",80,12,"带动群众增收",null,3,null,null,3]
[459,"岳县农联发〔2025〕10号","马头组裤脚塘清污","巩固拓展脱贫攻坚成果和乡村振兴","县农业农村局","长湖乡","自强村","自强村","产业发展","马头组裤脚塘清污8000立方",3,20251101,20251219,"完成马头组裤脚塘清污8000立方",20,5,"受益农户20人数",null,3,null,null,3]
[460,"岳县农联发〔2025〕10号","自强村金盆柚基地管道铺设与追肥工程","巩固拓展脱贫攻坚成果和乡村振兴","县农业农村局","长湖乡","自强村","自强村","乡村建设行动","自强村集体金盆柚基地维护，铺设灌溉管道1080米，40亩金盆柚追肥",7,20251101,20251219,"完成自强村集体金盆柚基地维护，铺设灌溉管道1080米，40亩金盆柚追肥",62,30,"受益农户62人数",null,7,null,null,7]
[461,"岳县农联发〔2025〕10号","岳阳县瑞民养殖农民专业合作社路基硬化","巩固拓展脱贫攻坚成果和乡村振兴","县农业农村局","长湖乡","白羊村","白羊村","乡村建设行动","长100米，宽6米，厚20公分",5,20250611,202510,"完成路基长100米，宽6米，厚20公分硬化",88,4,"带动群众增收",null,5,null,null,5]
[462,"岳县农联发〔2025〕10号","长湖乡洪桥村水库组防汛道路建设","巩固拓展脱贫攻坚成果和乡村振兴","县农业农村局","长湖乡","长湖乡","长湖乡","乡村建设行动","3.17km，原道路路基清理、碎石换填、拓宽（原道路3m拓宽至5m）",10,20251010,20251110,"完成3.17km，原道路路基清理、碎石换填、拓宽（原道路3m拓宽至5m）",112,11,"带动群众增收",null,10,null,null,10]
[463,"岳县农联发〔2025〕10号","仁义片13、14组渠道维修","巩固拓展脱贫攻坚成果和乡村振兴","县农业农村局","中洲乡","坪桥湖村","坪桥湖村","产业发展","仁义片13、14组1000米渠道 挖机开沟，PE管道埋设，闸阀安装",20,"2025.12.1","2025.12.13","解决650多亩水田灌溉问题，带来增产，增收效益",425,14,"提供生产生活便利，增产增收",null,20,null,null,20]
["县市区财政部门盖章:                                                   县市区农业农村部门盖章：                                  县市区发改部门盖章：                                               县市区民宗部门盖章：                                                 \n县市区民政部门盖章：                                                县市区林业部门盖章：                                          县市区组织部盖章："]
["注：此表数据同表1公告公示表的数据一致。“项目所属任务方向”填巩固脱贫成果和乡村振兴、以工代赈、少数民族发展、革命老区发展、欠发达农场、欠发达林场"]

{"sheet":"Sheet1","index":1,"n_rows":43,"n_cols":22,"rows_kept":43,"merged":[[1,0,1,21],[2,0,3,0],[2,1,3,1],[2,2,3,2],[2,4,3,4],[2,5,3,5],[2,6,3,6],[2,7,3,7],[2,8,3,8],[2,9,3,9],[2,10,3,10],[2,11,3,11],[2,12,3,12],[2,13,3,13],[2,14,3,14],[2,15,2,18],[2,19,3,19],[2,20,3,20],[2,21,3,21]]}
[]
[]
["项目名称","项目所属任务方向","主管单位",null,"实施单位","建设地点","项目类别","项目建设内容","项目金额","项目建设计划开始日期","项目建设计划完工日期","绩效目标","项目受益\n总户数和总人数","受益贫困总户数和总人数","群众参与和利益联结机制","资金来源及级次",{"$nulls":3},"支出规模","支出进度","备注"]
[{"$nulls":15},"中央","省级","市级","县级"]
["坪桥片一组、二组上门塘清淤护砌","巩固拓展脱贫攻坚成果和乡村振兴","县农业农村局","黄沙街镇","苍坪村","苍坪村","产业发展","20亩灌溉塘清淤护砌，解决坪桥片一组、二组近400亩稻田灌溉",10,"2025/10/01","2025-11-30","保障农业生产",251,{"v":50,"d":"50.00"},"群众积极参与获得工资",10,{"$nulls":3},10,{"v":1,"d":"1.0"}]
["坪桥片九组机埠新建","巩固拓展脱贫攻坚成果和乡村振兴","县农业农村局","黄沙街镇","苍坪村","苍坪村","产业发展","解决坪桥片九组稻田灌溉",14,"2025/07/01","2025-08-30","保障农业生产",180,{"v":23,"d":"23.00"},"群众积极参与获得工资",14,{"$nulls":3},14,{"v":1,"d":"1.0"}]
["罗汉果与金盆柚种值项目（发展新型农村集体经济）","巩固拓展脱贫攻坚成果和乡村振兴","县农业农村局","黄沙街镇","苍坪村","苍坪村","产业发展","流转土地350亩，因地制宜发展罗汉果、金盆柚基地、甜叶菊种植、黄桃种植等特色产业，并免费为农户进行专业技术培训。以农户加村集体的运营模式给农户增收，促进村集体发展。",50,"2025/11/01","2026/02/20","带动周边经济发展和解决有劳动能力的贫困户就业。促进脱贫户、监测户多渠道长期稳定收益增收",100,{"v":20,"d":"20.00"},"群众积极参与获得工资",50,{"$nulls":3},50,{"v":1,"d":"1.0"}]
["茶场社区茶绿樱花红旅游产业道路建设（二期）","巩固拓展脱贫攻坚成果和乡村振兴","县农业农村局","黄沙街镇","茶场社区","茶场社区","乡村建设行动","茶绿樱花红旅游产业道路拓宽硬化，长度3km，由原路面5m拓宽至8m",23,"2025-01-03","2025-04-21","方便居民通行",351,{"v":100,"d":"100.00"},"群众积极参与获得工资",23,{"$nulls":3},23,{"v":1,"d":"1.0"}]
["大群界柳元七路段拓宽硬化","巩固拓展脱贫攻坚成果和乡村振兴","县农业农村局","黄沙街镇","大金村","大金村","乡村建设行动","7亩灌溉塘清淤维修，解决近200亩稻田灌溉",3,"2025/11/01","2025-12-01","按时完成大群界柳元七路段拓宽硬化",175,{"v":35,"d":"35.00"},"群众积极参与获得工资",3,{"$nulls":3},3,{"v":1,"d":"1.0"}]
["大众片一组机埠新建","巩固拓展脱贫攻坚成果和乡村振兴","县农业农村局","黄沙街镇","大金村","大金村","产业发展","解决大众片一组稻田灌溉",18,"2025-05-27","2025-10-15","解决大众片一组稻田灌溉",263,{"v":15,"d":"15.00"},"群众积极参与获得工资",18,{"$nulls":3},18,{"v":1,"d":"1.0"}]
["余兰片四组鹿场产业道路硬化","巩固拓展脱贫攻坚成果和乡村振兴","县农业农村局","黄沙街镇","大明村","大明村","乡村建设行动","余兰片四组鹿场进出道路及地坪硬化，道路120米长，地坪240平方米",4,"2025-07-02","2025-07-05","方便居民通行，推动鹿场生产发展",354,{"v":65,"d":"65.00"},"群众积极参与获得工资",4,{"$nulls":3},4,{"v":1,"d":"1.0"}]
["余兰片机埠新建","巩固拓展脱贫攻坚成果和乡村振兴","县农业农村局","黄沙街镇","大明村","大明村","产业发展","解决余兰片稻田灌溉",15,"2025/10/01","2025-10-15","解决余兰片稻田灌溉",187,{"v":32,"d":"32.00"},"群众积极参与获得工资",15,{"$nulls":3},15,{"v":1,"d":"1.0"}]
["大明村大矶头、沙园、温家冲机埠机埠维修","巩固拓展脱贫攻坚成果和乡村振兴","县农业农村局","黄沙街镇","大明村","大明村","产业发展","大矶头、沙园、温家冲机埠维修",12.2,"2025-12-01","2025-12-10","按时完成机埠维修，保障农田用水",369,{"v":21,"d":"21.00"},"群众积极参与获得工资",12.2,{"$nulls":3},12.2,{"v":1,"d":"1.0"}]
["御景轩苗木种植项目","巩固拓展脱贫攻坚成果和乡村振兴","县农业农村局","黄沙街镇","御景轩","御景轩","产业发展","御景轩苗木种植（150亩树木种植、移栽、施肥、培育）",10,"2025-12-01","2025-12-25","种植御景轩苗木150亩",80,{"v":6,"d":"6.00"},"群众积极参与获得工资",10,{"$nulls":3},10,{"v":1,"d":"1.0"}]
["复兴村防汛抗旱","巩固拓展脱贫攻坚成果和乡村振兴","县农业农村局","黄沙街镇","御景轩","御景轩","产业发展","和平支渠、高峰岭支渠、天杨支渠渠道清淤",5,"2025-07-05","2025-07-22","完成和平支渠、高峰岭支渠、天杨支渠渠道清淤，做好防汛抗旱工作",300,{"v":12,"d":"12.00"},"群众积极参与获得工资",5,{"$nulls":3},5,{"v":1,"d":"1.0"}]
["梓强油茶种植","巩固拓展脱贫攻坚成果和乡村振兴","县农业农村局","黄沙街镇","和谐村","和谐村","产业发展","梓强油茶种植（600亩油茶树种植、移栽、施肥、培育）",11,"2025-06-19","2025-09-20","种植梓强油茶600亩",120,{"v":10,"d":"10.00"},"群众积极参与获得工资",11,{"$nulls":3},11,{"v":1,"d":"1.0"}]
["新华小学茶油烘干厂场地建设","巩固拓展脱贫攻坚成果和乡村振兴","县农业农村局","黄沙街镇","和谐村","和谐村","产业发展","1200亩场地建设，入股新华小学茶油烘干厂场地建设项目，增加村集体分红。场地开发建设后资产为和谐村集体所有，和谐村集体经营管理",20,"2025-06-05","2025-12-20","增加村集体分红",240,{"v":32,"d":"32.00"},"群众积极参与获得工资",20,{"$nulls":3},20,{"v":1,"d":"1.0"}]
["大联片五组、六组机埠维修","巩固拓展脱贫攻坚成果和乡村振兴","县农业农村局","黄沙街镇","荷塘村","荷塘村","产业发展","解决大联片五组、六组稻田灌溉",22,"2025-10-22","2025-11-22","解决大联片五组、六组稻田灌溉",400,{"v":154,"d":"154.00"},"群众积极参与获得工资",22,{"$nulls":3},22,{"v":1,"d":"1.0"}]
["樱花苗木种植","巩固拓展脱贫攻坚成果和乡村振兴","县农业农村局","黄沙街镇","黄沙村\n村委会","黄沙村\n村委会","产业发展","苗木种植、移栽、施肥、培育110亩",5,"2025-06-19","2025-09-20","发展产业经济",180,{"v":20,"d":"20.00"},"群众积极参与获得工资",5,{"$nulls":3},5,{"v":1,"d":"1.0"}]
["周冲片一组门前机耕路修建拓宽","巩固拓展脱贫攻坚成果和乡村振兴","县农业农村局","黄沙街镇","黄沙村\n村委会","黄沙村\n村委会","乡村建设行动","长300米道路平整，修建拓宽1.6米并硬化",5,"2025-06-22","2025-11-21","按时完成道路建设",350,{"v":68,"d":"68.00"},"群众积极参与获得工资",5,{"$nulls":3},5,{"v":1,"d":"1.0"}]
["监测户、脱贫户产业奖补","巩固拓展脱贫攻坚成果和乡村振兴","县农业农村局","黄沙街镇","黄沙街镇\n人民政府","黄沙街镇\n人民政府","产业发展","用于发放监测户、脱贫户肥料、种苗、鸡苗等生产物资",55.87,"2025-06-22","2025-09-30","帮助监测户，脱贫户发展产业、增收",2100,{"v":2100,"d":"2100.00"},"群众积极参与获得工资",45.87,10,null,null,45.87,{"v":0.82,"d":"0.8"}]
["黄秀村政家屋机埠改造及维修工程","巩固拓展脱贫攻坚成果和乡村振兴","县农业农村局","黄沙街镇","黄秀村","黄秀村","产业发展","政家屋机埠改造工程包括原机埠拆除，土方开挖、土方回填、机房基础浆砌石挡土墙，新建机房，购买设备；嘴上晏、旁家庄机埠维修工程包括机埠房屋面维修，内外墙凿除重新粉刷水泥压光，更换所有设备",14.8,"2025-11-01","2025-11-20","按时完成机埠改造，更新设备",101,{"v":65,"d":"65.00"},"群众积极参与获得工资",14.8,{"$nulls":3},14.8,{"v":1,"d":"1.0"}]
["群乐片十三组门前塘水利建设","巩固拓展脱贫攻坚成果和乡村振兴","县农业农村局","黄沙街镇","刘士奇村","刘士奇村","产业发展","刘士奇村群乐片十三组门前塘护彻、清淤2亩",5,"2025-11-01","2025-11-20","做好前塘护彻、清淤",369,{"v":40,"d":"40.00"},"群众积极参与获得工资",5,{"$nulls":3},5,{"v":1,"d":"1.0"}]
["先锋片六组机埠新建","巩固拓展脱贫攻坚成果和乡村振兴","县农业农村局","黄沙街镇","龙凤村","龙凤村","产业发展","解决先锋片六组稻田灌溉",14,"2025-05-21","2025-05-29","解决380亩农田灌溉",240,{"v":35,"d":"35.00"},"群众积极参与获得工资",14,{"$nulls":3},14,{"v":1,"d":"1.0"}]
["龙凤村青山片邓冲二塘维修清淤","巩固拓展脱贫攻坚成果和乡村振兴","县农业农村局","黄沙街镇","龙凤村","龙凤村","产业发展","该塘面积4800平方米，灌溉面积260亩，因年久失修无法灌需要对该塘进行清淤7000立方米，塘堤70米进行维修加固，低涵，高涵，修建溢洪道",5,"2025-11-30","2025-12-30","解决260亩农田灌溉",140,{"v":12,"d":"12.00"},"群众积极参与获得工资",5,{"$nulls":3},5,{"v":1,"d":"1.0"}]
["樱花苗木园基地建设（发展新型农村集体经济）","巩固拓展脱贫攻坚成果和乡村振兴","县农业农村局","黄沙街镇","龙凤村","龙凤村","产业发展","流转承包600亩土地，种植樱花苗木，拓宽道路，发展农旅产业。入股该公司在本村樱花苗木基地建设项目，通过出售苗木，产生收益，收益百分之二十归本村所有",50,"2025-11-30","2025-12-30","发展产业经济",200,{"v":20,"d":"20.00"},"群众积极参与获得工资",50,{"$nulls":3},50,{"v":1,"d":"1.0"}]
["新堤片黄应时大塘水稻基地配套水利设施建设","巩固拓展脱贫攻坚成果和乡村振兴","县农业农村局","黄沙街镇","新天村","新天村","产业发展","压水涵建设及黄应时大塘堤坡硬化100米",9,"2025-05-30","2025-06-20","改善灌溉条件，促进增收",420,{"v":35,"d":"35.00"},"群众积极参与获得工资",9,{"$nulls":3},9,{"v":1,"d":"1.0"}]
["荷塘村滨湖片白虎山荷塘机埠重建工程","巩固拓展脱贫攻坚成果和乡村振兴","县农业农村局","黄沙街镇","荷塘村","荷塘村","产业发展","机埠设备换新、管道换新50米、硬化工作面520平方、下火线开关、防汛吊机重新安装、土方填坑、泥沙挡土墙等",13,"2025-11-30","2025-12-30","改善灌溉条件，促进增收",110,{"v":20,"d":"20.00"},"群众积极参与获得工资",13,{"$nulls":3},13,{"v":1,"d":"1.0"}]
["黄应时冷水坡机埠建设","巩固拓展脱贫攻坚成果和乡村振兴","县农业农村局","黄沙街镇","新天村","新天村","产业发展","机房建设、电力架设、管道铺设、电机及水泵建设",16,"2025-11-30","2025-12-30","改善灌溉条件，促进增收",66,{"v":30,"d":"30.00"},"群众积极参与获得工资",16,{"$nulls":3},16,{"v":1,"d":"1.0"}]
["中兴村水稻种植","巩固拓展脱贫攻坚成果和乡村振兴","县农业农村局","黄沙街镇","中兴村","中兴村","产业发展","水稻种植60亩，育秧、翻耕、机插",2,"2025-04-20","2025-05-10","解决粮食生产",120,{"v":20,"d":"20.00"},"群众积极参与获得工资",2,{"$nulls":3},2,{"v":1,"d":"1.0"}]
["和平片机埠维修","巩固拓展脱贫攻坚成果和乡村振兴","县农业农村局","黄沙街镇","中兴村","中兴村","产业发展","解决和平片稻田灌溉",13,"2025-05-17","2025-08-05","解决和平片粮食生产抗旱灌溉",245,{"v":24,"d":"24.00"},"群众积极参与获得工资",13,{"$nulls":3},13,{"v":1,"d":"1.0"}]
["中兴村光华片段铁山渠道硬化（第一期）","巩固拓展脱贫攻坚成果和乡村振兴","县农业农村局","黄沙街镇","中兴村","中兴村","产业发展","中兴村光华片段铁山渠道硬化2.5km,高50cm，坡度60度，底宽40cm",20,"2025-05-15","2025-08-12","解决光华片粮食生产抗旱灌溉",346,{"v":25,"d":"25.00"},"群众积极参与获得工资",20,{"$nulls":3},20,{"v":1,"d":"1.0"}]
["玉华船大路至G240到玉华小学公路维修","巩固拓展脱贫攻坚成果和乡村振兴","县农业农村局","黄沙街镇","复兴村","复兴村","乡村建设行动","玉华船大路至G240到玉华小学5.5km公路维修",10,"2025-10-15","2025-11-15","方便群众出行",400,{"v":45,"d":"45.00"},"群众积极参与获得工资",null,10,null,null,10,{"v":1,"d":"1.0"}]
["新华片13、14组牛山塘清淤加固","巩固拓展脱贫攻坚成果和乡村振兴","县农业农村局","黄沙街镇","和谐村","和谐村","产业发展","新华片13、14组4亩牛山塘清淤加固",10,"2025-06-05","2025-10-25","能有效改善农田灌溉条件，提高农业产量，有助于保障农村集中供水，解决农村用水问题",480,{"v":50,"d":"50.00"},"群众积极参与获得工资",null,10,null,null,10,{"v":1,"d":"1.0"}]
["钟家组至天然十四组道路扩宽","巩固拓展脱贫攻坚成果和乡村振兴","县农业农村局","黄沙街镇","新天村","新天村","乡村建设行动","钟家组至天然十四组道路硬化3.5米*890米",5,2025.11,2025.12,"给附近村民道路运输以及耕种通行带来便利",445,{"v":75,"d":"75.00"},"群众积极参与获得工资",null,5,null,null,5,{"v":1,"d":"1.0"}]
["大联上节塘清淤维修工程","巩固拓展脱贫攻坚成果和乡村振兴","县农业农村局","黄沙街镇","荷塘村","荷塘村","产业发展","600立方上节塘清淤，硬化内坡，按照护栏",5,"2025.10.1","2025.10.20","上节塘灌溉范围覆盖200多亩农田，护栏安装给村民提供了安全出行的环境",398,{"v":34,"d":"34.00"},"群众积极参与获得工资",null,5,null,null,5,{"v":1,"d":"1.0"}]
["大众片柳元七道路升级改造","巩固拓展脱贫攻坚成果和乡村振兴","县农业农村局","黄沙街镇","大金村","大金村","乡村建设行动","长1.5公里，原3.5米路面加宽至4.5米",5,"2025-12-01","2025-12-18","发动群众自筹捐款50万，预计10月20日之前完工",300,{"v":25,"d":"25.00"},"群众积极参与获得工资",null,5,null,null,5,{"v":1,"d":"1.0"}]
["塘内坡硬化，低涵改造，溢洪道维修硬化","巩固拓展脱贫攻坚成果和乡村振兴","县农业农村局","黄沙街镇","大明村","大明村","产业发展","新塘面积8亩，塘内坡硬化，低涵改造，溢洪道维修硬化",3,"2025-08-25","2025-09-05","保障农业生产",360,{"v":32,"d":"32.00"},"群众积极参与获得工资",null,3,null,null,3,{"v":1,"d":"1.0"}]
["船大路老街桥头段附属设施建设","巩固拓展脱贫攻坚成果和乡村振兴","县农业农村局","黄沙街镇","黄沙村","黄沙村","乡村建设行动","船大路荆州河老街桥头段长96米，高0.95米护坡；老街桥头段沿街排水沟建设，长105米，宽0.4米",5,"2025.8.26","2025.9.10","改善脱贫户及普通老百姓人居环境卫生，保障安全出行",200,{"v":24,"d":"24.00"},"群众积极参与获得工资",null,5,null,null,5,{"v":1,"d":"1.0"}]
["新民片六、七组道路拓宽工程","巩固拓展脱贫攻坚成果和乡村振兴","县农业农村局","黄沙街镇","大明村","大明村","乡村建设行动","和谐村-新民坪桥路段拓宽，长1.217公里，宽5米",5,"2025-12-01","2025-12-30","改善脱贫户及普通老百姓人居环境卫生，保障安全出行",480,{"v":45,"d":"45.00"},"群众积极参与获得工资",null,5,null,null,{"v":0,"d":"0.0"},{"v":0,"d":"0.0"}]
["茶场社区茶绿樱花红道路基础路设施沉水井建设","巩固拓展脱贫攻坚成果和乡村振兴","县农业农村局","黄沙街镇","茶场社区","茶场社区","乡村建设行动","建设茶场社区拦河片一至六组沉水井22座",3,"2025-10-22","2025-11-02","方便灌溉",200,{"v":15,"d":"15.00"},"群众积极参与获得工资",null,3,null,null,{"v":0,"d":"0.0"},{"v":0,"d":"0.0"}]
["罗汉果基地扩面、菊花种植","巩固拓展脱贫攻坚成果和乡村振兴","县农业农村局","黄沙街镇","苍坪村","苍坪村","产业发展","罗汉果基地扩面100亩，种植菊花",20,"2025-10-27","2025-12-30","发展集体经济",120,{"v":8,"d":"8.00"},"群众积极参与获得工资",null,20,null,null,{"v":0,"d":"0.0"},{"v":0,"d":"0.0"}]
["君召连二塘清淤，维修","巩固拓展脱贫攻坚成果和乡村振兴","县农业农村局","黄沙街镇","龙凤村","龙凤村","乡村建设行动","君召连二塘清淤，塘堤维修12亩",2,"2025-12-01","2025-12-18","方便发展生产",250,{"v":40,"d":"40.00"},"群众积极参与获得工资",null,2,null,null,{"v":0,"d":"0.0"},{"v":0,"d":"0.0"}]